Body Name,Supplier ID,Supplier Name,Unique Invoice Ref,Expenditure Category,Main Category,Net Value,Tax Valve,Gross Value,Date ,Service Label,Transaction Number
Nottinghamshire County Council,TR501839,CEMEX UK OPERATIONS,2871552,Estate Management & Development,Mechanical & Electrical,290.25,50.79,341.04,17-Nov-10,COMMUNITIES,3000710401
Nottinghamshire County Council,TR501839,UNITED RESPONSE,2871552,Estate Management & Development,Mechanical & Electrical,176.25,30.84,207.09,17-Nov-10,COMMUNITIES,3000710401
Nottinghamshire County Council,TR501839,CEMEX UK OPERATIONS,2871552,Estate Management & Development,Mechanical & Electrical,0,0.01,0.01,17-Nov-10,RESOURCES,3000710401
Nottinghamshire County Council,TR510211,WERNICK HIRE LTD,4475187,Estate Management & Development,Mechanical & Electrical,792.86,138.75,931.61,01-Nov-10,COMMUNITIES,980440
Nottinghamshire County Council,TR510211,WERNICK HIRE LTD,4475188,Estate Management & Development,Mechanical & Electrical,824.28,144.25,968.53,01-Nov-10,COMMUNITIES,985926
Nottinghamshire County Council,TR002563,BREEDON AGGREGATES ENGLAND LTD,4550681,Estate Management & Development,Highways & Works,0,-0.01,-0.01,08-Nov-10,COMMUNITIES,10106898
Nottinghamshire County Council,TR002563,BREEDON AGGREGATES ENGLAND LTD,4550681,Estate Management & Development,Highways & Works,"1,672.40",292.67,"1,965.07",08-Nov-10,COMMUNITIES,10106898
Nottinghamshire County Council,TR002563,BREEDON AGGREGATES ENGLAND LTD,4550681,Estate Management & Development,Highways & Works,482.88,84.5,567.38,08-Nov-10,COMMUNITIES,10106898
Nottinghamshire County Council,TR002563,BREEDON AGGREGATES ENGLAND LTD,4550681,Estate Management & Development,Highways & Works,9.2,1.61,10.81,08-Nov-10,COMMUNITIES,10106898
Nottinghamshire County Council,TR525468,CHARNWOOD FENCING LTD,4578369,Facilities Management,Security,"2,246.25",393.09,"2,639.34",11-Nov-10,COMMUNITIES,15725
Nottinghamshire County Council,TR525468,CHARNWOOD FENCING LTD,4578369,Facilities Management,Security,400,70,470,11-Nov-10,COMMUNITIES,15725
Nottinghamshire County Council,TR002563,BREEDON AGGREGATES ENGLAND LTD,4597795,Estate Management & Development,Highways & Works,"1,351.50",236.51,"1,588.01",09-Nov-10,COMMUNITIES,10112678
Nottinghamshire County Council,TR002563,BREEDON AGGREGATES ENGLAND LTD,4597795,Estate Management & Development,Highways & Works,28.65,5.01,33.66,09-Nov-10,COMMUNITIES,10112678
Nottinghamshire County Council,TR535589,GARIC LTD,4605483,FM Hard,MechanicalElectrical,950,166.25,"1,116.25",08-Nov-10,COMMUNITIES,154309
Nottinghamshire County Council,TR533577,LAFFRAN PLANT HIRE,4611426,Travel & Transportation,Fleet,"1,271.25",222.47,"1,493.72",15-Nov-10,COMMUNITIES,1698
Nottinghamshire County Council,TR002563,BREEDON AGGREGATES ENGLAND LTD,4611583,Estate Management & Development,Highways & Works,505.62,88.48,594.1,24-Nov-10,COMMUNITIES,10114074
Nottinghamshire County Council,TR002563,BREEDON AGGREGATES ENGLAND LTD,4611584,Estate Management & Development,Highways & Works,632.46,110.68,743.14,25-Nov-10,COMMUNITIES,10114075
Nottinghamshire County Council,TR002563,BREEDON AGGREGATES ENGLAND LTD,4611584,Estate Management & Development,Highways & Works,279.32,48.88,328.2,25-Nov-10,COMMUNITIES,10114075
Nottinghamshire County Council,TR530728,FIRST ORDER RED LTD,4620747,Utilities / Waste,Waste,0,0.01,0.01,09-Nov-10,RESOURCES,1606
Nottinghamshire County Council,TR530728,FIRST ORDER RED LTD,4620747,Utilities / Waste,Waste,579.5,101.41,680.91,09-Nov-10,RESOURCES,1606
Nottinghamshire County Council,TR316010,ZIP HEATERS (UK) LTD,4622612,FM Hard,Mechanical & Electrical,670.74,117.38,788.12,18-Nov-10,ASCH,201957
Nottinghamshire County Council,TR004835,XMA LTD,4623324,ICT,Hardware,541.27,94.72,635.99,12-Nov-10,RESOURCES,13/I152375      
Nottinghamshire County Council,TR514623,A & V SQUIRES PLANT CO,4623874,Travel & Transportation,Fleet,"1,233.00",215.78,"1,448.78",17-Nov-10,COMMUNITIES,302744
Nottinghamshire County Council,TR002563,BREEDON AGGREGATES ENGLAND LTD,4626299,Estate Management & Development,Highways & Works,"1,427.15",249.75,"1,676.90",09-Nov-10,COMMUNITIES,10115490
Nottinghamshire County Council,TR002563,BREEDON AGGREGATES ENGLAND LTD,4626299,Estate Management & Development,Highways & Works,30.56,5.35,35.91,09-Nov-10,COMMUNITIES,10115490
Nottinghamshire County Council,TR002563,BREEDON AGGREGATES ENGLAND LTD,4626300,Estate Management & Development,Highways & Works,452.99,79.27,532.26,09-Nov-10,COMMUNITIES,10115491
Nottinghamshire County Council,TR002563,BREEDON AGGREGATES ENGLAND LTD,4626300,Estate Management & Development,Highways & Works,9.7,1.7,11.4,09-Nov-10,COMMUNITIES,10115491
Nottinghamshire County Council,TR002563,BREEDON AGGREGATES ENGLAND LTD,4626308,Estate Management & Development,Highways & Works,"6,009.08","1,051.59","7,060.67",08-Nov-10,COMMUNITIES,10115499
Nottinghamshire County Council,TR002563,BREEDON AGGREGATES ENGLAND LTD,4626308,Estate Management & Development,Highways & Works,143.62,25.13,168.75,08-Nov-10,COMMUNITIES,10115499
Nottinghamshire County Council,TR002563,BREEDON AGGREGATES ENGLAND LTD,4626309,Estate Management & Development,Highways & Works,0,-0.01,-0.01,08-Nov-10,COMMUNITIES,10115500
Nottinghamshire County Council,TR002563,BREEDON AGGREGATES ENGLAND LTD,4626309,Estate Management & Development,Highways & Works,"9,463.75","1,656.16","11,119.91",08-Nov-10,COMMUNITIES,10115500
Nottinghamshire County Council,TR002563,BREEDON AGGREGATES ENGLAND LTD,4626309,Estate Management & Development,Highways & Works,198.85,34.8,233.65,08-Nov-10,COMMUNITIES,10115500
Nottinghamshire County Council,TR002563,BREEDON AGGREGATES ENGLAND LTD,4626310,Estate Management & Development,Highways & Works,"6,858.67","1,200.27","8,058.94",08-Nov-10,COMMUNITIES,10115501
Nottinghamshire County Council,TR002563,BREEDON AGGREGATES ENGLAND LTD,4626310,Estate Management & Development,Highways & Works,144.12,25.22,169.34,08-Nov-10,COMMUNITIES,10115501
Nottinghamshire County Council,TR515269,JORDAN ROAD SURFACING LTD,4628578,Estate Management & Development,Highways & Works,765,133.88,898.88,01-Nov-10,COMMUNITIES,JRSL/10472      
Nottinghamshire County Council,TR514960,THE GAP GROUP LTD,4628709,Estate Management & Development,Major Projects,"1,075.72",188.25,"1,263.97",01-Nov-10,COMMUNITIES,401840912NT     
Nottinghamshire County Council,TR514623,A & V SQUIRES PLANT CO,4630468,Travel & Transportation,Fleet,"1,218.00",213.15,"1,431.15",17-Nov-10,COMMUNITIES,302775
Nottinghamshire County Council,TR002563,BREEDON AGGREGATES ENGLAND LTD,4631505,Estate Management & Development,Highways & Works,0,-0.01,-0.01,08-Nov-10,COMMUNITIES,10117080
Nottinghamshire County Council,TR002563,BREEDON AGGREGATES ENGLAND LTD,4631505,Estate Management & Development,Highways & Works,"2,343.41",410.1,"2,753.51",08-Nov-10,COMMUNITIES,10117080
Nottinghamshire County Council,TR002563,BREEDON AGGREGATES ENGLAND LTD,4631505,Estate Management & Development,Highways & Works,50.18,8.78,58.96,08-Nov-10,COMMUNITIES,10117080
Nottinghamshire County Council,TR002563,BREEDON AGGREGATES ENGLAND LTD,4631506,Estate Management & Development,Highways & Works,0,0.01,0.01,08-Nov-10,COMMUNITIES,10117081
Nottinghamshire County Council,TR002563,BREEDON AGGREGATES ENGLAND LTD,4631506,Estate Management & Development,Highways & Works,932.13,163.12,"1,095.25",08-Nov-10,COMMUNITIES,10117081
Nottinghamshire County Council,TR002563,BREEDON AGGREGATES ENGLAND LTD,4631506,Estate Management & Development,Highways & Works,19.96,3.49,23.45,08-Nov-10,COMMUNITIES,10117081
Nottinghamshire County Council,TR002563,BREEDON AGGREGATES ENGLAND LTD,4631507,Estate Management & Development,Highways & Works,"1,167.50",204.31,"1,371.81",08-Nov-10,COMMUNITIES,10117082
Nottinghamshire County Council,TR002563,BREEDON AGGREGATES ENGLAND LTD,4631507,Estate Management & Development,Highways & Works,25,4.38,29.38,08-Nov-10,COMMUNITIES,10117082
Nottinghamshire County Council,TR002563,BREEDON AGGREGATES ENGLAND LTD,4631508,Estate Management & Development,Highways & Works,"6,672.78","1,167.74","7,840.52",08-Nov-10,COMMUNITIES,10117079
Nottinghamshire County Council,TR002563,BREEDON AGGREGATES ENGLAND LTD,4631508,Estate Management & Development,Highways & Works,181.33,31.73,213.06,08-Nov-10,COMMUNITIES,10117079
Nottinghamshire County Council,TR512379,RAI TECHNICAL LTD,4633499,Estate Management & Development,Mechanical & Electrical,607.5,106.31,713.81,02-Nov-10,COMMUNITIES,74524
Nottinghamshire County Council,TR512379,RAI TECHNICAL LTD,4633499,Estate Management & Development,Mechanical & Electrical,145.8,25.52,171.32,02-Nov-10,COMMUNITIES,74524
Nottinghamshire County Council,TR512379,RAI TECHNICAL LTD,4633500,Estate Management & Development,Mechanical & Electrical,"1,226.69",214.67,"1,441.36",22-Nov-10,COMMUNITIES,74523
Nottinghamshire County Council,TR512379,RAI TECHNICAL LTD,4633501,Estate Management & Development,Mechanical & Electrical,0,0.01,0.01,02-Nov-10,COMMUNITIES,74522
Nottinghamshire County Council,TR512379,RAI TECHNICAL LTD,4633501,Estate Management & Development,Mechanical & Electrical,"1,126.25",197.09,"1,323.34",02-Nov-10,COMMUNITIES,74522
Nottinghamshire County Council,TR512379,RAI TECHNICAL LTD,4633501,Estate Management & Development,Mechanical & Electrical,97.74,17.1,114.84,02-Nov-10,COMMUNITIES,74522
Nottinghamshire County Council,TR345149,BROOKES HAULAGE,4633541,FM Soft,Postal / Courier ,"1,025.00",179.38,"1,204.38",18-Nov-10,COMMUNITIES,42935
Nottinghamshire County Council,TR535736,PAUL HUNT ELECTRICAL INSTALLATIONS LTD,4638830,FM Hard,Mechanical & Electrical,"1,342.00",234.85,"1,576.85",18-Nov-10,ASCH,18984
Nottinghamshire County Council,TR535736,PAUL HUNT ELECTRICAL INSTALLATIONS LTD,4638830,FM Hard,Mechanical & Electrical,518.7,25.94,544.64,18-Nov-10,ASCH,18984
Nottinghamshire County Council,TR531393,HI-SPEC SEVICES,4647389,Facilities Management,Cleaning Services,48.13,8.42,56.55,18-Nov-10,RESOURCES,12190
Nottinghamshire County Council,TR531393,HI-SPEC SEVICES,4647389,Facilities Management,Cleaning Services,"1,200.00",210,"1,410.00",18-Nov-10,RESOURCES,12190
Nottinghamshire County Council,TR531393,HI-SPEC SEVICES,4647389,Facilities Management,Cleaning Services,48.12,8.42,56.54,18-Nov-10,RESOURCES,12190
Nottinghamshire County Council,TR531393,HI-SPEC SEVICES,4647389,Facilities Management,Cleaning Services,192.5,33.69,226.19,18-Nov-10,RESOURCES,12190
Nottinghamshire County Council,TR531393,HI-SPEC SEVICES,4647389,Facilities Management,Cleaning Services,24.06,4.21,28.27,18-Nov-10,RESOURCES,12190
Nottinghamshire County Council,TR514623,A & V SQUIRES PLANT CO,4648620,Travel & Transportation,Fleet,444,77.7,521.7,03-Nov-10,COMMUNITIES,302803
Nottinghamshire County Council,TR515269,JORDAN ROAD SURFACING LTD,4648774,Estate Management & Development,Highways & Works,"1,250.00",218.75,"1,468.75",24-Nov-10,COMMUNITIES,JRSL/10525      
Nottinghamshire County Council,TR515269,JORDAN ROAD SURFACING LTD,4648774,Estate Management & Development,Highways & Works,150,26.25,176.25,24-Nov-10,COMMUNITIES,JRSL/10525      
Nottinghamshire County Council,TR314366,C P S INTERIORS LTD,4651226,Facilities Management,Furniture,496.25,86.84,583.09,01-Nov-10,RESOURCES,2671
Nottinghamshire County Council,TR314366,C P S INTERIORS LTD,4651226,Facilities Management,Furniture,62.26,10.9,73.16,01-Nov-10,RESOURCES,2671
Nottinghamshire County Council,TR314366,C P S INTERIORS LTD,4651226,Facilities Management,Furniture,72.75,12.73,85.48,01-Nov-10,RESOURCES,2671
Nottinghamshire County Council,TR314366,C P S INTERIORS LTD,4651226,Facilities Management,Furniture,135,23.63,158.63,01-Nov-10,RESOURCES,2671
Nottinghamshire County Council,TR314366,C P S INTERIORS LTD,4651226,Facilities Management,Furniture,82.5,14.44,96.94,01-Nov-10,RESOURCES,2671
Nottinghamshire County Council,TR330107,SCOT GROUP LTD T/A THRIFTY,4652822,Travel & Transportation,Fleet,495.35,86.69,582.04,11-Nov-10,COMMUNITIES,SZD31372        
Nottinghamshire County Council,TR356446,BSS GROUP PLC,4652937,Estate Management & Development,Mechanical & Electrical,452.23,79.14,531.37,03-Nov-10,RESOURCES,1430/0693407    
Nottinghamshire County Council,TR002563,BREEDON AGGREGATES ENGLAND LTD,4653313,Estate Management & Development,Highways & Works,0,-0.01,-0.01,08-Nov-10,COMMUNITIES,10118235
Nottinghamshire County Council,TR002563,BREEDON AGGREGATES ENGLAND LTD,4653313,Estate Management & Development,Highways & Works,"6,672.78","1,167.74","7,840.52",08-Nov-10,COMMUNITIES,10118235
Nottinghamshire County Council,TR002563,BREEDON AGGREGATES ENGLAND LTD,4653313,Estate Management & Development,Highways & Works,125.93,22.04,147.97,08-Nov-10,COMMUNITIES,10118235
Nottinghamshire County Council,TR002563,BREEDON AGGREGATES ENGLAND LTD,4653314,Estate Management & Development,Highways & Works,"3,359.60",587.93,"3,947.53",08-Nov-10,COMMUNITIES,10118228
Nottinghamshire County Council,TR002563,BREEDON AGGREGATES ENGLAND LTD,4653314,Estate Management & Development,Highways & Works,71.95,12.59,84.54,08-Nov-10,COMMUNITIES,10118228
Nottinghamshire County Council,TR002563,BREEDON AGGREGATES ENGLAND LTD,4653321,Estate Management & Development,Highways & Works,0,-0.01,-0.01,08-Nov-10,COMMUNITIES,10118239
Nottinghamshire County Council,TR002563,BREEDON AGGREGATES ENGLAND LTD,4653321,Estate Management & Development,Highways & Works,470.22,82.29,552.51,08-Nov-10,COMMUNITIES,10118239
Nottinghamshire County Council,TR002563,BREEDON AGGREGATES ENGLAND LTD,4653321,Estate Management & Development,Highways & Works,9.86,1.73,11.59,08-Nov-10,COMMUNITIES,10118239
Nottinghamshire County Council,TR002563,BREEDON AGGREGATES ENGLAND LTD,4653323,Estate Management & Development,Highways & Works,0,-0.01,-0.01,08-Nov-10,COMMUNITIES,10118241
Nottinghamshire County Council,TR002563,BREEDON AGGREGATES ENGLAND LTD,4653323,Estate Management & Development,Highways & Works,829.81,145.22,975.03,08-Nov-10,COMMUNITIES,10118241
Nottinghamshire County Council,TR002563,BREEDON AGGREGATES ENGLAND LTD,4653323,Estate Management & Development,Highways & Works,17.4,3.05,20.45,08-Nov-10,COMMUNITIES,10118241
Nottinghamshire County Council,TR512379,RAI TECHNICAL LTD,4653691,Estate Management & Development,Mechanical & Electrical,998.2,174.69,"1,172.89",17-Nov-10,COMMUNITIES,74732
Nottinghamshire County Council,TR002563,BREEDON AGGREGATES ENGLAND LTD,4656649,Estate Management & Development,Highways & Works,0,0.01,0.01,08-Nov-10,COMMUNITIES,10119568
Nottinghamshire County Council,TR002563,BREEDON AGGREGATES ENGLAND LTD,4656649,Estate Management & Development,Highways & Works,"4,440.24",777.04,"5,217.28",08-Nov-10,COMMUNITIES,10119568
Nottinghamshire County Council,TR002563,BREEDON AGGREGATES ENGLAND LTD,4656649,Estate Management & Development,Highways & Works,95.07,16.64,111.71,08-Nov-10,COMMUNITIES,10119568
Nottinghamshire County Council,TR002563,BREEDON AGGREGATES ENGLAND LTD,4656650,Estate Management & Development,Highways & Works,"4,190.86",733.4,"4,924.26",08-Nov-10,COMMUNITIES,10119569
Nottinghamshire County Council,TR002563,BREEDON AGGREGATES ENGLAND LTD,4656650,Estate Management & Development,Highways & Works,89.74,15.7,105.44,08-Nov-10,COMMUNITIES,10119569
Nottinghamshire County Council,TR002563,BREEDON AGGREGATES ENGLAND LTD,4656652,Estate Management & Development,Highways & Works,762.14,133.37,895.51,08-Nov-10,COMMUNITIES,10119571
Nottinghamshire County Council,TR002563,BREEDON AGGREGATES ENGLAND LTD,4656652,Estate Management & Development,Highways & Works,16.32,2.86,19.18,08-Nov-10,COMMUNITIES,10119571
Nottinghamshire County Council,TR002563,BREEDON AGGREGATES ENGLAND LTD,4656656,Estate Management & Development,Highways & Works,0,-0.03,-0.03,08-Nov-10,COMMUNITIES,10119575
Nottinghamshire County Council,TR002563,BREEDON AGGREGATES ENGLAND LTD,4656656,Estate Management & Development,Highways & Works,"16,776.95","2,935.97","19,712.92",08-Nov-10,COMMUNITIES,10119575
Nottinghamshire County Council,TR002563,BREEDON AGGREGATES ENGLAND LTD,4656656,Estate Management & Development,Highways & Works,257.18,45.01,302.19,08-Nov-10,COMMUNITIES,10119575
Nottinghamshire County Council,TR308265,MISCO,4656795,ICT,Software,465.84,81.52,547.36,10-Nov-10,RESOURCES,M9082820        
Nottinghamshire County Council,TR515269,JORDAN ROAD SURFACING LTD,4656862,Estate Management & Development,Highways & Works,"1,150.00",201.25,"1,351.25",01-Nov-10,COMMUNITIES,JRSL/10571      
Nottinghamshire County Council,TR515269,JORDAN ROAD SURFACING LTD,4656866,Estate Management & Development,Highways & Works,"1,150.00",201.25,"1,351.25",01-Nov-10,COMMUNITIES,JRSL/10569      
Nottinghamshire County Council,TR508224,BRETT LANDSCAPING LTD,4660769,FM Hard,Mechanical & Electrical,0,-0.01,-0.01,30-Nov-10,COMMUNITIES,831063/1        
Nottinghamshire County Council,TR508224,BRETT LANDSCAPING LTD,4660769,FM Hard,Mechanical & Electrical,"2,446.28",428.1,"2,874.38",30-Nov-10,COMMUNITIES,831063/1        
Nottinghamshire County Council,TR508224,BRETT LANDSCAPING LTD,4660769,FM Hard,Mechanical & Electrical,20,3.5,23.5,30-Nov-10,COMMUNITIES,831063/1        
Nottinghamshire County Council,TR508224,BRETT LANDSCAPING LTD,4660770,FM Hard,Mechanical & Electrical,0,-0.01,-0.01,30-Nov-10,COMMUNITIES,831063/2        
Nottinghamshire County Council,TR508224,BRETT LANDSCAPING LTD,4660770,FM Hard,Mechanical & Electrical,"2,446.28",428.1,"2,874.38",30-Nov-10,COMMUNITIES,831063/2        
Nottinghamshire County Council,TR508224,BRETT LANDSCAPING LTD,4660770,FM Hard,Mechanical & Electrical,20,3.5,23.5,30-Nov-10,COMMUNITIES,831063/2        
Nottinghamshire County Council,TR508224,BRETT LANDSCAPING LTD,4660771,FM Hard,Mechanical & Electrical,0,-0.01,-0.01,30-Nov-10,COMMUNITIES,831063/3        
Nottinghamshire County Council,TR508224,BRETT LANDSCAPING LTD,4660771,FM Hard,Mechanical & Electrical,856.2,149.84,"1,006.04",30-Nov-10,COMMUNITIES,831063/3        
Nottinghamshire County Council,TR508224,BRETT LANDSCAPING LTD,4660771,FM Hard,Mechanical & Electrical,20,3.5,23.5,30-Nov-10,COMMUNITIES,831063/3        
Nottinghamshire County Council,TR515269,JORDAN ROAD SURFACING LTD,4662274,Estate Management & Development,Highways & Works,"1,310.00",229.25,"1,539.25",15-Nov-10,COMMUNITIES,JRSL/10573      
Nottinghamshire County Council,TR531393,HI-SPEC SEVICES,4662650,Facilities Management,Cleaning Services,48.12,8.42,56.54,18-Nov-10,COMMUNITIES,12193
Nottinghamshire County Council,TR531393,HI-SPEC SEVICES,4662650,Facilities Management,Cleaning Services,48.12,8.42,56.54,18-Nov-10,COMMUNITIES,12193
Nottinghamshire County Council,TR531393,HI-SPEC SEVICES,4662650,Facilities Management,Cleaning Services,24.06,4.21,28.27,18-Nov-10,COMMUNITIES,12193
Nottinghamshire County Council,TR531393,HI-SPEC SEVICES,4662650,Facilities Management,Cleaning Services,24.06,4.21,28.27,18-Nov-10,COMMUNITIES,12193
Nottinghamshire County Council,TR531393,HI-SPEC SEVICES,4662650,Facilities Management,Cleaning Services,48.12,8.42,56.54,18-Nov-10,COMMUNITIES,12193
Nottinghamshire County Council,TR531393,HI-SPEC SEVICES,4662650,Facilities Management,Cleaning Services,24.06,4.21,28.27,18-Nov-10,COMMUNITIES,12193
Nottinghamshire County Council,TR531393,HI-SPEC SEVICES,4662650,Facilities Management,Cleaning Services,36.1,6.32,42.42,18-Nov-10,COMMUNITIES,12193
Nottinghamshire County Council,TR531393,HI-SPEC SEVICES,4662650,Facilities Management,Cleaning Services,96.26,16.85,113.11,18-Nov-10,COMMUNITIES,12193
Nottinghamshire County Council,TR531393,HI-SPEC SEVICES,4662650,Facilities Management,Cleaning Services,48.12,8.42,56.54,18-Nov-10,COMMUNITIES,12193
Nottinghamshire County Council,TR531393,HI-SPEC SEVICES,4662650,Facilities Management,Cleaning Services,48.12,8.42,56.54,18-Nov-10,COMMUNITIES,12193
Nottinghamshire County Council,TR514623,A & V SQUIRES PLANT CO,4664273,Travel & Transportation,Fleet,"1,251.00",218.93,"1,469.93",01-Nov-10,COMMUNITIES,302845
Nottinghamshire County Council,TR046647,ITT WATER & WASTEWATER UK LTD,4664490,Utilities / Waste,Waste,572.5,100.19,672.69,12-Nov-10,COMMUNITIES,027990/396880   
Nottinghamshire County Council,TR349129,DIAL A ROD (DERBY) LTD,4665246,Estate Management & Development,Mechanical & Electrical,715,125.13,840.13,05-Nov-10,RESOURCES,62034
Nottinghamshire County Council,TR349129,DIAL A ROD (DERBY) LTD,4665252,Estate Management & Development,Mechanical & Electrical,900,157.5,"1,057.50",05-Nov-10,RESOURCES,62037
Nottinghamshire County Council,TR349129,DIAL A ROD (DERBY) LTD,4665252,Estate Management & Development,Mechanical & Electrical,900,157.5,"1,057.50",05-Nov-10,RESOURCES,62037
Nottinghamshire County Council,TR349129,DIAL A ROD (DERBY) LTD,4665252,Estate Management & Development,Mechanical & Electrical,900,157.5,"1,057.50",05-Nov-10,RESOURCES,62037
Nottinghamshire County Council,TR323042,EDMUNDSON ELECTRICAL LTD,4665918,Estate Management & Development,Mechanical & Electrical,810,141.75,951.75,17-Nov-10,COMMUNITIES,136-118171      
Nottinghamshire County Council,TR011210,STADIA SPORTS INTERNATIONAL LTD,4670329,Front Line Services,Sports & Leisure,795,139.13,934.13,18-Nov-10,TBC,INV055897       
Nottinghamshire County Council,TR310887,BARKER ROSS LTD,4670423,Professional Services,Recruitment,"1,266.63",221.66,"1,488.29",17-Nov-10,COMMUNITIES,12128320
Nottinghamshire County Council,TR344427,ENERGAS LTD,4670425,Utilities / Waste,Utilities,0,-77.61,-77.61,22-Nov-10,COMMUNITIES,2385204
Nottinghamshire County Council,TR344427,ENERGAS LTD,4670425,Utilities / Waste,Utilities,429.52,75.17,504.69,22-Nov-10,COMMUNITIES,2385204
Nottinghamshire County Council,TR344427,ENERGAS LTD,4670425,Utilities / Waste,Utilities,103.74,18.15,121.89,22-Nov-10,COMMUNITIES,2385204
Nottinghamshire County Council,TR344427,ENERGAS LTD,4670425,Utilities / Waste,Utilities,87.63,15.34,102.97,22-Nov-10,COMMUNITIES,2385204
Nottinghamshire County Council,TR517980,S & P WILLIAMS PLASTERING LTD,4671424,Estate Management & Development,Mechanical & Electrical,"7,090.00","1,240.75","8,330.75",04-Nov-10,RESOURCES,317
Nottinghamshire County Council,TR533577,LAFFRAN PLANT HIRE,4671657,Travel & Transportation,Fleet,851.65,149.04,"1,000.69",15-Nov-10,COMMUNITIES,1754
Nottinghamshire County Council,TR533577,LAFFRAN PLANT HIRE,4671657,Travel & Transportation,Fleet,608.35,106.46,714.81,15-Nov-10,COMMUNITIES,1754
Nottinghamshire County Council,TR514623,A & V SQUIRES PLANT CO,4671853,Travel & Transportation,Fleet,"1,041.00",182.18,"1,223.18",08-Nov-10,COMMUNITIES,302876
Nottinghamshire County Council,TR517389,DRAEFERN LTD T/A RIGHT4STAFF,4672077,Professional Services,Recruitment,151.38,26.49,177.87,23-Nov-10,COMMUNITIES,IN234786        
Nottinghamshire County Council,TR517389,DRAEFERN LTD T/A RIGHT4STAFF,4672077,Professional Services,Recruitment,67.28,11.77,79.05,23-Nov-10,COMMUNITIES,IN234786        
Nottinghamshire County Council,TR517389,DRAEFERN LTD T/A RIGHT4STAFF,4672077,Professional Services,Recruitment,164,28.7,192.7,23-Nov-10,COMMUNITIES,IN234786        
Nottinghamshire County Council,TR517389,DRAEFERN LTD T/A RIGHT4STAFF,4672077,Professional Services,Recruitment,84.1,14.72,98.82,23-Nov-10,COMMUNITIES,IN234786        
Nottinghamshire County Council,TR517389,DRAEFERN LTD T/A RIGHT4STAFF,4672079,Professional Services,Recruitment,75.69,13.25,88.94,01-Nov-10,COMMUNITIES,IN231128        
Nottinghamshire County Council,TR517389,DRAEFERN LTD T/A RIGHT4STAFF,4672079,Professional Services,Recruitment,168.2,29.44,197.64,01-Nov-10,COMMUNITIES,IN231128        
Nottinghamshire County Council,TR517389,DRAEFERN LTD T/A RIGHT4STAFF,4672079,Professional Services,Recruitment,210.25,36.79,247.04,01-Nov-10,COMMUNITIES,IN231128        
Nottinghamshire County Council,TR517389,DRAEFERN LTD T/A RIGHT4STAFF,4672079,Professional Services,Recruitment,117.74,20.6,138.34,01-Nov-10,COMMUNITIES,IN231128        
Nottinghamshire County Council,TR507227,T & S HEATING LTD,4673106,Estate Management & Development,Mechanical & Electrical,510,89.25,599.25,05-Nov-10,RESOURCES,140103
Nottinghamshire County Council,TR509076,HOPKINSON PLANT HIRE LTD,4673452,Travel & Transportation,Fleet,"1,068.00",186.9,"1,254.90",08-Nov-10,COMMUNITIES,104578
Nottinghamshire County Council,TR509076,HOPKINSON PLANT HIRE LTD,4673452,Travel & Transportation,Fleet,267,46.73,313.73,08-Nov-10,COMMUNITIES,104578
Nottinghamshire County Council,TR509076,HOPKINSON PLANT HIRE LTD,4673455,Travel & Transportation,Fleet,"2,045.00",357.88,"2,402.88",18-Nov-10,TBC,104574
Nottinghamshire County Council,TR512379,RAI TECHNICAL LTD,4673470,Estate Management & Development,Mechanical & Electrical,774.77,135.58,910.35,17-Nov-10,COMMUNITIES,74923
Nottinghamshire County Council,TR512379,RAI TECHNICAL LTD,4673471,Estate Management & Development,Mechanical & Electrical,"1,206.17",211.08,"1,417.25",17-Nov-10,COMMUNITIES,74940
Nottinghamshire County Council,TR512379,RAI TECHNICAL LTD,4673472,Estate Management & Development,Mechanical & Electrical,"1,202.93",210.51,"1,413.44",17-Nov-10,COMMUNITIES,74939
Nottinghamshire County Council,TR505613,ORCHARD MEDICAL RECRUITMENT,4673554,Professional Services,Recruitment,927.36,162.29,"1,089.65",24-Nov-10,ASCH,43488
Nottinghamshire County Council,TR349129,DIAL A ROD (DERBY) LTD,4674064,Estate Management & Development,Mechanical & Electrical,"1,650.00",288.75,"1,938.75",04-Nov-10,RESOURCES,62149
Nottinghamshire County Council,TR348269,LEIVERS & MILLERSHIP,4674065,Estate Management & Development,Mechanical & Electrical,"2,585.00",452.38,"3,037.38",01-Nov-10,RESOURCES,43059
Nottinghamshire County Council,TR348269,LEIVERS & MILLERSHIP,4674065,Estate Management & Development,Mechanical & Electrical,4.76,0.83,5.59,01-Nov-10,RESOURCES,43059
Nottinghamshire County Council,TR332197,TARMAC CENTRAL LTD,4674461,Estate Management & Development,Highways & Works,543.51,95.11,638.62,02-Nov-10,COMMUNITIES,9025808818
Nottinghamshire County Council,TR534170,S F PLANT HIRE,4675371,Travel & Transportation,Fleet,0,-157.94,-157.94,01-Nov-10,COMMUNITIES,11010
Nottinghamshire County Council,TR534170,S F PLANT HIRE,4675371,Travel & Transportation,Fleet,902.5,157.94,"1,060.44",01-Nov-10,COMMUNITIES,11010
Nottinghamshire County Council,TR511996,RAILWAY CHILDREN PRE SCHOOL,4675453,Front Line Services,Education & Training,500,0,500,02-Nov-10,CHILDREN & YOUNG PEOPLE,EYP NTWK BURSARY
Nottinghamshire County Council,TR517929,LOWRY SCAFFOLDING,4675499,Estate Management & Development,Mechanical & Electrical,0,0.01,0.01,22-Nov-10,COMMUNITIES,10986
Nottinghamshire County Council,TR517929,LOWRY SCAFFOLDING,4675499,Estate Management & Development,Mechanical & Electrical,962.5,168.44,"1,130.94",22-Nov-10,COMMUNITIES,10986
Nottinghamshire County Council,TR517929,LOWRY SCAFFOLDING,4675499,Estate Management & Development,Mechanical & Electrical,157.16,27.5,184.66,22-Nov-10,COMMUNITIES,10986
Nottinghamshire County Council,TR327174,NEWARK CONCRETE,4675502,Estate Management & Development,Mechanical & Electrical,690,120.75,810.75,11-Nov-10,COMMUNITIES,97638
Nottinghamshire County Council,TR327174,NEWARK CONCRETE,4675502,Estate Management & Development,Mechanical & Electrical,54,9.45,63.45,11-Nov-10,COMMUNITIES,97638
Nottinghamshire County Council,TR515511,AGGREGATE INDUSTRIES-CHARCON DIVISION,4675559,Estate Management & Development,Highways & Works,18,3.15,21.15,04-Nov-10,COMMUNITIES,12610026
Nottinghamshire County Council,TR515511,AGGREGATE INDUSTRIES-CHARCON DIVISION,4675559,Estate Management & Development,Highways & Works,45,7.88,52.88,04-Nov-10,COMMUNITIES,12610026
Nottinghamshire County Council,TR515511,AGGREGATE INDUSTRIES-CHARCON DIVISION,4675559,Estate Management & Development,Highways & Works,"2,907.00",508.73,"3,415.73",04-Nov-10,COMMUNITIES,12610026
Nottinghamshire County Council,TR514943,RENNICKS (UK) LTD,4675572,Estate Management & Development,Highways & Works,0,0.01,0.01,18-Nov-10,COMMUNITIES,4102234
Nottinghamshire County Council,TR514943,RENNICKS (UK) LTD,4675572,Estate Management & Development,Highways & Works,650,113.75,763.75,18-Nov-10,COMMUNITIES,4102234
Nottinghamshire County Council,TR514943,RENNICKS (UK) LTD,4675572,Estate Management & Development,Highways & Works,876,153.3,"1,029.30",18-Nov-10,COMMUNITIES,4102234
Nottinghamshire County Council,TR514943,RENNICKS (UK) LTD,4675572,Estate Management & Development,Highways & Works,580,101.5,681.5,18-Nov-10,COMMUNITIES,4102234
Nottinghamshire County Council,TR514943,RENNICKS (UK) LTD,4675572,Estate Management & Development,Highways & Works,473.13,82.8,555.93,18-Nov-10,COMMUNITIES,4102234
Nottinghamshire County Council,TR514943,RENNICKS (UK) LTD,4675572,Estate Management & Development,Highways & Works,357.62,62.58,420.2,18-Nov-10,COMMUNITIES,4102234
Nottinghamshire County Council,TR514943,RENNICKS (UK) LTD,4675572,Estate Management & Development,Highways & Works,143.17,25.05,168.22,18-Nov-10,COMMUNITIES,4102234
Nottinghamshire County Council,TR514943,RENNICKS (UK) LTD,4675572,Estate Management & Development,Highways & Works,231.45,40.5,271.95,18-Nov-10,COMMUNITIES,4102234
Nottinghamshire County Council,TR514943,RENNICKS (UK) LTD,4675572,Estate Management & Development,Highways & Works,306.99,53.72,360.71,18-Nov-10,COMMUNITIES,4102234
Nottinghamshire County Council,TR514943,RENNICKS (UK) LTD,4675572,Estate Management & Development,Highways & Works,"1,280.65",224.11,"1,504.76",18-Nov-10,COMMUNITIES,4102234
Nottinghamshire County Council,TR514896,R WHITEHEAD CONCRETE LTD,4675583,Estate Management & Development,Mechanical & Electrical,17.5,3.06,20.56,02-Nov-10,COMMUNITIES,12655
Nottinghamshire County Council,TR514896,R WHITEHEAD CONCRETE LTD,4675583,Estate Management & Development,Mechanical & Electrical,414.4,72.52,486.92,02-Nov-10,COMMUNITIES,12655
Nottinghamshire County Council,TR514896,R WHITEHEAD CONCRETE LTD,4675583,Estate Management & Development,Mechanical & Electrical,637,111.48,748.48,02-Nov-10,COMMUNITIES,12655
Nottinghamshire County Council,TR531925,LINCOLNSHIRE COUNTY COUNCIL-CNTY FUND,4675674,Government / Charity / Trust / Society / Association,Council,"26,000.00",0,"26,000.00",02-Nov-10,RESOURCES,EMIEPPROJ472MS  
Nottinghamshire County Council,TR535428,ELKS EDUCATION TRUST,4675681,Arms Length,EducationTraining,"81,654.00","14,289.45","95,943.45",01-Nov-10,CHILDREN & YOUNG PEOPLE,88
Nottinghamshire County Council,TR514960,THE GAP GROUP LTD,4675760,Estate Management & Development,Major Projects,480.48,84.08,564.56,08-Nov-10,COMMUNITIES,401883344NT     
Nottinghamshire County Council,TR514960,THE GAP GROUP LTD,4675765,Estate Management & Development,Major Projects,618.2,108.19,726.39,08-Nov-10,COMMUNITIES,401883346NT     
Nottinghamshire County Council,TR514960,THE GAP GROUP LTD,4675822,Estate Management & Development,Major Projects,480.48,84.08,564.56,08-Nov-10,COMMUNITIES,401883335NT     
Nottinghamshire County Council,TR532594,COMMERCIAL SURFACE SOLUTIONS,4677704,Estate Management & Development,Highways & Works,"1,000.00",175,"1,175.00",02-Nov-10,COMMUNITIES,136
Nottinghamshire County Council,TR523096,GROUND COVER TURF SUPPLIES,4677784,Facilities Management,Grounds Maintenance,"2,500.00",437.5,"2,937.50",11-Nov-10,TBC,6493
Nottinghamshire County Council,TR004835,XMA LTD,4677808,ICT,Hardware,0,0.01,0.01,03-Nov-10,RESOURCES,K1/I217409      
Nottinghamshire County Council,TR004835,XMA LTD,4677808,ICT,Hardware,467.98,81.9,549.88,03-Nov-10,RESOURCES,K1/I217409      
Nottinghamshire County Council,TR514960,THE GAP GROUP LTD,4677827,Estate Management & Development,Major Projects,623.04,109.03,732.07,08-Nov-10,COMMUNITIES,401883311NT     
Nottinghamshire County Council,TR536080,NEWARK STEEL LTD,4677863,Estate Management & Development,Mechanical & Electrical,0,-0.01,-0.01,02-Nov-10,ASCH,270897
Nottinghamshire County Council,TR536080,NEWARK STEEL LTD,4677863,Estate Management & Development,Mechanical & Electrical,501.53,87.77,589.3,02-Nov-10,ASCH,270897
Nottinghamshire County Council,TR508965,N & S WRIGHT LTD,4678020,Professional Services,Professional Services,554,96.95,650.95,02-Nov-10,TBC,4568
Nottinghamshire County Council,TR516234,MABEY HIRE LTD,4678065,Estate Management & Development,Major Projects,"3,175.67",555.74,"3,731.41",01-Nov-10,COMMUNITIES,7466711
Nottinghamshire County Council,TR516234,MABEY HIRE LTD,4678102,Estate Management & Development,Major Projects,491.3,85.98,577.28,01-Nov-10,COMMUNITIES,7466097
Nottinghamshire County Council,TR516234,MABEY HIRE LTD,4678120,Estate Management & Development,Major Projects,"1,294.00",226.45,"1,520.45",01-Nov-10,COMMUNITIES,7466095
Nottinghamshire County Council,TR510211,WERNICK HIRE LTD,4678131,Estate Management & Development,Mechanical & Electrical,0,0.01,0.01,01-Nov-10,COMMUNITIES,1031350
Nottinghamshire County Council,TR510211,WERNICK HIRE LTD,4678131,Estate Management & Development,Mechanical & Electrical,"1,009.28",176.62,"1,185.90",01-Nov-10,COMMUNITIES,1031350
Nottinghamshire County Council,TR513882,THE POST & COLUMN CO LTD,4678240,Estate Management & Development,Mechanical & Electrical,85,14.88,99.88,04-Nov-10,COMMUNITIES,56086
Nottinghamshire County Council,TR513882,THE POST & COLUMN CO LTD,4678240,Estate Management & Development,Mechanical & Electrical,"4,110.00",719.25,"4,829.25",04-Nov-10,COMMUNITIES,56086
Nottinghamshire County Council,TR520286,NEWARK & SHERWOOD DISTRICT COUNCIL,4678592,Government / Charity / Trust / Society / Association,Council,"16,000.00",0,"16,000.00",01-Nov-10,RESOURCES,EMIEPPROJ718MS  
Nottinghamshire County Council,TR531925,LINCOLNSHIRE COUNTY COUNCIL-CNTY FUND,4678593,Government / Charity / Trust / Society / Association,Council,"15,000.00",0,"15,000.00",04-Nov-10,RESOURCES,EMIEPPROJ450MS  
Nottinghamshire County Council,TR531925,LINCOLNSHIRE COUNTY COUNCIL-CNTY FUND,4678595,Government / Charity / Trust / Society / Association,Council,"14,000.00",0,"14,000.00",02-Nov-10,RESOURCES,EMIEPPROJ484MS  
Nottinghamshire County Council,TR514960,THE GAP GROUP LTD,4678667,Estate Management & Development,Major Projects,480.48,84.08,564.56,08-Nov-10,COMMUNITIES,401903428NT     
Nottinghamshire County Council,TR514960,THE GAP GROUP LTD,4678762,Estate Management & Development,Major Projects,"1,035.72",181.25,"1,216.97",08-Nov-10,COMMUNITIES,401903434NT     
Nottinghamshire County Council,TR004835,XMA LTD,4678880,ICT,Hardware,"5,467.00",956.73,"6,423.73",03-Nov-10,RESOURCES,13/I216445      
Nottinghamshire County Council,TR004835,XMA LTD,4678887,ICT,Hardware,"1,254.60",219.56,"1,474.16",03-Nov-10,RESOURCES,13/I216446      
Nottinghamshire County Council,TR004835,XMA LTD,4678887,ICT,Hardware,"2,024.70",354.32,"2,379.02",03-Nov-10,RESOURCES,13/I216446      
Nottinghamshire County Council,TR501022,VIRGIN MEDIA,4678938,ICT,Telecommunications Equipment & Services,532.4,93.17,625.57,08-Nov-10,COMMUNITIES,852297901001OC10
Nottinghamshire County Council,TR515269,JORDAN ROAD SURFACING LTD,4678940,Estate Management & Development,Highways & Works,"1,150.00",201.25,"1,351.25",22-Nov-10,COMMUNITIES,JRSL/10659      
Nottinghamshire County Council,TR515269,JORDAN ROAD SURFACING LTD,4678940,Estate Management & Development,Highways & Works,375,65.63,440.63,22-Nov-10,COMMUNITIES,JRSL/10659      
Nottinghamshire County Council,TR526300,ROOSTERS KIDS CLUB,4679143,Front Line Services,Education & Training,"1,085.00",0,"1,085.00",02-Nov-10,CHILDREN & YOUNG PEOPLE,7SUMMERHOLS     
Nottinghamshire County Council,TR535683,BOC,4680066,Utilities / Waste,Utilities,215.2,37.66,252.86,09-Nov-10,COMMUNITIES,3004010231
Nottinghamshire County Council,TR535683,BOC,4680066,Utilities / Waste,Utilities,201,35.18,236.18,09-Nov-10,COMMUNITIES,3004010231
Nottinghamshire County Council,TR535683,BOC,4680066,Utilities / Waste,Utilities,210,36.75,246.75,09-Nov-10,COMMUNITIES,3004010231
Nottinghamshire County Council,TR535683,BOC,4680066,Utilities / Waste,Utilities,"2,512.50",439.69,"2,952.19",09-Nov-10,COMMUNITIES,3004010231
Nottinghamshire County Council,TR535683,BOC,4680066,Utilities / Waste,Utilities,"1,050.00",183.75,"1,233.75",09-Nov-10,COMMUNITIES,3004010231
Nottinghamshire County Council,TR535683,BOC,4680066,Utilities / Waste,Utilities,"3,015.00",527.63,"3,542.63",09-Nov-10,COMMUNITIES,3004010231
Nottinghamshire County Council,TR535683,BOC,4680066,Utilities / Waste,Utilities,"1,050.00",183.75,"1,233.75",09-Nov-10,COMMUNITIES,3004010231
Nottinghamshire County Council,TR535683,BOC,4680066,Utilities / Waste,Utilities,402,70.35,472.35,09-Nov-10,COMMUNITIES,3004010231
Nottinghamshire County Council,TR535683,BOC,4680066,Utilities / Waste,Utilities,420,73.5,493.5,09-Nov-10,COMMUNITIES,3004010231
Nottinghamshire County Council,TR535683,BOC,4680066,Utilities / Waste,Utilities,201,35.18,236.18,09-Nov-10,COMMUNITIES,3004010231
Nottinghamshire County Council,TR535683,BOC,4680066,Utilities / Waste,Utilities,201,35.18,236.18,09-Nov-10,COMMUNITIES,3004010231
Nottinghamshire County Council,TR535683,BOC,4680066,Utilities / Waste,Utilities,100.5,17.59,118.09,09-Nov-10,COMMUNITIES,3004010231
Nottinghamshire County Council,TR535683,BOC,4680066,Utilities / Waste,Utilities,566,99.05,665.05,09-Nov-10,COMMUNITIES,3004010231
Nottinghamshire County Council,TR535683,BOC,4680066,Utilities / Waste,Utilities,566,99.05,665.05,09-Nov-10,COMMUNITIES,3004010231
Nottinghamshire County Council,TR535683,BOC,4680066,Utilities / Waste,Utilities,339.6,59.43,399.03,09-Nov-10,COMMUNITIES,3004010231
Nottinghamshire County Council,TR512379,RAI TECHNICAL LTD,4680079,Estate Management & Development,Mechanical & Electrical,750.6,131.36,881.96,29-Nov-10,COMMUNITIES,75019
Nottinghamshire County Council,TR512835,D-DRILL (MASTER DRILLERS) LTD,4680148,Estate Management & Development,Mechanical & Electrical,"1,560.00",273,"1,833.00",08-Nov-10,COMMUNITIES,C005164         
Nottinghamshire County Council,TR512835,D-DRILL (MASTER DRILLERS) LTD,4680148,Estate Management & Development,Mechanical & Electrical,126.9,22.21,149.11,08-Nov-10,COMMUNITIES,C005164         
Nottinghamshire County Council,TR512835,D-DRILL (MASTER DRILLERS) LTD,4680148,Estate Management & Development,Mechanical & Electrical,350,61.25,411.25,08-Nov-10,COMMUNITIES,C005164         
Nottinghamshire County Council,TR512835,D-DRILL (MASTER DRILLERS) LTD,4680148,Estate Management & Development,Mechanical & Electrical,194.58,34.05,228.63,08-Nov-10,COMMUNITIES,C005164         
Nottinghamshire County Council,TR514522,BCB COATED STONE LTD,4680164,Arms Length,Highways & Works,397.28,69.52,466.8,04-Nov-10,TBC,27638
Nottinghamshire County Council,TR514522,BCB COATED STONE LTD,4680164,Arms Length,Highways & Works,38.8,6.79,45.59,04-Nov-10,TBC,27638
Nottinghamshire County Council,TR514522,BCB COATED STONE LTD,4680164,Arms Length,Highways & Works,"1,304.28",228.25,"1,532.53",04-Nov-10,TBC,27638
Nottinghamshire County Council,TR327174,NEWARK CONCRETE,4680176,Estate Management & Development,Mechanical & Electrical,720,126,846,11-Nov-10,COMMUNITIES,97658
Nottinghamshire County Council,TR532703,NORTHAMPTON CALC,4680236,Government / Charity / Trust / Society / Association,Clubs & Groups,"19,500.00",0,"19,500.00",04-Nov-10,RESOURCES,EMIEPPROJ416MSOC
Nottinghamshire County Council,TR509580,DERBYSHIRE FIRE & RESCUE SERVICES,4680238,Government / Charity / Trust / Society / Association,Government Bodies,"7,150.00",0,"7,150.00",01-Nov-10,RESOURCES,EMIEPPROJ772MS  
Nottinghamshire County Council,TR509076,HOPKINSON PLANT HIRE LTD,4680355,Travel & Transportation,Fleet,789.5,138.16,927.66,15-Nov-10,COMMUNITIES,104581
Nottinghamshire County Council,TR004687,WOLSELEY UK LTD,4680837,Estate Management & Development,Mechanical & Electrical,574,100.45,674.45,03-Nov-10,RESOURCES,56864686
Nottinghamshire County Council,TR536564,7KS CORPORATE & FINANCE,4681157,Arms Length,EducationTraining,594.9,104.11,699.01,01-Nov-10,CHILDREN & YOUNG PEOPLE,NOTT/1096       
Nottinghamshire County Council,TR533717,IAN RAWLINS JOINERY SERVICES,4681196,Estate Management & Development,Mechanical & Electrical,775,0,775,03-Nov-10,RESOURCES,IJRS140         
Nottinghamshire County Council,TR533717,IAN RAWLINS JOINERY SERVICES,4681197,Estate Management & Development,Mechanical & Electrical,650,0,650,03-Nov-10,RESOURCES,IJRS141         
Nottinghamshire County Council,TR533717,IAN RAWLINS JOINERY SERVICES,4681210,Estate Management & Development,Mechanical & Electrical,635,0,635,03-Nov-10,RESOURCES,IJRS142         
Nottinghamshire County Council,TR349129,DIAL A ROD (DERBY) LTD,4681232,Estate Management & Development,Mechanical & Electrical,450,78.75,528.75,03-Nov-10,RESOURCES,62255
Nottinghamshire County Council,TR504636,TEAM FOSTERING,4681253,Front Line Services,Total Care,"3,777.35",0,"3,777.35",25-Nov-10,CHILDREN & YOUNG PEOPLE,12353
Nottinghamshire County Council,TR332197,TARMAC CENTRAL LTD,4681273,Estate Management & Development,Highways & Works,121.49,21.26,142.75,02-Nov-10,COMMUNITIES,9025837979
Nottinghamshire County Council,TR332197,TARMAC CENTRAL LTD,4681273,Estate Management & Development,Highways & Works,199.29,34.88,234.17,02-Nov-10,COMMUNITIES,9025837979
Nottinghamshire County Council,TR332197,TARMAC CENTRAL LTD,4681273,Estate Management & Development,Highways & Works,70.98,12.42,83.4,02-Nov-10,COMMUNITIES,9025837979
Nottinghamshire County Council,TR332197,TARMAC CENTRAL LTD,4681273,Estate Management & Development,Highways & Works,143.33,25.08,168.41,02-Nov-10,COMMUNITIES,9025837979
Nottinghamshire County Council,TR332197,TARMAC CENTRAL LTD,4681273,Estate Management & Development,Highways & Works,42,7.35,49.35,02-Nov-10,COMMUNITIES,9025837979
Nottinghamshire County Council,TR504636,TEAM FOSTERING,4681387,Front Line Services,Total Care,"3,777.35",0,"3,777.35",25-Nov-10,CHILDREN & YOUNG PEOPLE,12371
Nottinghamshire County Council,TR520286,NEWARK & SHERWOOD DISTRICT COUNCIL,4681475,Government / Charity / Trust / Society / Association,Council,"16,000.00",0,"16,000.00",05-Nov-10,RESOURCES,EMIEPPROJ718MS10
Nottinghamshire County Council,TR004835,XMA LTD,4681524,ICT,Hardware,491.28,85.97,577.25,02-Nov-10,RESOURCES,K1/I216128      
Nottinghamshire County Council,TR515150,THOMAS BOW LTD,4681525,Estate Management & Development,Mechanical & Electrical,"3,040.00",532,"3,572.00",10-Nov-10,COMMUNITIES,2374/2817       
Nottinghamshire County Council,TR515150,THOMAS BOW LTD,4681525,Estate Management & Development,Mechanical & Electrical,752,131.6,883.6,10-Nov-10,COMMUNITIES,2374/2817       
Nottinghamshire County Council,TR515150,THOMAS BOW LTD,4681525,Estate Management & Development,Mechanical & Electrical,560,98,658,10-Nov-10,COMMUNITIES,2374/2817       
Nottinghamshire County Council,TR515150,THOMAS BOW LTD,4681525,Estate Management & Development,Mechanical & Electrical,"1,264.00",221.2,"1,485.20",10-Nov-10,COMMUNITIES,2374/2817       
Nottinghamshire County Council,TR515150,THOMAS BOW LTD,4681525,Estate Management & Development,Mechanical & Electrical,696,121.8,817.8,10-Nov-10,COMMUNITIES,2374/2817       
Nottinghamshire County Council,TR515150,THOMAS BOW LTD,4681525,Estate Management & Development,Mechanical & Electrical,"4,048.00",708.4,"4,756.40",10-Nov-10,COMMUNITIES,2374/2817       
Nottinghamshire County Council,TR514784,W T BURDEN LTD,4681526,Estate Management & Development,Mechanical & Electrical,131.9,23.08,154.98,05-Nov-10,COMMUNITIES,49D133536       
Nottinghamshire County Council,TR514784,W T BURDEN LTD,4681526,Estate Management & Development,Mechanical & Electrical,135.94,23.79,159.73,05-Nov-10,COMMUNITIES,49D133536       
Nottinghamshire County Council,TR514784,W T BURDEN LTD,4681526,Estate Management & Development,Mechanical & Electrical,48.96,8.57,57.53,05-Nov-10,COMMUNITIES,49D133536       
Nottinghamshire County Council,TR514784,W T BURDEN LTD,4681526,Estate Management & Development,Mechanical & Electrical,24.86,4.35,29.21,05-Nov-10,COMMUNITIES,49D133536       
Nottinghamshire County Council,TR514784,W T BURDEN LTD,4681526,Estate Management & Development,Mechanical & Electrical,418.88,73.3,492.18,05-Nov-10,COMMUNITIES,49D133536       
Nottinghamshire County Council,TR514784,W T BURDEN LTD,4681526,Estate Management & Development,Mechanical & Electrical,63.2,11.06,74.26,05-Nov-10,COMMUNITIES,49D133536       
Nottinghamshire County Council,TR514784,W T BURDEN LTD,4681526,Estate Management & Development,Mechanical & Electrical,79.36,13.89,93.25,05-Nov-10,COMMUNITIES,49D133536       
Nottinghamshire County Council,TR514784,W T BURDEN LTD,4681526,Estate Management & Development,Mechanical & Electrical,77.35,13.54,90.89,05-Nov-10,COMMUNITIES,49D133536       
Nottinghamshire County Council,TR514784,W T BURDEN LTD,4681526,Estate Management & Development,Mechanical & Electrical,34.25,5.99,40.24,05-Nov-10,COMMUNITIES,49D133536       
Nottinghamshire County Council,TR514784,W T BURDEN LTD,4681527,Estate Management & Development,Mechanical & Electrical,967.5,169.31,"1,136.81",26-Nov-10,COMMUNITIES,49X133538       
Nottinghamshire County Council,TR514784,W T BURDEN LTD,4681527,Estate Management & Development,Mechanical & Electrical,961.45,168.25,"1,129.70",26-Nov-10,COMMUNITIES,49X133538       
Nottinghamshire County Council,TR514784,W T BURDEN LTD,4681527,Estate Management & Development,Mechanical & Electrical,40.5,7.09,47.59,26-Nov-10,COMMUNITIES,49X133538       
Nottinghamshire County Council,TR514779,KEYLINE BUILDERS MERCHANTS,4681528,Estate Management & Development,Mechanical & Electrical,"1,434.63",251.06,"1,685.69",11-Nov-10,COMMUNITIES,1356ADY831      
Nottinghamshire County Council,TR514779,KEYLINE BUILDERS MERCHANTS,4681528,Estate Management & Development,Mechanical & Electrical,160.72,28.13,188.85,11-Nov-10,COMMUNITIES,1356ADY831      
Nottinghamshire County Council,TR514779,KEYLINE BUILDERS MERCHANTS,4681528,Estate Management & Development,Mechanical & Electrical,24.74,4.33,29.07,11-Nov-10,COMMUNITIES,1356ADY831      
Nottinghamshire County Council,TR512085,J C BALLS & SONS,4681529,Estate Management & Development,Major Projects,673.15,117.8,790.95,11-Nov-10,COMMUNITIES,93421
Nottinghamshire County Council,TR512085,J C BALLS & SONS,4681530,Estate Management & Development,Major Projects,0,0.01,0.01,11-Nov-10,COMMUNITIES,93422
Nottinghamshire County Council,TR512085,J C BALLS & SONS,4681530,Estate Management & Development,Major Projects,"1,925.70",337,"2,262.70",11-Nov-10,COMMUNITIES,93422
Nottinghamshire County Council,TR004835,XMA LTD,4681545,ICT,Hardware,624.94,109.36,734.3,01-Nov-10,RESOURCES,K1/I215572      
Nottinghamshire County Council,TR033867,EDMUNDSON ELECTRICAL LTD,4682526,Estate Management & Development,Mechanical & Electrical,556.43,97.38,653.81,01-Nov-10,RESOURCES,136-119895      
Nottinghamshire County Council,TR004835,XMA LTD,4682541,ICT,Hardware,0,0.01,0.01,08-Nov-10,RESOURCES,K1/I220825      
Nottinghamshire County Council,TR004835,XMA LTD,4682541,ICT,Hardware,"1,778.25",311.19,"2,089.44",08-Nov-10,RESOURCES,K1/I220825      
Nottinghamshire County Council,TR004835,XMA LTD,4682542,ICT,Hardware,479.28,83.87,563.15,08-Nov-10,RESOURCES,K1/I220836      
Nottinghamshire County Council,TR534170,S F PLANT HIRE,4682589,Travel & Transportation,Fleet,965,0,965,08-Nov-10,COMMUNITIES,32
Nottinghamshire County Council,TR514623,A & V SQUIRES PLANT CO,4682591,Travel & Transportation,Fleet,"1,296.00",226.8,"1,522.80",24-Nov-10,COMMUNITIES,302903
Nottinghamshire County Council,TR514623,A & V SQUIRES PLANT CO,4682593,Travel & Transportation,Fleet,"1,251.00",218.93,"1,469.93",03-Nov-10,COMMUNITIES,302905
Nottinghamshire County Council,TR514623,A & V SQUIRES PLANT CO,4682595,Travel & Transportation,Fleet,"1,269.00",222.08,"1,491.08",01-Nov-10,COMMUNITIES,302906
Nottinghamshire County Council,TR514623,A & V SQUIRES PLANT CO,4682596,Travel & Transportation,Fleet,"1,380.00",241.5,"1,621.50",08-Nov-10,COMMUNITIES,302904
Nottinghamshire County Council,TR033867,EDMUNDSON ELECTRICAL LTD,4682605,Estate Management & Development,Mechanical & Electrical,480.4,84.07,564.47,04-Nov-10,RESOURCES,136-117819      
Nottinghamshire County Council,TR536497,BRIGHT BEGINNINGS DAY NURSERY,4685781,Arms Length,EducationTraining,668,0,668,19-Nov-10,COMMUNITIES,130910-270910   
Nottinghamshire County Council,TR100414,JACKSON BUILDING CENTRES LTD,4685834,Estate Management & Development,Mechanical & Electrical,903.74,158.15,"1,061.89",26-Nov-10,RESOURCES,10/SA/00045     
Nottinghamshire County Council,TR536244,ON-CALL RECRUITMENT,4685923,Professional Services,Recruitment,669.6,117.18,786.78,04-Nov-10,COMMUNITIES,8869
Nottinghamshire County Council,TR512363,PEEK TRAFFIC LTD,4685924,Professional Services,Consultancy,320,56,376,22-Nov-10,COMMUNITIES,10005839UI      
Nottinghamshire County Council,TR512363,PEEK TRAFFIC LTD,4685924,Professional Services,Consultancy,295,51.63,346.63,22-Nov-10,COMMUNITIES,10005839UI      
Nottinghamshire County Council,TR508965,N & S WRIGHT LTD,4685946,Professional Services,Professional Services,915,160.13,"1,075.13",09-Nov-10,TBC,4569
Nottinghamshire County Council,TR533577,LAFFRAN PLANT HIRE,4685947,Travel & Transportation,Fleet,0,-0.01,-0.01,03-Nov-10,COMMUNITIES,1766
Nottinghamshire County Council,TR533577,LAFFRAN PLANT HIRE,4685947,Travel & Transportation,Fleet,"1,432.50",250.69,"1,683.19",03-Nov-10,COMMUNITIES,1766
Nottinghamshire County Council,TR535128,NOTTINGHAM & NOTTINGHAMSHIRE FUTURES LTD,4685951,Arms Length,TotalCare,"467,978.00","81,896.15","549,874.15",01-Nov-10,CHILDREN & YOUNG PEOPLE,CNX/PAYP OCT 10 
Nottinghamshire County Council,TR535128,NOTTINGHAM & NOTTINGHAMSHIRE FUTURES LTD,4685951,Arms Length,TotalCare,"11,550.00","2,021.25","13,571.25",01-Nov-10,CHILDREN & YOUNG PEOPLE,CNX/PAYP OCT 10 
Nottinghamshire County Council,TR501022,VIRGIN MEDIA,4685967,ICT,Telecommunications Equipment & Services,"1,120.75",196.13,"1,316.88",02-Nov-10,RESOURCES,852416201001/7  
Nottinghamshire County Council,TR501022,VIRGIN MEDIA,4685968,ICT,Telecommunications Equipment & Services,458.35,80.21,538.56,02-Nov-10,RESOURCES,853455001001/7  
Nottinghamshire County Council,TR501022,VIRGIN MEDIA,4685968,ICT,Telecommunications Equipment & Services,379.36,66.39,445.75,02-Nov-10,RESOURCES,853455001001/7  
Nottinghamshire County Council,TR501022,VIRGIN MEDIA,4685974,ICT,Telecommunications Equipment & Services,628.8,110.04,738.84,02-Nov-10,RESOURCES,852164501001/7  
Nottinghamshire County Council,TR501022,VIRGIN MEDIA,4685974,ICT,Telecommunications Equipment & Services,"1,316.35",230.36,"1,546.71",02-Nov-10,RESOURCES,852164501001/7  
Nottinghamshire County Council,TR501022,VIRGIN MEDIA,4685978,ICT,Telecommunications Equipment & Services,451.38,78.99,530.37,02-Nov-10,RESOURCES,853022301001/7  
Nottinghamshire County Council,TR501022,VIRGIN MEDIA,4685978,ICT,Telecommunications Equipment & Services,425.99,74.55,500.54,02-Nov-10,RESOURCES,853022301001/7  
Nottinghamshire County Council,TR501022,VIRGIN MEDIA,4685986,ICT,Telecommunications Equipment & Services,343,60.03,403.03,02-Nov-10,RESOURCES,851771501001/7  
Nottinghamshire County Council,TR501022,VIRGIN MEDIA,4685986,ICT,Telecommunications Equipment & Services,148.11,25.92,174.03,02-Nov-10,RESOURCES,851771501001/7  
Nottinghamshire County Council,TR501022,VIRGIN MEDIA,4686000,ICT,Telecommunications Equipment & Services,710,124.25,834.25,02-Nov-10,RESOURCES,945595001001/7  
Nottinghamshire County Council,TR501022,VIRGIN MEDIA,4686010,ICT,Telecommunications Equipment & Services,685.6,119.98,805.58,02-Nov-10,RESOURCES,851979201001/7  
Nottinghamshire County Council,TR501022,VIRGIN MEDIA,4686010,ICT,Telecommunications Equipment & Services,139.74,24.45,164.19,02-Nov-10,RESOURCES,851979201001/7  
Nottinghamshire County Council,TR501022,VIRGIN MEDIA,4686025,ICT,Telecommunications Equipment & Services,526.4,92.12,618.52,02-Nov-10,RESOURCES,945595701001/7  
Nottinghamshire County Council,TR004835,XMA LTD,4686057,ICT,Hardware,479.28,83.87,563.15,01-Nov-10,RESOURCES,K1/I215564      
Nottinghamshire County Council,TR004835,XMA LTD,4686058,ICT,Hardware,654.14,114.47,768.61,01-Nov-10,RESOURCES,K1/I215571      
Nottinghamshire County Council,TR004835,XMA LTD,4686059,ICT,Hardware,"9,064.00","1,586.20","10,650.20",01-Nov-10,RESOURCES,K1/I215506      
Nottinghamshire County Council,TR004835,XMA LTD,4686060,ICT,Hardware,0,0.01,0.01,01-Nov-10,RESOURCES,K1/I215504      
Nottinghamshire County Council,TR004835,XMA LTD,4686060,ICT,Hardware,832.88,145.75,978.63,01-Nov-10,RESOURCES,K1/I215504      
Nottinghamshire County Council,TR001357,AUDIT COMMISSION,4686062,Government / Charity / Trust / Society / Association,Government Bodies,"4,000.00",700,"4,700.00",01-Nov-10,RESOURCES,6169242
Nottinghamshire County Council,TR534823,SMILE REHAB LTD,4686096,Front Line Services,Total Care,"2,090.00",365.75,"2,455.75",02-Nov-10,CHILDREN & YOUNG PEOPLE,4188
Nottinghamshire County Council,TR534823,SMILE REHAB LTD,4686096,Front Line Services,Total Care,0,0.01,0.01,02-Nov-10,RESOURCES,4188
Nottinghamshire County Council,TR534823,SMILE REHAB LTD,4686097,Front Line Services,Total Care,500,87.5,587.5,03-Nov-10,CHILDREN & YOUNG PEOPLE,4194
Nottinghamshire County Council,TR087652,D J & M BOWER (TARMAC ROADSURFACING),4687417,Estate Management & Development,Highways & Works,"4,820.00",843.5,"5,663.50",08-Nov-10,COMMUNITIES,3866
Nottinghamshire County Council,TR087652,D J & M BOWER (TARMAC ROADSURFACING),4687418,Estate Management & Development,Highways & Works,"7,986.00","1,397.55","9,383.55",08-Nov-10,COMMUNITIES,3863
Nottinghamshire County Council,TR530728,FIRST ORDER RED LTD,4687450,Utilities / Waste,Waste,462.25,80.89,543.14,05-Nov-10,RESOURCES,1699
Nottinghamshire County Council,TR348222,D TOWLE CONSTRUCTION,4687492,Estate Management & Development,Major Projects,460,80.5,540.5,01-Nov-10,RESOURCES,DHT/70A         
Nottinghamshire County Council,TR515312,CITY ELECT FACTORS (TRENT DIVISON) LTD,4687558,Estate Management & Development,Mechanical & Electrical,0,0.01,0.01,04-Nov-10,RESOURCES,NOT/137826      
Nottinghamshire County Council,TR515312,CITY ELECT FACTORS (TRENT DIVISON) LTD,4687558,Estate Management & Development,Mechanical & Electrical,693.17,121.3,814.47,04-Nov-10,RESOURCES,NOT/137826      
Nottinghamshire County Council,TR202177,SPEEDY ASSET SERVICES LTD,4687571,Professional Services,"Design, Print & Communication",52.8,9.24,62.04,01-Nov-10,RESOURCES,7002431308
Nottinghamshire County Council,TR202177,SPEEDY ASSET SERVICES LTD,4687571,Professional Services,"Design, Print & Communication",792,138.6,930.6,01-Nov-10,RESOURCES,7002431308
Nottinghamshire County Council,TR004687,WOLSELEY UK LTD,4687611,Estate Management & Development,Mechanical & Electrical,"2,151.67",376.54,"2,528.21",01-Nov-10,RESOURCES,56993487
Nottinghamshire County Council,TR004687,WOLSELEY UK LTD,4687612,Estate Management & Development,Mechanical & Electrical,"1,177.20",206.01,"1,383.21",02-Nov-10,RESOURCES,56993488
Nottinghamshire County Council,TR004835,XMA LTD,4687613,ICT,Hardware,"1,673.62",292.88,"1,966.50",09-Nov-10,RESOURCES,K1/I222388      
Nottinghamshire County Council,TR004687,WOLSELEY UK LTD,4687614,Estate Management & Development,Mechanical & Electrical,"3,940.16",689.53,"4,629.69",01-Nov-10,RESOURCES,56993490
Nottinghamshire County Council,TR004067,MANSFIELD REFRIG & AIR COND CO LTD,4687616,Estate Management & Development,Mechanical & Electrical,885,154.88,"1,039.88",11-Nov-10,RESOURCES,C5418           
Nottinghamshire County Council,TR004147,VIGLEN LTD,4687617,ICT,Hardware,"1,597.98",279.65,"1,877.63",08-Nov-10,RESOURCES,2270058
Nottinghamshire County Council,TR022764,ASHFIELD DISTRICT COUNCIL,4687920,Front Line Services,Total Care,"2,212.00",0,"2,212.00",11-Nov-10,COMMUNITIES,EMDS EMXA06003  
Nottinghamshire County Council,TR511216,PROMOTIONAL INCENTIVE GIFT LTD,4687978,Professional Services,"Design, Print & Communication",866.75,151.68,"1,018.43",11-Nov-10,ASCH,S10.09/14250    
Nottinghamshire County Council,TR511216,PROMOTIONAL INCENTIVE GIFT LTD,4687984,Professional Services,"Design, Print & Communication","1,140.00",199.5,"1,339.50",11-Nov-10,ASCH,S10.09/14251    
Nottinghamshire County Council,TR508826,A1 MINI-MIX CONCRETE LTD,4688020,Estate Management & Development,Mechanical & Electrical,0,-0.01,-0.01,12-Nov-10,RESOURCES,17820
Nottinghamshire County Council,TR508826,A1 MINI-MIX CONCRETE LTD,4688020,Estate Management & Development,Mechanical & Electrical,501,87.68,588.68,12-Nov-10,RESOURCES,17820
Nottinghamshire County Council,TR508826,A1 MINI-MIX CONCRETE LTD,4688020,Estate Management & Development,Mechanical & Electrical,208.75,36.53,245.28,12-Nov-10,RESOURCES,17820
Nottinghamshire County Council,TR508826,A1 MINI-MIX CONCRETE LTD,4688020,Estate Management & Development,Mechanical & Electrical,267.2,46.76,313.96,12-Nov-10,RESOURCES,17820
Nottinghamshire County Council,TR508826,A1 MINI-MIX CONCRETE LTD,4688020,Estate Management & Development,Mechanical & Electrical,84,14.7,98.7,12-Nov-10,RESOURCES,17820
Nottinghamshire County Council,TR508826,A1 MINI-MIX CONCRETE LTD,4688020,Estate Management & Development,Mechanical & Electrical,10.5,1.84,12.34,12-Nov-10,RESOURCES,17820
Nottinghamshire County Council,TR507791,ASHFIELD RUGBY UNION FC,4688078,Front Line Services,Sports & Leisure,"3,360.00",0,"3,360.00",01-Nov-10,CHILDREN & YOUNG PEOPLE,309
Nottinghamshire County Council,TR532655,SHAREDSERVICE ARCHITECTS,4688094,Professional Services,Consultancy,"3,464.41",606.27,"4,070.68",08-Nov-10,RESOURCES,2010/32         
Nottinghamshire County Council,TR534992,LEICESTER RACECOURSE LTD,4688095,Travel & Transportation,Travel & Accomodation ,"2,466.00",431.55,"2,897.55",05-Nov-10,RESOURCES,3089
Nottinghamshire County Council,TR534992,LEICESTER RACECOURSE LTD,4688095,Travel & Transportation,Travel & Accomodation ,0,0.01,0.01,05-Nov-10,RESOURCES,3089
Nottinghamshire County Council,TR535176,MCGLADE CONSULTING LTD,4688098,Professional Services,Consultancy,"7,209.10","1,261.59","8,470.69",09-Nov-10,RESOURCES,2010/3/119      
Nottinghamshire County Council,TR517051,ASD METAL SERVICES,4688146,Estate Management & Development,Mechanical & Electrical,0,-0.01,-0.01,01-Nov-10,COMMUNITIES,53772776
Nottinghamshire County Council,TR517051,ASD METAL SERVICES,4688146,Estate Management & Development,Mechanical & Electrical,975,170.63,"1,145.63",01-Nov-10,COMMUNITIES,53772776
Nottinghamshire County Council,TR517051,ASD METAL SERVICES,4688146,Estate Management & Development,Mechanical & Electrical,205,35.88,240.88,01-Nov-10,COMMUNITIES,53772776
Nottinghamshire County Council,TR310887,BARKER ROSS LTD,4688147,Professional Services,Recruitment,"1,278.20",223.69,"1,501.89",29-Nov-10,COMMUNITIES,12129220
Nottinghamshire County Council,TR003536,SMITH BROS CAERCONAN WHOLESALE LTD,4688153,Estate Management & Development,Mechanical & Electrical,840,147,987,25-Nov-10,COMMUNITIES,1039926
Nottinghamshire County Council,TR003536,SMITH BROS CAERCONAN WHOLESALE LTD,4688153,Estate Management & Development,Mechanical & Electrical,7.2,1.26,8.46,25-Nov-10,COMMUNITIES,1039926
Nottinghamshire County Council,TR045981,A I S TOTAL SECURITY LTD,4688255,Facilities Management,Security,714.48,125.03,839.51,11-Nov-10,COMMUNITIES,68247
Nottinghamshire County Council,TR313687,SHARPLINE DECORATORS LTD,4689459,Estate Management & Development,Mechanical & Electrical,"3,790.00",663.25,"4,453.25",29-Nov-10,RESOURCES,2092
Nottinghamshire County Council,TR535911,ABBEYGREY LTD,4689688,FM Hard,MechanicalElectrical,"1,186.00",207.55,"1,393.55",08-Nov-10,ASCH,8102010
Nottinghamshire County Council,TR523178,FEET (LINE MARKERS ) LTD,4689713,Front Line Services,Sports & Leisure,820,143.5,963.5,01-Nov-10,COMMUNITIES,SL115154        
Nottinghamshire County Council,TR523178,FEET (LINE MARKERS ) LTD,4689714,Front Line Services,Sports & Leisure,820,143.5,963.5,01-Nov-10,COMMUNITIES,SL115155        
Nottinghamshire County Council,TR049879,ASHWELL MAINTENANCE LTD,4689964,Estate Management & Development,Mechanical & Electrical,"1,648.92",288.56,"1,937.48",01-Nov-10,RESOURCES,39707
Nottinghamshire County Council,TR521464,PIKEMASTER,4689967,Estate Management & Development,Mechanical & Electrical,860.3,150.55,"1,010.85",03-Nov-10,RESOURCES,6952
Nottinghamshire County Council,TR515242,GREENAWAY AMENITY LTD,4689982,Estate Management & Development,Mechanical & Electrical,900,157.5,"1,057.50",12-Nov-10,COMMUNITIES,GO104750        
Nottinghamshire County Council,TR514623,A & V SQUIRES PLANT CO,4690030,Travel & Transportation,Fleet,"1,269.00",222.08,"1,491.08",18-Nov-10,COMMUNITIES,302941
Nottinghamshire County Council,TR514623,A & V SQUIRES PLANT CO,4690031,Travel & Transportation,Fleet,"1,221.00",213.68,"1,434.68",26-Nov-10,COMMUNITIES,302940
Nottinghamshire County Council,TR514623,A & V SQUIRES PLANT CO,4690032,Travel & Transportation,Fleet,"1,041.00",182.18,"1,223.18",11-Nov-10,TBC,302939
Nottinghamshire County Council,TR514623,A & V SQUIRES PLANT CO,4690033,Travel & Transportation,Fleet,650,113.75,763.75,23-Nov-10,COMMUNITIES,302934
Nottinghamshire County Council,TR508508,HOWDENS JOINERY CO,4690107,Estate Management & Development,Mechanical & Electrical,"1,007.50",176.31,"1,183.81",01-Nov-10,RESOURCES,C27/0025542     
Nottinghamshire County Council,TR513042,BUSY BEES PRE-SCHOOL (SUTTON),4690281,Front Line Services,Education & Training,"1,250.00",0,"1,250.00",09-Nov-10,CHILDREN & YOUNG PEOPLE,GLF HGGI JULIAN 
Nottinghamshire County Council,TR329922,BUTTERCROSS PRE-SCHOOL,4690282,Front Line Services,Education & Training,"1,250.00",0,"1,250.00",09-Nov-10,CHILDREN & YOUNG PEOPLE,GLF HGGI MARRS  
Nottinghamshire County Council,TR004835,XMA LTD,4690304,ICT,Hardware,"2,360.28",413.05,"2,773.33",03-Nov-10,RESOURCES,OP/P502654      
Nottinghamshire County Council,TR004835,XMA LTD,4690305,ICT,Hardware,"13,850.58","2,423.85","16,274.43",03-Nov-10,RESOURCES,OP/P502656      
Nottinghamshire County Council,TR345702,NURSERY CARE UK LTD,4691232,Front Line Services,Education & Training,"1,250.00",0,"1,250.00",09-Nov-10,CHILDREN & YOUNG PEOPLE,GLF HGGI CRESSWE
Nottinghamshire County Council,TR345702,NURSERY CARE UK LTD,4691233,Front Line Services,Education & Training,"1,250.00",0,"1,250.00",09-Nov-10,CHILDREN & YOUNG PEOPLE,GLF HGGI SQUIRES
Nottinghamshire County Council,TR523214,SYNERGY GROUP,4691239,Professional Services,Recruitment,"1,295.00",226.63,"1,521.63",01-Nov-10,CHILDREN & YOUNG PEOPLE,10301216
Nottinghamshire County Council,TR523214,SYNERGY GROUP,4691240,Professional Services,Recruitment,"1,295.00",226.63,"1,521.63",01-Nov-10,CHILDREN & YOUNG PEOPLE,10301309
Nottinghamshire County Council,TR327075,HOLLIES COUNTRY PARK NURSERY,4691262,Front Line Services,Education & Training,"1,250.00",0,"1,250.00",09-Nov-10,CHILDREN & YOUNG PEOPLE,GLF HGGI HEADFOR
Nottinghamshire County Council,TR203751,OFFICE INNOVATIONS,4691286,Facilities Management,Furniture,951,166.43,"1,117.43",04-Nov-10,RESOURCES,IN00037155      
Nottinghamshire County Council,TR513348,NURSERYWORLD & FRIENDS NURSERY & PRE-SCH,4691310,Front Line Services,Education & Training,"1,250.00",0,"1,250.00",09-Nov-10,CHILDREN & YOUNG PEOPLE,GLF HGGI MILBURN
Nottinghamshire County Council,TR532806,CROMWELL POLYTHENE LTD,4691365,FM Hard,Mechanical & Electrical,"1,214.00",212.45,"1,426.45",01-Nov-10,RESOURCES,INV0058011      
Nottinghamshire County Council,TR536584,EMO OIL LTD,4691539,Utilities / Waste,Utilities,"4,039.20",706.86,"4,746.06",10-Nov-10,COMMUNITIES,5155893
Nottinghamshire County Council,TR536584,EMO OIL LTD,4691539,Utilities / Waste,Utilities,26,4.55,30.55,10-Nov-10,COMMUNITIES,5155893
Nottinghamshire County Council,TR004147,VIGLEN LTD,4691552,ICT,Hardware,658.99,115.32,774.31,10-Nov-10,RESOURCES,2270194
Nottinghamshire County Council,TR536244,ON-CALL RECRUITMENT,4691723,Professional Services,Recruitment,688.2,120.44,808.64,11-Nov-10,COMMUNITIES,8912
Nottinghamshire County Council,TR530728,FIRST ORDER RED LTD,4691838,Utilities / Waste,Waste,612,107.1,719.1,05-Nov-10,CHILDREN & YOUNG PEOPLE,1687
Nottinghamshire County Council,TR530728,FIRST ORDER RED LTD,4691839,Utilities / Waste,Waste,0,0.01,0.01,05-Nov-10,RESOURCES,1671
Nottinghamshire County Council,TR530728,FIRST ORDER RED LTD,4691839,Utilities / Waste,Waste,626,109.55,735.55,05-Nov-10,RESOURCES,1671
Nottinghamshire County Council,TR535233,HEMPSALL CONSULTANCIES LTD,4691856,FM Hard,Consultancy,700,122.5,822.5,09-Nov-10,CHILDREN & YOUNG PEOPLE,10/1979Nottinghamshire-TRG
Nottinghamshire County Council,TR325549,NORTH MIDLAND CONSTRUCTION PLC,4692046,Professional Services,Professional Services,"141,836.22","24,821.34","166,657.56",18-Nov-10,COMMUNITIES,3
Nottinghamshire County Council,TR097412,PARKER MERCHANTING LTD,4692927,Estate Management & Development,Major Projects,196,34.3,230.3,26-Nov-10,COMMUNITIES,341909910
Nottinghamshire County Council,TR097412,PARKER MERCHANTING LTD,4692927,Estate Management & Development,Major Projects,236.7,41.42,278.12,26-Nov-10,COMMUNITIES,341909910
Nottinghamshire County Council,TR097412,PARKER MERCHANTING LTD,4692927,Estate Management & Development,Major Projects,166.8,29.19,195.99,26-Nov-10,COMMUNITIES,341909910
Nottinghamshire County Council,TR097412,PARKER MERCHANTING LTD,4692927,Estate Management & Development,Major Projects,13.2,2.31,15.51,26-Nov-10,COMMUNITIES,341909910
Nottinghamshire County Council,TR097412,PARKER MERCHANTING LTD,4692927,Estate Management & Development,Major Projects,226.7,39.67,266.37,26-Nov-10,COMMUNITIES,341909910
Nottinghamshire County Council,TR509076,HOPKINSON PLANT HIRE LTD,4693031,Travel & Transportation,Fleet,"1,136.50",198.89,"1,335.39",11-Nov-10,COMMUNITIES,104584
Nottinghamshire County Council,TR534170,S F PLANT HIRE,4693032,Travel & Transportation,Fleet,940,0,940,26-Nov-10,COMMUNITIES,33
Nottinghamshire County Council,TR004147,VIGLEN LTD,4693080,ICT,Hardware,563.06,98.54,661.6,11-Nov-10,RESOURCES,2270272
Nottinghamshire County Council,TR009673,NESTLE UK LTD,4693242,FM Soft,Food ,709.2,0,709.2,01-Nov-10,ASCH,918994432
Nottinghamshire County Council,TR531925,LINCOLNSHIRE COUNTY COUNCIL-CNTY FUND,4693250,Government / Charity / Trust / Society / Association,Council,"17,000.00",0,"17,000.00",11-Nov-10,RESOURCES,EMIEPPROJ993MS  
Nottinghamshire County Council,TR332197,TARMAC CENTRAL LTD,4693254,Estate Management & Development,Highways & Works,468,81.9,549.9,09-Nov-10,COMMUNITIES,9025864859
Nottinghamshire County Council,TR332197,TARMAC CENTRAL LTD,4693257,Estate Management & Development,Highways & Works,0,-0.01,-0.01,09-Nov-10,COMMUNITIES,9025864862
Nottinghamshire County Council,TR332197,TARMAC CENTRAL LTD,4693257,Estate Management & Development,Highways & Works,562.7,98.47,661.17,09-Nov-10,COMMUNITIES,9025864862
Nottinghamshire County Council,TR332197,TARMAC CENTRAL LTD,4693257,Estate Management & Development,Highways & Works,86.21,15.09,101.3,09-Nov-10,COMMUNITIES,9025864862
Nottinghamshire County Council,TR332197,TARMAC CENTRAL LTD,4693262,Estate Management & Development,Highways & Works,0,-0.01,-0.01,03-Nov-10,COMMUNITIES,9025858261
Nottinghamshire County Council,TR332197,TARMAC CENTRAL LTD,4693262,Estate Management & Development,Highways & Works,470.66,82.37,553.03,03-Nov-10,COMMUNITIES,9025858261
Nottinghamshire County Council,TR332197,TARMAC CENTRAL LTD,4693268,Estate Management & Development,Highways & Works,0,-0.01,-0.01,09-Nov-10,COMMUNITIES,9025871495
Nottinghamshire County Council,TR332197,TARMAC CENTRAL LTD,4693268,Estate Management & Development,Highways & Works,171.99,30.1,202.09,09-Nov-10,COMMUNITIES,9025871495
Nottinghamshire County Council,TR332197,TARMAC CENTRAL LTD,4693268,Estate Management & Development,Highways & Works,309.86,54.23,364.09,09-Nov-10,COMMUNITIES,9025871495
Nottinghamshire County Council,TR512379,RAI TECHNICAL LTD,4693515,Estate Management & Development,Mechanical & Electrical,763.56,133.62,897.18,29-Nov-10,COMMUNITIES,75164
Nottinghamshire County Council,TR512379,RAI TECHNICAL LTD,4693516,Estate Management & Development,Mechanical & Electrical,"1,223.99",214.2,"1,438.19",29-Nov-10,COMMUNITIES,75165
Nottinghamshire County Council,TR535009,JOADCLAIM LTD,4693539,Arms Length,EducationTraining,843.6,147.63,991.23,02-Nov-10,COMMUNITIES,41997
Nottinghamshire County Council,TR514774,URBIS LIGHTING LTD,4693548,Estate Management & Development,Mechanical & Electrical,"1,527.70",267.35,"1,795.05",04-Nov-10,COMMUNITIES,1180304
Nottinghamshire County Council,TR514774,URBIS LIGHTING LTD,4693548,Estate Management & Development,Mechanical & Electrical,20,3.5,23.5,04-Nov-10,COMMUNITIES,1180304
Nottinghamshire County Council,TR354336,ADR TOWING EQUIPMENT,4693550,Travel & Transportation,Fleet,20,3.5,23.5,12-Nov-10,COMMUNITIES,4726
Nottinghamshire County Council,TR354336,ADR TOWING EQUIPMENT,4693550,Travel & Transportation,Fleet,507.5,88.81,596.31,12-Nov-10,COMMUNITIES,4726
Nottinghamshire County Council,TR526986,ACIDISATION CO LTD,4693679,Utilities / Waste,Waste,460.6,80.61,541.21,12-Nov-10,COMMUNITIES,WTS1374         
Nottinghamshire County Council,TR312497,AQUAJET (GB) LTD,4693681,Estate Management & Development,Mechanical & Electrical,741.65,129.79,871.44,11-Nov-10,COMMUNITIES,15722
Nottinghamshire County Council,TR312497,AQUAJET (GB) LTD,4693681,Estate Management & Development,Mechanical & Electrical,270,47.25,317.25,11-Nov-10,COMMUNITIES,15722
Nottinghamshire County Council,TR513047,LINKLINE MAINTENANCE SERVICES LTD,4693751,Estate Management & Development,Major Projects,30.24,5.29,35.53,11-Nov-10,COMMUNITIES,53739
Nottinghamshire County Council,TR513047,LINKLINE MAINTENANCE SERVICES LTD,4693751,Estate Management & Development,Major Projects,32.4,5.67,38.07,11-Nov-10,COMMUNITIES,53739
Nottinghamshire County Council,TR513047,LINKLINE MAINTENANCE SERVICES LTD,4693751,Estate Management & Development,Major Projects,545.54,95.47,641.01,11-Nov-10,COMMUNITIES,53739
Nottinghamshire County Council,TR513537,TOWER SURVEYS LTD,4693754,Facilities Management,Grounds Maintenance,"1,742.50",304.94,"2,047.44",18-Nov-10,COMMUNITIES,12594
Nottinghamshire County Council,TR516204,FARNSFIELD ST MICHAELS C OF E PRIMARY,4693824,Front Line Services,Education & Training,"2,252.83",0,"2,252.83",05-Nov-10,RESOURCES,0104832FARNSFIEL
Nottinghamshire County Council,TR205065,NOTTINGHAMSHIRE PROBATION SERVICE,4698061,Government / Charity / Trust / Society / Association,Clubs & Groups,"11,000.00","1,925.00","12,925.00",02-Nov-10,COMMUNITIES,24
Nottinghamshire County Council,TR205065,NOTTINGHAMSHIRE PROBATION SERVICE,4698061,Government / Charity / Trust / Society / Association,Clubs & Groups,"1,500.00",262.5,"1,762.50",02-Nov-10,COMMUNITIES,24
Nottinghamshire County Council,TR025805,BRITVIC SOFT DRINKS LTD,4698063,Facilities Management,Food & Catering,458.75,80.28,539.03,02-Nov-10,COMMUNITIES,94096311
Nottinghamshire County Council,TR523108,KIER REGIONAL LTD T/A KIER MARRIOTT,4698125,Estate Management & Development,Major Projects,"15,608.23","2,731.44","18,339.67",03-Nov-10,COMMUNITIES,10040002
Nottinghamshire County Council,TR523108,KIER REGIONAL LTD T/A KIER MARRIOTT,4698126,Estate Management & Development,Major Projects,"3,313.59",579.88,"3,893.47",02-Nov-10,CHILDREN & YOUNG PEOPLE,10040001
Nottinghamshire County Council,TR004835,XMA LTD,4698173,ICT,Hardware,464.67,81.32,545.99,15-Nov-10,RESOURCES,K1/I226998      
Nottinghamshire County Council,TR004835,XMA LTD,4698181,ICT,Hardware,"2,616.56",457.9,"3,074.46",15-Nov-10,RESOURCES,K1/I226777      
Nottinghamshire County Council,TR331359,A G D SYSTEMS LTD,4698577,Estate Management & Development,Mechanical & Electrical,670,117.25,787.25,08-Nov-10,COMMUNITIES,220355
Nottinghamshire County Council,TR331359,A G D SYSTEMS LTD,4698577,Estate Management & Development,Mechanical & Electrical,780,136.5,916.5,08-Nov-10,COMMUNITIES,220355
Nottinghamshire County Council,TR331359,A G D SYSTEMS LTD,4698577,Estate Management & Development,Mechanical & Electrical,30,5.25,35.25,08-Nov-10,COMMUNITIES,220355
Nottinghamshire County Council,TR514784,W T BURDEN LTD,4698578,Estate Management & Development,Mechanical & Electrical,501.28,87.72,589,11-Nov-10,COMMUNITIES,49C133358       
Nottinghamshire County Council,TR530792,ELECSERVE LTD,4698703,Estate Management & Development,Mechanical & Electrical,620,108.5,728.5,10-Nov-10,RESOURCES,0256/10         
Nottinghamshire County Council,TR530792,ELECSERVE LTD,4698705,Estate Management & Development,Mechanical & Electrical,590,103.25,693.25,10-Nov-10,RESOURCES,0255/10         
Nottinghamshire County Council,TR313316,BUNZL CATERING SERVICES,4698713,Facilities Management,Cleaning Services,328.12,57.42,385.54,02-Nov-10,COMMUNITIES,7912960
Nottinghamshire County Council,TR313316,BUNZL CATERING SERVICES,4698713,Facilities Management,Cleaning Services,797.74,139.6,937.34,02-Nov-10,COMMUNITIES,7912960
Nottinghamshire County Council,TR313316,BUNZL CATERING SERVICES,4698713,Facilities Management,Cleaning Services,419.45,73.4,492.85,02-Nov-10,COMMUNITIES,7912960
Nottinghamshire County Council,TR306976,STAGECOACH EAST MIDLAND,4698901,Travel & Transportation,Passenger Transport,"3,250.00",0,"3,250.00",02-Nov-10,COMMUNITIES,702645
Nottinghamshire County Council,TR306976,STAGECOACH EAST MIDLAND,4698902,Travel & Transportation,Passenger Transport,"4,550.00",0,"4,550.00",02-Nov-10,COMMUNITIES,702646
Nottinghamshire County Council,TR306976,STAGECOACH EAST MIDLAND,4698903,Travel & Transportation,Passenger Transport,"3,250.00",0,"3,250.00",02-Nov-10,COMMUNITIES,702647
Nottinghamshire County Council,TR306976,STAGECOACH EAST MIDLAND,4698935,Travel & Transportation,Passenger Transport,"10,010.00",0,"10,010.00",02-Nov-10,COMMUNITIES,702648
Nottinghamshire County Council,TR306976,STAGECOACH EAST MIDLAND,4698936,Travel & Transportation,Passenger Transport,"41,618.71",0,"41,618.71",02-Nov-10,COMMUNITIES,702535
Nottinghamshire County Council,TR531182,CARE UK CARE SOLUTIONS LTD,4698951,Front Line Services,Total Care,"3,457.64",0,"3,457.64",16-Nov-10,ASCH,3.30E+12
Nottinghamshire County Council,TR531182,CARE UK CARE SOLUTIONS LTD,4698952,Front Line Services,Total Care,"2,537.64",0,"2,537.64",16-Nov-10,ASCH,3.30E+12
Nottinghamshire County Council,TR004202,TRENT MOTOR TRACTION COMPANY LTD,4698953,Travel & Transportation,Passenger Transport,"9,563.58",0,"9,563.58",05-Nov-10,COMMUNITIES,OP/I016566      
Nottinghamshire County Council,TR004202,TRENT MOTOR TRACTION COMPANY LTD,4698954,Travel & Transportation,Passenger Transport,"3,065.14",0,"3,065.14",08-Nov-10,COMMUNITIES,OP/I016581      
Nottinghamshire County Council,TR004202,TRENT MOTOR TRACTION COMPANY LTD,4698955,Travel & Transportation,Passenger Transport,"3,491.54",0,"3,491.54",08-Nov-10,COMMUNITIES,OP/I016580      
Nottinghamshire County Council,TR004202,TRENT MOTOR TRACTION COMPANY LTD,4698963,Travel & Transportation,Passenger Transport,"3,518.06",0,"3,518.06",05-Nov-10,COMMUNITIES,OP/I016570      
Nottinghamshire County Council,TR004202,TRENT MOTOR TRACTION COMPANY LTD,4698964,Travel & Transportation,Passenger Transport,"9,168.38",0,"9,168.38",05-Nov-10,COMMUNITIES,OP/I016572      
Nottinghamshire County Council,TR004202,TRENT MOTOR TRACTION COMPANY LTD,4698964,Travel & Transportation,Passenger Transport,-515.87,0,-515.87,05-Nov-10,COMMUNITIES,OP/I016572      
Nottinghamshire County Council,TR531084,TALK PAPER,4698965,Facilities Management,Office Supplies,"1,401.60",245.28,"1,646.88",04-Nov-10,RESOURCES,JN 9594479      
Nottinghamshire County Council,TR352706,PREMIERE TRAVEL LTD,4698975,Travel & Transportation,Passenger Transport,"2,460.24",0,"2,460.24",08-Nov-10,COMMUNITIES,12105
Nottinghamshire County Council,TR326695,GARY'S COACHES,4699007,Travel & Transportation,Travel & Transportation,"1,800.00",0,"1,800.00",02-Nov-10,COMMUNITIES,5111
Nottinghamshire County Council,TR326695,GARY'S COACHES,4699007,Travel & Transportation,Travel & Transportation,-450.8,0,-450.8,02-Nov-10,COMMUNITIES,5111
Nottinghamshire County Council,TR326695,GARY'S COACHES,4699008,Travel & Transportation,Travel & Transportation,"2,700.00",0,"2,700.00",02-Nov-10,COMMUNITIES,5112
Nottinghamshire County Council,TR326695,GARY'S COACHES,4699008,Travel & Transportation,Travel & Transportation,-559.4,0,-559.4,02-Nov-10,COMMUNITIES,5112
Nottinghamshire County Council,TR536721,SPIRITA,4699171,Arms Length,PropertyPurchaseManagement,769.91,0,769.91,18-Nov-10,RESOURCES,REFUND131010    
Nottinghamshire County Council,TR523178,FEET (LINE MARKERS ) LTD,4701214,Front Line Services,Sports & Leisure,485.2,84.91,570.11,11-Nov-10,COMMUNITIES,SL115306        
Nottinghamshire County Council,TR524671,WARD FENCING LTD,4701221,Facilities Management,Security,740,129.5,869.5,08-Nov-10,COMMUNITIES,2913-5563       
Nottinghamshire County Council,TR100414,JACKSON BUILDING CENTRES LTD,4701227,Estate Management & Development,Mechanical & Electrical,"3,360.00",588,"3,948.00",01-Nov-10,RESOURCES,10/SA/00902     
Nottinghamshire County Council,TR100044,ELLIOTT GROUP LTD,4701246,Estate Management & Development,Major Projects,640,112,752,29-Nov-10,RESOURCES,12044883
Nottinghamshire County Council,TR100044,ELLIOTT GROUP LTD,4701248,Estate Management & Development,Major Projects,571.4,100,671.4,29-Nov-10,RESOURCES,12044882
Nottinghamshire County Council,TR100044,ELLIOTT GROUP LTD,4701249,Estate Management & Development,Major Projects,640,112,752,29-Nov-10,RESOURCES,12044881
Nottinghamshire County Council,TR100044,ELLIOTT GROUP LTD,4701249,Estate Management & Development,Major Projects,42,7.35,49.35,29-Nov-10,RESOURCES,12044881
Nottinghamshire County Council,TR100044,ELLIOTT GROUP LTD,4701252,Estate Management & Development,Major Projects,640,112,752,29-Nov-10,RESOURCES,12044879
Nottinghamshire County Council,TR004687,WOLSELEY UK LTD,4701256,Estate Management & Development,Mechanical & Electrical,0,-0.01,-0.01,01-Nov-10,RESOURCES,57258923
Nottinghamshire County Council,TR004687,WOLSELEY UK LTD,4701256,Estate Management & Development,Mechanical & Electrical,"3,745.00",655.38,"4,400.38",01-Nov-10,RESOURCES,57258923
Nottinghamshire County Council,TR535662,ANIMA RECRUITMENT LTD,4701275,Professional Services,Recruitment,0,-0.01,-0.01,01-Nov-10,COMMUNITIES,NCC26           
Nottinghamshire County Council,TR535662,ANIMA RECRUITMENT LTD,4701275,Professional Services,Recruitment,940.72,164.63,"1,105.35",01-Nov-10,COMMUNITIES,NCC26           
Nottinghamshire County Council,TR535662,ANIMA RECRUITMENT LTD,4701276,Professional Services,Recruitment,0,-0.01,-0.01,22-Nov-10,COMMUNITIES,NCC27           
Nottinghamshire County Council,TR535662,ANIMA RECRUITMENT LTD,4701276,Professional Services,Recruitment,"1,061.31",185.73,"1,247.04",22-Nov-10,COMMUNITIES,NCC27           
Nottinghamshire County Council,TR516677,JP STEEL FABRICATIONS LTD,4701326,Estate Management & Development,Mechanical & Electrical,780,136.5,916.5,10-Nov-10,RESOURCES,INV1249         
Nottinghamshire County Council,TR356446,BSS GROUP PLC,4701346,Estate Management & Development,Mechanical & Electrical,737.14,129,866.14,10-Nov-10,RESOURCES,1430/0780828    
Nottinghamshire County Council,TR507227,T & S HEATING LTD,4701349,Estate Management & Development,Mechanical & Electrical,670,117.25,787.25,12-Nov-10,RESOURCES,140453
Nottinghamshire County Council,TR507227,T & S HEATING LTD,4701349,Estate Management & Development,Mechanical & Electrical,60,10.5,70.5,12-Nov-10,RESOURCES,140453
Nottinghamshire County Council,TR033867,EDMUNDSON ELECTRICAL LTD,4701366,Estate Management & Development,Mechanical & Electrical,562.99,98.52,661.51,29-Nov-10,RESOURCES,136-121001      
Nottinghamshire County Council,TR056027,DAE MECHANICAL SERVICES LTD,4701392,Estate Management & Development,Mechanical & Electrical,918.12,160.67,"1,078.79",11-Nov-10,RESOURCES,1010008
Nottinghamshire County Council,TR316704,PHS GROUP PLC,4701473,Facilities Management,Cleaning Services,"6,676.60","1,168.41","7,845.01",03-Nov-10,COMMUNITIES,56638567
Nottinghamshire County Council,TR056027,DAE MECHANICAL SERVICES LTD,4701474,Estate Management & Development,Mechanical & Electrical,"2,386.21",417.59,"2,803.80",01-Nov-10,RESOURCES,1010006
Nottinghamshire County Council,TR316704,PHS GROUP PLC,4701475,Facilities Management,Cleaning Services,"7,774.42","1,360.52","9,134.94",03-Nov-10,COMMUNITIES,56638566
Nottinghamshire County Council,TR316704,PHS GROUP PLC,4701476,Facilities Management,Cleaning Services,"4,694.13",821.47,"5,515.60",08-Nov-10,COMMUNITIES,56638565
Nottinghamshire County Council,TR316704,PHS GROUP PLC,4701480,Facilities Management,Cleaning Services,"5,239.53",916.92,"6,156.45",08-Nov-10,COMMUNITIES,56638564
Nottinghamshire County Council,TR316704,PHS GROUP PLC,4701481,Facilities Management,Cleaning Services,"4,728.61",827.51,"5,556.12",08-Nov-10,COMMUNITIES,56638563
Nottinghamshire County Council,TR316704,PHS GROUP PLC,4701482,Facilities Management,Cleaning Services,"4,897.68",857.09,"5,754.77",08-Nov-10,COMMUNITIES,56638679
Nottinghamshire County Council,TR516234,MABEY HIRE LTD,4701490,Estate Management & Development,Major Projects,864,151.2,"1,015.20",08-Nov-10,COMMUNITIES,7469693
Nottinghamshire County Council,TR512501,STEPHENSON COLLEGE,4701542,Front Line Services,Education & Training,"1,097.00",0,"1,097.00",02-Nov-10,CHILDREN & YOUNG PEOPLE,COMP28879       
Nottinghamshire County Council,TR333774,ACCESS TRAINING (EAST MIDLANDS) LTD,4701543,Professional Services,Training,475,0,475,02-Nov-10,CHILDREN & YOUNG PEOPLE,2005987
Nottinghamshire County Council,TR333774,ACCESS TRAINING (EAST MIDLANDS) LTD,4701543,Professional Services,Training,475,0,475,02-Nov-10,CHILDREN & YOUNG PEOPLE,2005987
Nottinghamshire County Council,TR002103,FORMOST AIRCONDITIONING & REFRIG LTD,4701546,Estate Management & Development,Mechanical & Electrical,"3,865.00",676.38,"4,541.38",02-Nov-10,CHILDREN & YOUNG PEOPLE,50758
Nottinghamshire County Council,TR004147,VIGLEN LTD,4701671,ICT,Hardware,763.95,133.69,897.64,12-Nov-10,RESOURCES,2270386
Nottinghamshire County Council,TR326285,SEVERN TRENT WATER LTD,4701674,Utilities / Waste,Utilities,"1,597.28",0,"1,597.28",02-Nov-10,RESOURCES,4060022834OCT10 
Nottinghamshire County Council,TR326285,SEVERN TRENT WATER LTD,4701675,Utilities / Waste,Utilities,440.43,77.08,517.51,02-Nov-10,RESOURCES,5440020063OCT10 
Nottinghamshire County Council,TR326285,SEVERN TRENT WATER LTD,4701675,Utilities / Waste,Utilities,269.66,0,269.66,02-Nov-10,RESOURCES,5440020063OCT10 
Nottinghamshire County Council,TR326285,SEVERN TRENT WATER LTD,4701679,Utilities / Waste,Utilities,959.67,0,959.67,02-Nov-10,RESOURCES,59200295280OCT10
Nottinghamshire County Council,TR533871,POSITIVE PEOPLE COMPANY,4701777,People,EmployeeBenefits,"1,275.00",223.13,"1,498.13",01-Nov-10,CHILDREN & YOUNG PEOPLE,13082
Nottinghamshire County Council,TR201298,NORSACA ,4701780,Front Line Services,Total Care,"1,357.25",0,"1,357.25",01-Nov-10,CHILDREN & YOUNG PEOPLE,4939
Nottinghamshire County Council,TR201298,NORSACA ,4701781,Front Line Services,Total Care,556.63,0,556.63,01-Nov-10,CHILDREN & YOUNG PEOPLE,4940
Nottinghamshire County Council,TR201298,NORSACA ,4701782,Front Line Services,Total Care,"1,525.00",0,"1,525.00",01-Nov-10,CHILDREN & YOUNG PEOPLE,4943
Nottinghamshire County Council,TR323687,SCOTT WILSON LTD,4701805,Professional Services,Consultancy,"1,760.97",308.17,"2,069.14",15-Nov-10,COMMUNITIES,676652
Nottinghamshire County Council,TR536618,N B V,4701818,People,Training,"6,550.00","1,146.25","7,696.25",05-Nov-10,COMMUNITIES,190
Nottinghamshire County Council,TR509762,SAFE ESTATES SERVICES LTD,4701827,Facilities Management,Security,490,85.75,575.75,03-Nov-10,RESOURCES,7084311
Nottinghamshire County Council,TR509762,SAFE ESTATES SERVICES LTD,4701832,Facilities Management,Security,"1,258.00",220.15,"1,478.15",03-Nov-10,RESOURCES,7084310
Nottinghamshire County Council,TR519952,TINY WORLD MANSFIELD,4701839,Front Line Services,Education & Training,950.6,0,950.6,01-Nov-10,CHILDREN & YOUNG PEOPLE,2YR T-WORLD MANS
Nottinghamshire County Council,TR532273,RANSOME SPORTS CLUB,4701844,Front Line Services,Sports & Leisure,"2,500.00",0,"2,500.00",03-Nov-10,TBC,2
Nottinghamshire County Council,TR201298,NORSACA ,4702497,Front Line Services,Total Care,"1,143.75",0,"1,143.75",01-Nov-10,CHILDREN & YOUNG PEOPLE,4945
Nottinghamshire County Council,TR201298,NORSACA ,4702498,Front Line Services,Total Care,"1,296.25",0,"1,296.25",01-Nov-10,CHILDREN & YOUNG PEOPLE,4946
Nottinghamshire County Council,TR201298,NORSACA ,4702499,Front Line Services,Total Care,571.88,0,571.88,01-Nov-10,CHILDREN & YOUNG PEOPLE,4947
Nottinghamshire County Council,TR201298,NORSACA ,4702501,Front Line Services,Total Care,"1,525.00",0,"1,525.00",01-Nov-10,CHILDREN & YOUNG PEOPLE,4937
Nottinghamshire County Council,TR201298,NORSACA ,4702502,Front Line Services,Total Care,"1,525.00",0,"1,525.00",01-Nov-10,CHILDREN & YOUNG PEOPLE,4938
Nottinghamshire County Council,TR201298,NORSACA ,4702503,Front Line Services,Total Care,"1,525.00",0,"1,525.00",01-Nov-10,CHILDREN & YOUNG PEOPLE,4942
Nottinghamshire County Council,TR201298,NORSACA ,4702504,Front Line Services,Total Care,"1,525.00",0,"1,525.00",01-Nov-10,CHILDREN & YOUNG PEOPLE,4941
Nottinghamshire County Council,TR504636,TEAM FOSTERING,4702507,Front Line Services,Total Care,"3,655.50",0,"3,655.50",25-Nov-10,CHILDREN & YOUNG PEOPLE,12593
Nottinghamshire County Council,TR504636,TEAM FOSTERING,4702509,Front Line Services,Total Care,"3,655.50",0,"3,655.50",25-Nov-10,CHILDREN & YOUNG PEOPLE,12611
Nottinghamshire County Council,TR523214,SYNERGY GROUP,4702511,Professional Services,Recruitment,"1,221.00",213.68,"1,434.68",01-Nov-10,CHILDREN & YOUNG PEOPLE,10301222
Nottinghamshire County Council,TR100064,VERIZON UK LTD,4702577,ICT,Telecommunications Equipment & Services,"15,689.00","2,745.58","18,434.58",01-Nov-10,RESOURCES,W010146290      
Nottinghamshire County Council,TR332197,TARMAC CENTRAL LTD,4702581,Estate Management & Development,Highways & Works,66.89,11.71,78.6,10-Nov-10,COMMUNITIES,9025877748
Nottinghamshire County Council,TR332197,TARMAC CENTRAL LTD,4702581,Estate Management & Development,Highways & Works,408.14,71.42,479.56,10-Nov-10,COMMUNITIES,9025877748
Nottinghamshire County Council,TR332197,TARMAC CENTRAL LTD,4702583,Estate Management & Development,Highways & Works,0,-0.01,-0.01,10-Nov-10,COMMUNITIES,9025877746
Nottinghamshire County Council,TR332197,TARMAC CENTRAL LTD,4702583,Estate Management & Development,Highways & Works,441.54,77.27,518.81,10-Nov-10,COMMUNITIES,9025877746
Nottinghamshire County Council,TR523108,KIER REGIONAL LTD T/A KIER MARRIOTT,4702714,Estate Management & Development,Major Projects,"126,111.52","22,069.52","148,181.04",01-Nov-10,CHILDREN & YOUNG PEOPLE,10040020
Nottinghamshire County Council,TR530728,FIRST ORDER RED LTD,4702728,Utilities / Waste,Waste,"1,571.00",274.93,"1,845.93",05-Nov-10,CHILDREN & YOUNG PEOPLE,1693
Nottinghamshire County Council,TR530728,FIRST ORDER RED LTD,4702728,Utilities / Waste,Waste,0,0.01,0.01,05-Nov-10,RESOURCES,1693
Nottinghamshire County Council,TR534993,DODDS & PARTNERS,4702730,Arms Length,TotalCare,843.07,147.54,990.61,03-Nov-10,CHILDREN & YOUNG PEOPLE,11152
Nottinghamshire County Council,TR534993,DODDS & PARTNERS,4702731,Arms Length,TotalCare,879.43,153.9,"1,033.33",03-Nov-10,CHILDREN & YOUNG PEOPLE,11144
Nottinghamshire County Council,TR534993,DODDS & PARTNERS,4702731,Arms Length,TotalCare,2,0,2,03-Nov-10,CHILDREN & YOUNG PEOPLE,11144
Nottinghamshire County Council,TR534993,DODDS & PARTNERS,4702732,Arms Length,TotalCare,"2,182.30",381.9,"2,564.20",03-Nov-10,CHILDREN & YOUNG PEOPLE,11147
Nottinghamshire County Council,TR534993,DODDS & PARTNERS,4702732,Arms Length,TotalCare,35.9,0,35.9,03-Nov-10,CHILDREN & YOUNG PEOPLE,11147
Nottinghamshire County Council,TR534993,DODDS & PARTNERS,4702732,Arms Length,TotalCare,0,4.74,4.74,03-Nov-10,RESOURCES,11147
Nottinghamshire County Council,TR534993,DODDS & PARTNERS,4702736,Arms Length,TotalCare,584.21,102.24,686.45,03-Nov-10,CHILDREN & YOUNG PEOPLE,11148
Nottinghamshire County Council,TR534993,DODDS & PARTNERS,4702736,Arms Length,TotalCare,100.95,0,100.95,03-Nov-10,CHILDREN & YOUNG PEOPLE,11148
Nottinghamshire County Council,TR534993,DODDS & PARTNERS,4702736,Arms Length,TotalCare,0,17.45,17.45,03-Nov-10,RESOURCES,11148
Nottinghamshire County Council,TR534993,DODDS & PARTNERS,4702737,Arms Length,TotalCare,"1,159.71",202.95,"1,362.66",03-Nov-10,CHILDREN & YOUNG PEOPLE,11146
Nottinghamshire County Council,TR534993,DODDS & PARTNERS,4702737,Arms Length,TotalCare,3.8,0,3.8,03-Nov-10,CHILDREN & YOUNG PEOPLE,11146
Nottinghamshire County Council,TR534993,DODDS & PARTNERS,4702737,Arms Length,TotalCare,0,0.01,0.01,03-Nov-10,RESOURCES,11146
Nottinghamshire County Council,TR534993,DODDS & PARTNERS,4702738,Arms Length,TotalCare,582.7,101.97,684.67,03-Nov-10,CHILDREN & YOUNG PEOPLE,11153
Nottinghamshire County Council,TR534993,DODDS & PARTNERS,4702738,Arms Length,TotalCare,5.9,0,5.9,03-Nov-10,CHILDREN & YOUNG PEOPLE,11153
Nottinghamshire County Council,TR507125,MERIDIAN BUSINESS SUPPORT,4702746,Professional Services,Recruitment,604.4,105.77,710.17,09-Nov-10,CHILDREN & YOUNG PEOPLE,16060-5555695   
Nottinghamshire County Council,TR507125,MERIDIAN BUSINESS SUPPORT,4702747,Professional Services,Recruitment,597.68,104.59,702.27,09-Nov-10,CHILDREN & YOUNG PEOPLE,16060-555700    
Nottinghamshire County Council,TR003381,GOSPELS COACHES,4702765,Travel & Transportation,Passenger Transport,"2,720.00",0,"2,720.00",09-Nov-10,COMMUNITIES,GC557           
Nottinghamshire County Council,TR003381,GOSPELS COACHES,4702765,Travel & Transportation,Passenger Transport,-440.64,0,-440.64,09-Nov-10,COMMUNITIES,GC557           
Nottinghamshire County Council,TR523541,LUCY ELECTRIC UK LTD,4702843,FM Hard,Mechanical & Electrical,522.31,91.4,613.71,16-Nov-10,COMMUNITIES,L/1037026       
Nottinghamshire County Council,TR523541,LUCY ELECTRIC UK LTD,4702843,FM Hard,Mechanical & Electrical,60,10.5,70.5,16-Nov-10,COMMUNITIES,L/1037026       
Nottinghamshire County Council,TR523635,PARK HILL TRAINING LTD,4702845,Professional Services,Training,690,120.75,810.75,11-Nov-10,COMMUNITIES,1636
Nottinghamshire County Council,TR515511,AGGREGATE INDUSTRIES-CHARCON DIVISION,4702846,Estate Management & Development,Highways & Works,163.38,28.59,191.97,29-Nov-10,COMMUNITIES,12769986
Nottinghamshire County Council,TR515511,AGGREGATE INDUSTRIES-CHARCON DIVISION,4702846,Estate Management & Development,Highways & Works,163.38,28.59,191.97,29-Nov-10,COMMUNITIES,12769986
Nottinghamshire County Council,TR515511,AGGREGATE INDUSTRIES-CHARCON DIVISION,4702846,Estate Management & Development,Highways & Works,636.3,111.35,747.65,29-Nov-10,COMMUNITIES,12769986
Nottinghamshire County Council,TR515511,AGGREGATE INDUSTRIES-CHARCON DIVISION,4702846,Estate Management & Development,Highways & Works,18,3.15,21.15,29-Nov-10,COMMUNITIES,12769986
Nottinghamshire County Council,TR515511,AGGREGATE INDUSTRIES-CHARCON DIVISION,4702846,Estate Management & Development,Highways & Works,49,8.58,57.58,29-Nov-10,COMMUNITIES,12769986
Nottinghamshire County Council,TR535593,LAVENDON ACCESS SERVICES (UK) LTD,4704010,Travel & Transportation,Fleet,"1,200.00",210,"1,410.00",02-Nov-10,COMMUNITIES,23202949
Nottinghamshire County Council,TR310887,BARKER ROSS LTD,4704026,Professional Services,Recruitment,"1,324.63",231.81,"1,556.44",29-Nov-10,COMMUNITIES,12129291
Nottinghamshire County Council,TR202177,SPEEDY ASSET SERVICES LTD,4704040,Professional Services,"Design, Print & Communication",535,93.63,628.63,01-Nov-10,COMMUNITIES,7002543262
Nottinghamshire County Council,TR002827,REDFERN COACHES MANSFIELD LTD,4704119,Travel & Transportation,Passenger Transport,"2,805.00",0,"2,805.00",04-Nov-10,COMMUNITIES,50398
Nottinghamshire County Council,TR002827,REDFERN COACHES MANSFIELD LTD,4704119,Travel & Transportation,Passenger Transport,-994,0,-994,04-Nov-10,COMMUNITIES,50398
Nottinghamshire County Council,TR002827,REDFERN COACHES MANSFIELD LTD,4704120,Travel & Transportation,Passenger Transport,"2,635.00",0,"2,635.00",04-Nov-10,COMMUNITIES,50399
Nottinghamshire County Council,TR002827,REDFERN COACHES MANSFIELD LTD,4704120,Travel & Transportation,Passenger Transport,"-1,257.55",0,"-1,257.55",04-Nov-10,COMMUNITIES,50399
Nottinghamshire County Council,TR002827,REDFERN COACHES MANSFIELD LTD,4704121,Travel & Transportation,Passenger Transport,"2,635.00",0,"2,635.00",04-Nov-10,COMMUNITIES,50400
Nottinghamshire County Council,TR002827,REDFERN COACHES MANSFIELD LTD,4704121,Travel & Transportation,Passenger Transport,-784.4,0,-784.4,04-Nov-10,COMMUNITIES,50400
Nottinghamshire County Council,TR515269,JORDAN ROAD SURFACING LTD,4704176,Estate Management & Development,Highways & Works,"1,525.00",266.88,"1,791.88",11-Nov-10,COMMUNITIES,JRSL/10743      
Nottinghamshire County Council,TR002827,REDFERN COACHES MANSFIELD LTD,4704187,Travel & Transportation,Passenger Transport,"2,805.00",0,"2,805.00",04-Nov-10,COMMUNITIES,50395
Nottinghamshire County Council,TR002827,REDFERN COACHES MANSFIELD LTD,4704187,Travel & Transportation,Passenger Transport,-269.5,0,-269.5,04-Nov-10,COMMUNITIES,50395
Nottinghamshire County Council,TR002827,REDFERN COACHES MANSFIELD LTD,4704188,Travel & Transportation,Passenger Transport,"2,635.00",0,"2,635.00",04-Nov-10,COMMUNITIES,50397
Nottinghamshire County Council,TR002827,REDFERN COACHES MANSFIELD LTD,4704188,Travel & Transportation,Passenger Transport,-276.6,0,-276.6,04-Nov-10,COMMUNITIES,50397
Nottinghamshire County Council,TR002827,REDFERN COACHES MANSFIELD LTD,4704189,Travel & Transportation,Passenger Transport,"2,635.00",0,"2,635.00",04-Nov-10,COMMUNITIES,50396
Nottinghamshire County Council,TR002827,REDFERN COACHES MANSFIELD LTD,4704189,Travel & Transportation,Passenger Transport,-334.7,0,-334.7,04-Nov-10,COMMUNITIES,50396
Nottinghamshire County Council,TR306976,STAGECOACH EAST MIDLAND,4704220,Travel & Transportation,Passenger Transport,768.88,0,768.88,02-Nov-10,COMMUNITIES,702536
Nottinghamshire County Council,TR306976,STAGECOACH EAST MIDLAND,4704221,Travel & Transportation,Passenger Transport,"2,396.88",0,"2,396.88",02-Nov-10,CHILDREN & YOUNG PEOPLE,702517
Nottinghamshire County Council,TR535546,BROOKHILL HOUSE DAY NUSERY,4704306,Arms Length,EducationTraining,"1,750.00",0,"1,750.00",12-Nov-10,CHILDREN & YOUNG PEOPLE,GLF QP DRAYCOT  
Nottinghamshire County Council,TR001260,ASKEWS LIBRARY SERVICES LTD,4704357,Professional Services,"Design, Print & Communication","12,805.82",0,"12,805.82",02-Nov-10,COMMUNITIES,924637A         
Nottinghamshire County Council,TR001260,ASKEWS LIBRARY SERVICES LTD,4704358,Professional Services,"Design, Print & Communication","6,979.64",0,"6,979.64",02-Nov-10,COMMUNITIES,924666
Nottinghamshire County Council,TR001260,ASKEWS LIBRARY SERVICES LTD,4704358,Professional Services,"Design, Print & Communication",54.44,9.53,63.97,02-Nov-10,COMMUNITIES,924666
Nottinghamshire County Council,TR001260,ASKEWS LIBRARY SERVICES LTD,4704358,Professional Services,"Design, Print & Communication",0,-0.07,-0.07,02-Nov-10,RESOURCES,924666
Nottinghamshire County Council,TR515887,NOAHS ARK PLAYGROUP,4704371,Front Line Services,Education & Training,672.22,0,672.22,01-Nov-10,CHILDREN & YOUNG PEOPLE,2YR NOAHSARK PG 
Nottinghamshire County Council,TR534097,NEWARK & SHERWOOD AUTISM SUPPORT GROUP,4704440,Arms Length,TotalCare,"3,270.00",0,"3,270.00",15-Nov-10,CHILDREN & YOUNG PEOPLE,QUICKWINSGRANT  
Nottinghamshire County Council,TR532806,CROMWELL POLYTHENE LTD,4704457,FM Hard,Mechanical & Electrical,971.2,169.96,"1,141.16",01-Nov-10,RESOURCES,INV0057993      
Nottinghamshire County Council,TR535320,H-SQUARED ELECTRONICS LTD,4704493,FM Hard,Mechanical & Electrical,"1,200.00",210,"1,410.00",08-Nov-10,RESOURCES,292222
Nottinghamshire County Council,TR535662,ANIMA RECRUITMENT LTD,4704525,Professional Services,Recruitment,0,-0.01,-0.01,15-Nov-10,COMMUNITIES,NCC28           
Nottinghamshire County Council,TR535662,ANIMA RECRUITMENT LTD,4704525,Professional Services,Recruitment,771.12,134.95,906.07,15-Nov-10,COMMUNITIES,NCC28           
Nottinghamshire County Council,TR004147,VIGLEN LTD,4704572,ICT,Hardware,905.67,158.49,"1,064.16",16-Nov-10,RESOURCES,2270582
Nottinghamshire County Council,TR535064,MOBILE FUN LTD,4704997,ICT,TelecommunicationsEquipmentServices,470.4,82.32,552.72,18-Nov-10,COMMUNITIES,2012058-253606  
Nottinghamshire County Council,TR514784,W T BURDEN LTD,4705003,Estate Management & Development,Mechanical & Electrical,716.8,125.44,842.24,26-Nov-10,COMMUNITIES,49D133928       
Nottinghamshire County Council,TR313316,BUNZL CATERING SERVICES,4706183,Facilities Management,Cleaning Services,161.26,28.22,189.48,09-Nov-10,COMMUNITIES,7913325
Nottinghamshire County Council,TR313316,BUNZL CATERING SERVICES,4706183,Facilities Management,Cleaning Services,252.38,44.17,296.55,09-Nov-10,COMMUNITIES,7913325
Nottinghamshire County Council,TR313316,BUNZL CATERING SERVICES,4706183,Facilities Management,Cleaning Services,12.07,2.11,14.18,09-Nov-10,COMMUNITIES,7913325
Nottinghamshire County Council,TR530937,SOVEREIGN SECURTIY,4706189,Facilities Management,Security,"2,479.50",433.91,"2,913.41",10-Nov-10,COMMUNITIES,1064
Nottinghamshire County Council,TR530937,SOVEREIGN SECURTIY,4706190,Facilities Management,Security,"2,394.00",418.95,"2,812.95",10-Nov-10,COMMUNITIES,1065
Nottinghamshire County Council,TR055713,AUTOMOTIVE LEASING,4706275,Travel & Transportation,Fleet,"3,017.40",528.05,"3,545.45",08-Nov-10,COMMUNITIES,2452029
Nottinghamshire County Council,TR332197,TARMAC CENTRAL LTD,4706314,Estate Management & Development,Highways & Works,0,-0.01,-0.01,10-Nov-10,COMMUNITIES,9025883820
Nottinghamshire County Council,TR332197,TARMAC CENTRAL LTD,4706314,Estate Management & Development,Highways & Works,81.65,14.29,95.94,10-Nov-10,COMMUNITIES,9025883820
Nottinghamshire County Council,TR332197,TARMAC CENTRAL LTD,4706314,Estate Management & Development,Highways & Works,358.62,62.76,421.38,10-Nov-10,COMMUNITIES,9025883820
Nottinghamshire County Council,TR332197,TARMAC CENTRAL LTD,4706315,Estate Management & Development,Highways & Works,203.39,35.59,238.98,10-Nov-10,COMMUNITIES,9025883821
Nottinghamshire County Council,TR332197,TARMAC CENTRAL LTD,4706315,Estate Management & Development,Highways & Works,416.33,72.86,489.19,10-Nov-10,COMMUNITIES,9025883821
Nottinghamshire County Council,TR204062,KONICA MINOLTA,4706341,Facilities Management,Reprographics,884.69,154.82,"1,039.51",15-Nov-10,ASCH,1096750767
Nottinghamshire County Council,TR332197,TARMAC CENTRAL LTD,4706478,Estate Management & Development,Highways & Works,0,-0.01,-0.01,16-Nov-10,COMMUNITIES,9025896480
Nottinghamshire County Council,TR332197,TARMAC CENTRAL LTD,4706478,Estate Management & Development,Highways & Works,552.21,96.64,648.85,16-Nov-10,COMMUNITIES,9025896480
Nottinghamshire County Council,TR332197,TARMAC CENTRAL LTD,4706478,Estate Management & Development,Highways & Works,242.32,42.41,284.73,16-Nov-10,COMMUNITIES,9025896480
Nottinghamshire County Council,TR514756,EXPRESS ASPHALT LTD,4706503,Estate Management & Development,Highways & Works,487.17,85.25,572.42,04-Nov-10,TBC,12848117
Nottinghamshire County Council,TR514756,EXPRESS ASPHALT LTD,4706505,Estate Management & Development,Highways & Works,539.49,94.41,633.9,04-Nov-10,COMMUNITIES,12848119
Nottinghamshire County Council,TR514756,EXPRESS ASPHALT LTD,4706510,Estate Management & Development,Highways & Works,696.15,121.83,817.98,04-Nov-10,TBC,12855582
Nottinghamshire County Council,TR055713,AUTOMOTIVE LEASING,4706516,Travel & Transportation,Fleet,0,0.01,0.01,08-Nov-10,COMMUNITIES,2452030
Nottinghamshire County Council,TR055713,AUTOMOTIVE LEASING,4706516,Travel & Transportation,Fleet,"3,814.46",667.53,"4,481.99",08-Nov-10,COMMUNITIES,2452030
Nottinghamshire County Council,TR055713,AUTOMOTIVE LEASING,4706524,Travel & Transportation,Fleet,"3,017.40",528.05,"3,545.45",08-Nov-10,COMMUNITIES,2452028
Nottinghamshire County Council,TR536742,SEMPERIOR LTD,4706547,Professional Services,Consultancy,"2,000.00",350,"2,350.00",18-Nov-10,CHILDREN & YOUNG PEOPLE,1
Nottinghamshire County Council,TR536244,ON-CALL RECRUITMENT,4706604,Professional Services,Recruitment,558,97.65,655.65,18-Nov-10,COMMUNITIES,8956
Nottinghamshire County Council,TR528128,SIMS GROUP UK LTD,4706610,Utilities / Waste,Waste,196.92,34.46,231.38,04-Nov-10,COMMUNITIES,SWI0068988      
Nottinghamshire County Council,TR528128,SIMS GROUP UK LTD,4706610,Utilities / Waste,Waste,142.2,24.89,167.09,04-Nov-10,COMMUNITIES,SWI0068988      
Nottinghamshire County Council,TR528128,SIMS GROUP UK LTD,4706610,Utilities / Waste,Waste,85.68,14.99,100.67,04-Nov-10,COMMUNITIES,SWI0068988      
Nottinghamshire County Council,TR528128,SIMS GROUP UK LTD,4706610,Utilities / Waste,Waste,139.68,24.44,164.12,04-Nov-10,COMMUNITIES,SWI0068988      
Nottinghamshire County Council,TR528128,SIMS GROUP UK LTD,4706610,Utilities / Waste,Waste,118.44,20.73,139.17,04-Nov-10,COMMUNITIES,SWI0068988      
Nottinghamshire County Council,TR528128,SIMS GROUP UK LTD,4706610,Utilities / Waste,Waste,113.04,19.78,132.82,04-Nov-10,COMMUNITIES,SWI0068988      
Nottinghamshire County Council,TR528128,SIMS GROUP UK LTD,4706610,Utilities / Waste,Waste,97.5,17.06,114.56,04-Nov-10,COMMUNITIES,SWI0068988      
Nottinghamshire County Council,TR528128,SIMS GROUP UK LTD,4706610,Utilities / Waste,Waste,682.5,119.44,801.94,04-Nov-10,COMMUNITIES,SWI0068988      
Nottinghamshire County Council,TR323225,WASTECYCLE LTD,4706614,Utilities / Waste,Waste,179.36,31.39,210.75,05-Nov-10,COMMUNITIES,SIN222973       
Nottinghamshire County Council,TR323225,WASTECYCLE LTD,4706614,Utilities / Waste,Waste,420.39,73.57,493.96,05-Nov-10,COMMUNITIES,SIN222973       
Nottinghamshire County Council,TR323225,WASTECYCLE LTD,4706614,Utilities / Waste,Waste,116.85,20.45,137.3,05-Nov-10,COMMUNITIES,SIN222973       
Nottinghamshire County Council,TR323225,WASTECYCLE LTD,4706614,Utilities / Waste,Waste,126.92,22.21,149.13,05-Nov-10,COMMUNITIES,SIN222973       
Nottinghamshire County Council,TR002563,BREEDON AGGREGATES ENGLAND LTD,4706785,Estate Management & Development,Highways & Works,200.3,35.05,235.35,23-Nov-10,COMMUNITIES,10126727
Nottinghamshire County Council,TR002563,BREEDON AGGREGATES ENGLAND LTD,4706785,Estate Management & Development,Highways & Works,715.35,125.19,840.54,23-Nov-10,COMMUNITIES,10126727
Nottinghamshire County Council,TR002563,BREEDON AGGREGATES ENGLAND LTD,4706788,Estate Management & Development,Highways & Works,"1,765.48",308.96,"2,074.44",03-Nov-10,COMMUNITIES,10126726
Nottinghamshire County Council,TR002563,BREEDON AGGREGATES ENGLAND LTD,4706791,Estate Management & Development,Highways & Works,596.12,104.32,700.44,03-Nov-10,TBC,10126720
Nottinghamshire County Council,TR535233,HEMPSALL CONSULTANCIES LTD,4706881,FM Hard,Consultancy,700,122.5,822.5,18-Nov-10,CHILDREN & YOUNG PEOPLE,10/1990 Nottinghamshire-TR
Nottinghamshire County Council,TR535237,VACU-LUG TRACTION TYRES LTD,4706926,Travel & Transportation,Fleet,459.66,80.44,540.1,08-Nov-10,COMMUNITIES,00008044S       
Nottinghamshire County Council,TR004835,XMA LTD,4707542,ICT,Hardware,"2,972.90",520.26,"3,493.16",19-Nov-10,RESOURCES,K1/I230861      
Nottinghamshire County Council,TR058449,HAYS MONTROSE,4707644,Professional Services,Recruitment,626.64,109.66,736.3,12-Nov-10,RESOURCES,1000441715
Nottinghamshire County Council,TR058449,HAYS MONTROSE,4707648,Professional Services,Recruitment,"1,008.27",176.45,"1,184.72",01-Nov-10,RESOURCES,1000405572
Nottinghamshire County Council,TR532172,BLI EDUCATION LTD,4707708,ICT,Software,10,1.75,11.75,15-Nov-10,RESOURCES,S147016         
Nottinghamshire County Council,TR532172,BLI EDUCATION LTD,4707708,ICT,Software,"1,999.13",349.85,"2,348.98",15-Nov-10,RESOURCES,S147016         
Nottinghamshire County Council,TR332197,TARMAC CENTRAL LTD,4707732,Estate Management & Development,Highways & Works,0,-0.01,-0.01,16-Nov-10,COMMUNITIES,9025908705
Nottinghamshire County Council,TR332197,TARMAC CENTRAL LTD,4707732,Estate Management & Development,Highways & Works,951.81,166.57,"1,118.38",16-Nov-10,COMMUNITIES,9025908705
Nottinghamshire County Council,TR332197,TARMAC CENTRAL LTD,4707734,Estate Management & Development,Highways & Works,0,-0.01,-0.01,16-Nov-10,COMMUNITIES,9025908707
Nottinghamshire County Council,TR332197,TARMAC CENTRAL LTD,4707734,Estate Management & Development,Highways & Works,77.81,13.62,91.43,16-Nov-10,COMMUNITIES,9025908707
Nottinghamshire County Council,TR332197,TARMAC CENTRAL LTD,4707734,Estate Management & Development,Highways & Works,375.38,65.69,441.07,16-Nov-10,COMMUNITIES,9025908707
Nottinghamshire County Council,TR536256,FUTURE HOME CARE,4707742,Arms Length,Total Care,"3,990.53",0,"3,990.53",05-Nov-10,ASCH,FHC8140         
Nottinghamshire County Council,TR303751,WILSON ELECTRICS,4707743,Facilities Management,Furniture,761.1,133.19,894.29,05-Nov-10,ASCH,60795
Nottinghamshire County Council,TR342785,MENCAP ACCOUNTS REGION 2,4707744,Front Line Services,Total Care,"1,960.68",0,"1,960.68",05-Nov-10,ASCH,1427448
Nottinghamshire County Council,TR342785,MENCAP ACCOUNTS REGION 2,4707745,Front Line Services,Total Care,"1,121.08",0,"1,121.08",05-Nov-10,ASCH,1427450
Nottinghamshire County Council,TR342785,MENCAP ACCOUNTS REGION 2,4707746,Front Line Services,Total Care,559.2,0,559.2,05-Nov-10,ASCH,1427451
Nottinghamshire County Council,TR342785,MENCAP ACCOUNTS REGION 2,4707747,Front Line Services,Total Care,"1,681.08",0,"1,681.08",05-Nov-10,ASCH,1427449
Nottinghamshire County Council,TR354867,UNIVERSAL LOCUMS,4707749,Professional Services,Recruitment,"1,032.50",180.69,"1,213.19",05-Nov-10,ASCH,130145
Nottinghamshire County Council,TR354867,UNIVERSAL LOCUMS,4707750,Professional Services,Recruitment,927.5,162.31,"1,089.81",05-Nov-10,ASCH,130136
Nottinghamshire County Council,TR501839,CEMEX UK OPERATIONS,4707830,Estate Management & Development,Mechanical & Electrical,434.86,76.1,510.96,05-Nov-10,TBC,3003739063
Nottinghamshire County Council,TR501839,CEMEX UK OPERATIONS,4707831,Estate Management & Development,Mechanical & Electrical,0,-0.01,-0.01,05-Nov-10,COMMUNITIES,3003739064
Nottinghamshire County Council,TR501839,CEMEX UK OPERATIONS,4707831,Estate Management & Development,Mechanical & Electrical,"1,174.20",205.49,"1,379.69",05-Nov-10,COMMUNITIES,3003739064
Nottinghamshire County Council,TR501839,CEMEX UK OPERATIONS,4707831,Estate Management & Development,Mechanical & Electrical,485.88,85.03,570.91,05-Nov-10,COMMUNITIES,3003739064
Nottinghamshire County Council,TR501839,CEMEX UK OPERATIONS,4707831,Estate Management & Development,Mechanical & Electrical,571.71,100.05,671.76,05-Nov-10,COMMUNITIES,3003739064
Nottinghamshire County Council,TR501839,CEMEX UK OPERATIONS,4707833,Estate Management & Development,Mechanical & Electrical,103.07,18.04,121.11,05-Nov-10,COMMUNITIES,3003739066
Nottinghamshire County Council,TR501839,CEMEX UK OPERATIONS,4707833,Estate Management & Development,Mechanical & Electrical,566.86,99.2,666.06,05-Nov-10,COMMUNITIES,3003739066
Nottinghamshire County Council,TR501839,CEMEX UK OPERATIONS,4707833,Estate Management & Development,Mechanical & Electrical,80.98,14.17,95.15,05-Nov-10,COMMUNITIES,3003739066
Nottinghamshire County Council,TR501839,CEMEX UK OPERATIONS,4707834,Estate Management & Development,Mechanical & Electrical,"4,906.09",858.57,"5,764.66",05-Nov-10,TBC,3003739067
Nottinghamshire County Council,TR501839,CEMEX UK OPERATIONS,4707835,Estate Management & Development,Mechanical & Electrical,"2,937.01",513.98,"3,450.99",05-Nov-10,TBC,3003739068
Nottinghamshire County Council,TR530671,GREATER NOTTINGHAM TRANSPORT PARNERSHIP,4707872,Government / Charity / Trust / Society / Association,Clubs & Groups,"22,000.00",0,"22,000.00",03-Nov-10,COMMUNITIES,3
Nottinghamshire County Council,TR509076,HOPKINSON PLANT HIRE LTD,4707891,Travel & Transportation,Fleet,846.5,148.14,994.64,23-Nov-10,COMMUNITIES,104589
Nottinghamshire County Council,TR509076,HOPKINSON PLANT HIRE LTD,4707899,Travel & Transportation,Fleet,"1,022.50",178.94,"1,201.44",18-Nov-10,TBC,104593
Nottinghamshire County Council,TR520226,HIGHMANOR CONSTRUCTION LTD,4707901,Estate Management & Development,Major Projects,"5,440.00",952,"6,392.00",23-Nov-10,RESOURCES,581
Nottinghamshire County Council,TR509076,HOPKINSON PLANT HIRE LTD,4707902,Travel & Transportation,Fleet,"1,037.50",181.56,"1,219.06",11-Nov-10,COMMUNITIES,104591
Nottinghamshire County Council,TR524609,PHOENIX CONTRACTORS,4707911,Estate Management & Development,Major Projects,686,120.05,806.05,11-Nov-10,RESOURCES,202
Nottinghamshire County Council,TR509076,HOPKINSON PLANT HIRE LTD,4707912,Travel & Transportation,Fleet,951.25,166.47,"1,117.72",18-Nov-10,COMMUNITIES,104590
Nottinghamshire County Council,TR524609,PHOENIX CONTRACTORS,4707913,Estate Management & Development,Major Projects,636,111.3,747.3,16-Nov-10,RESOURCES,203
Nottinghamshire County Council,TR536019,TETLOW ASSOCIATES,4707939,Professional Services,Consultancy,"1,649.60",288.68,"1,938.28",19-Nov-10,RESOURCES,101002
Nottinghamshire County Council,TR534170,S F PLANT HIRE,4707950,Travel & Transportation,Fleet,940,0,940,24-Nov-10,COMMUNITIES,34
Nottinghamshire County Council,TR001260,ASKEWS LIBRARY SERVICES LTD,4708013,Professional Services,"Design, Print & Communication","6,704.68",0,"6,704.68",09-Nov-10,COMMUNITIES,924762
Nottinghamshire County Council,TR001260,ASKEWS LIBRARY SERVICES LTD,4708013,Professional Services,"Design, Print & Communication",67.6,11.83,79.43,09-Nov-10,COMMUNITIES,924762
Nottinghamshire County Council,TR001260,ASKEWS LIBRARY SERVICES LTD,4708050,Professional Services,"Design, Print & Communication","12,173.15",0,"12,173.15",09-Nov-10,COMMUNITIES,924732
Nottinghamshire County Council,TR001260,ASKEWS LIBRARY SERVICES LTD,4708050,Professional Services,"Design, Print & Communication",121.51,21.26,142.77,09-Nov-10,COMMUNITIES,924732
Nottinghamshire County Council,TR015152,JWL (ARCHITECTURAL IRONMONGERS) LTD,4708056,Estate Management & Development,Mechanical & Electrical,"1,189.50",208.16,"1,397.66",25-Nov-10,RESOURCES,501933
Nottinghamshire County Council,TR015152,JWL (ARCHITECTURAL IRONMONGERS) LTD,4708056,Estate Management & Development,Mechanical & Electrical,131.63,23.04,154.67,25-Nov-10,RESOURCES,501933
Nottinghamshire County Council,TR015152,JWL (ARCHITECTURAL IRONMONGERS) LTD,4708056,Estate Management & Development,Mechanical & Electrical,15.44,2.7,18.14,25-Nov-10,RESOURCES,501933
Nottinghamshire County Council,TR015152,JWL (ARCHITECTURAL IRONMONGERS) LTD,4708056,Estate Management & Development,Mechanical & Electrical,1.87,0.33,2.2,25-Nov-10,RESOURCES,501933
Nottinghamshire County Council,TR514784,W T BURDEN LTD,4708070,Estate Management & Development,Mechanical & Electrical,648.71,113.52,762.23,03-Nov-10,COMMUNITIES,L7C046128       
Nottinghamshire County Council,TR514784,W T BURDEN LTD,4708070,Estate Management & Development,Mechanical & Electrical,0,0.01,0.01,03-Nov-10,RESOURCES,L7C046128       
Nottinghamshire County Council,TR514774,URBIS LIGHTING LTD,4708073,Estate Management & Development,Mechanical & Electrical,"5,097.56",892.07,"5,989.63",30-Nov-10,TBC,1180463
Nottinghamshire County Council,TR514774,URBIS LIGHTING LTD,4708073,Estate Management & Development,Mechanical & Electrical,2.6,0.46,3.06,30-Nov-10,TBC,1180463
Nottinghamshire County Council,TR514774,URBIS LIGHTING LTD,4708073,Estate Management & Development,Mechanical & Electrical,52,9.1,61.1,30-Nov-10,TBC,1180463
Nottinghamshire County Council,TR514921,MARSHALLS PLC (EAGLESCLIFFE),4708074,Estate Management & Development,Highways & Works,0,-0.02,-0.02,29-Nov-10,COMMUNITIES,ZSI/12189347    
Nottinghamshire County Council,TR514921,MARSHALLS PLC (EAGLESCLIFFE),4708074,Estate Management & Development,Highways & Works,23,4.03,27.03,29-Nov-10,COMMUNITIES,ZSI/12189347    
Nottinghamshire County Council,TR514921,MARSHALLS PLC (EAGLESCLIFFE),4708074,Estate Management & Development,Highways & Works,400.32,70.06,470.38,29-Nov-10,COMMUNITIES,ZSI/12189347    
Nottinghamshire County Council,TR514921,MARSHALLS PLC (EAGLESCLIFFE),4708074,Estate Management & Development,Highways & Works,222.4,38.92,261.32,29-Nov-10,COMMUNITIES,ZSI/12189347    
Nottinghamshire County Council,TR514921,MARSHALLS PLC (EAGLESCLIFFE),4708074,Estate Management & Development,Highways & Works,66.72,11.68,78.4,29-Nov-10,COMMUNITIES,ZSI/12189347    
Nottinghamshire County Council,TR514921,MARSHALLS PLC (EAGLESCLIFFE),4708074,Estate Management & Development,Highways & Works,222.4,38.92,261.32,29-Nov-10,COMMUNITIES,ZSI/12189347    
Nottinghamshire County Council,TR514921,MARSHALLS PLC (EAGLESCLIFFE),4708074,Estate Management & Development,Highways & Works,200.16,35.03,235.19,29-Nov-10,COMMUNITIES,ZSI/12189347    
Nottinghamshire County Council,TR514921,MARSHALLS PLC (EAGLESCLIFFE),4708074,Estate Management & Development,Highways & Works,449.92,78.74,528.66,29-Nov-10,COMMUNITIES,ZSI/12189347    
Nottinghamshire County Council,TR514921,MARSHALLS PLC (EAGLESCLIFFE),4708074,Estate Management & Development,Highways & Works,"2,720.16",476.03,"3,196.19",29-Nov-10,COMMUNITIES,ZSI/12189347    
Nottinghamshire County Council,TR514921,MARSHALLS PLC (EAGLESCLIFFE),4708074,Estate Management & Development,Highways & Works,339.48,59.41,398.89,29-Nov-10,COMMUNITIES,ZSI/12189347    
Nottinghamshire County Council,TR514921,MARSHALLS PLC (EAGLESCLIFFE),4708074,Estate Management & Development,Highways & Works,46.52,8.14,54.66,29-Nov-10,COMMUNITIES,ZSI/12189347    
Nottinghamshire County Council,TR514921,MARSHALLS PLC (EAGLESCLIFFE),4708074,Estate Management & Development,Highways & Works,93.04,16.28,109.32,29-Nov-10,COMMUNITIES,ZSI/12189347    
Nottinghamshire County Council,TR514921,MARSHALLS PLC (EAGLESCLIFFE),4708074,Estate Management & Development,Highways & Works,"1,806.84",316.2,"2,123.04",29-Nov-10,COMMUNITIES,ZSI/12189347    
Nottinghamshire County Council,TR015152,JWL (ARCHITECTURAL IRONMONGERS) LTD,4708080,Estate Management & Development,Mechanical & Electrical,0,-0.01,-0.01,25-Nov-10,RESOURCES,502048
Nottinghamshire County Council,TR015152,JWL (ARCHITECTURAL IRONMONGERS) LTD,4708080,Estate Management & Development,Mechanical & Electrical,742.83,130,872.83,25-Nov-10,RESOURCES,502048
Nottinghamshire County Council,TR015152,JWL (ARCHITECTURAL IRONMONGERS) LTD,4708080,Estate Management & Development,Mechanical & Electrical,47.29,8.28,55.57,25-Nov-10,RESOURCES,502048
Nottinghamshire County Council,TR514623,A & V SQUIRES PLANT CO,4708145,Travel & Transportation,Fleet,828,144.9,972.9,11-Nov-10,COMMUNITIES,302949
Nottinghamshire County Council,TR514623,A & V SQUIRES PLANT CO,4708147,Travel & Transportation,Fleet,"1,041.00",182.18,"1,223.18",11-Nov-10,TBC,302950
Nottinghamshire County Council,TR002563,BREEDON AGGREGATES ENGLAND LTD,4708184,Estate Management & Development,Highways & Works,0,-0.01,-0.01,08-Nov-10,COMMUNITIES,10126707
Nottinghamshire County Council,TR002563,BREEDON AGGREGATES ENGLAND LTD,4708184,Estate Management & Development,Highways & Works,"5,349.12",936.1,"6,285.22",08-Nov-10,COMMUNITIES,10126707
Nottinghamshire County Council,TR002563,BREEDON AGGREGATES ENGLAND LTD,4708186,Estate Management & Development,Highways & Works,"7,110.89","1,244.41","8,355.30",03-Nov-10,TBC,10126708
Nottinghamshire County Council,TR002563,BREEDON AGGREGATES ENGLAND LTD,4708190,Estate Management & Development,Highways & Works,0,-0.01,-0.01,03-Nov-10,COMMUNITIES,10126706
Nottinghamshire County Council,TR002563,BREEDON AGGREGATES ENGLAND LTD,4708190,Estate Management & Development,Highways & Works,"8,988.07","1,572.91","10,560.98",03-Nov-10,COMMUNITIES,10126706
Nottinghamshire County Council,TR002563,BREEDON AGGREGATES ENGLAND LTD,4708191,Estate Management & Development,Highways & Works,"7,370.80","1,289.89","8,660.69",03-Nov-10,TBC,10126705
Nottinghamshire County Council,TR002563,BREEDON AGGREGATES ENGLAND LTD,4708192,Estate Management & Development,Highways & Works,668.6,117.01,785.61,03-Nov-10,COMMUNITIES,10126703
Nottinghamshire County Council,TR514623,A & V SQUIRES PLANT CO,4708196,Travel & Transportation,Fleet,"1,377.00",240.98,"1,617.98",11-Nov-10,COMMUNITIES,302954
Nottinghamshire County Council,TR536564,7KS CORPORATE & FINANCE,4708211,Arms Length,EducationTraining,594.9,104.11,699.01,18-Nov-10,CHILDREN & YOUNG PEOPLE,NOTT/1098       
Nottinghamshire County Council,TR536564,7KS CORPORATE & FINANCE,4708212,Arms Length,EducationTraining,594.9,104.11,699.01,18-Nov-10,CHILDREN & YOUNG PEOPLE,NOTT/1097       
Nottinghamshire County Council,TR089924,NOTTINGHAMSHIRE & CITY OF NOTTINGHAM FIRE AUTHORITY,4708728,Government / Charity / Trust / Society / Association,Government Bodies,700.5,122.59,823.09,18-Nov-10,COMMUNITIES,FA007403        
Nottinghamshire County Council,TR514623,A & V SQUIRES PLANT CO,4709375,Travel & Transportation,Fleet,"2,442.00",427.35,"2,869.35",18-Nov-10,COMMUNITIES,302955
Nottinghamshire County Council,TR514623,A & V SQUIRES PLANT CO,4709377,Travel & Transportation,Fleet,"1,266.00",221.55,"1,487.55",23-Nov-10,COMMUNITIES,302947
Nottinghamshire County Council,TR515269,JORDAN ROAD SURFACING LTD,4709379,Estate Management & Development,Highways & Works,765,133.88,898.88,11-Nov-10,COMMUNITIES,JRSL/10795      
Nottinghamshire County Council,TR068719,RHODES ROOFING LTD,4709380,Estate Management & Development,Mechanical & Electrical,"1,724.14",301.72,"2,025.86",24-Nov-10,RESOURCES,9150
Nottinghamshire County Council,TR515269,JORDAN ROAD SURFACING LTD,4709381,Estate Management & Development,Highways & Works,765,133.88,898.88,11-Nov-10,COMMUNITIES,JRSL/10794      
Nottinghamshire County Council,TR068719,RHODES ROOFING LTD,4709429,Estate Management & Development,Mechanical & Electrical,454.19,79.48,533.67,18-Nov-10,RESOURCES,9182
Nottinghamshire County Council,TR511894,TBL (MIDLANDS) LTD,4709430,Professional Services,Professional Services,"4,626.47",809.63,"5,436.10",08-Nov-10,TBC,40275
Nottinghamshire County Council,TR068719,RHODES ROOFING LTD,4709449,Estate Management & Development,Mechanical & Electrical,540.55,94.6,635.15,18-Nov-10,RESOURCES,9184
Nottinghamshire County Council,TR306678,PERMABOND LAMINATES LTD,4709461,Estate Management & Development,Mechanical & Electrical,"2,480.00",434,"2,914.00",26-Nov-10,RESOURCES,IN0031254       
Nottinghamshire County Council,TR306678,PERMABOND LAMINATES LTD,4709465,Estate Management & Development,Mechanical & Electrical,"4,266.00",746.55,"5,012.55",26-Nov-10,RESOURCES,IN0031255       
Nottinghamshire County Council,TR501022,VIRGIN MEDIA,4709481,ICT,Telecommunications Equipment & Services,849.6,148.68,998.28,01-Nov-10,RESOURCES,8.52E+15
Nottinghamshire County Council,TR501022,VIRGIN MEDIA,4709481,ICT,Telecommunications Equipment & Services,47.19,8.26,55.45,01-Nov-10,COMMUNITIES,8.52E+15
Nottinghamshire County Council,TR501022,VIRGIN MEDIA,4709481,ICT,Telecommunications Equipment & Services,47.19,8.26,55.45,01-Nov-10,COMMUNITIES,8.52E+15
Nottinghamshire County Council,TR501022,VIRGIN MEDIA,4709499,ICT,Telecommunications Equipment & Services,808.25,141.44,949.69,02-Nov-10,RESOURCES,8.52E+15
Nottinghamshire County Council,TR501022,VIRGIN MEDIA,4709499,ICT,Telecommunications Equipment & Services,44.9,7.86,52.76,02-Nov-10,COMMUNITIES,8.52E+15
Nottinghamshire County Council,TR501022,VIRGIN MEDIA,4709499,ICT,Telecommunications Equipment & Services,44.9,7.86,52.76,02-Nov-10,COMMUNITIES,8.52E+15
Nottinghamshire County Council,TR533577,LAFFRAN PLANT HIRE,4709503,Travel & Transportation,Fleet,327.6,57.33,384.93,19-Nov-10,COMMUNITIES,1783
Nottinghamshire County Council,TR533577,LAFFRAN PLANT HIRE,4709503,Travel & Transportation,Fleet,"1,310.90",229.41,"1,540.31",19-Nov-10,COMMUNITIES,1783
Nottinghamshire County Council,TR533577,LAFFRAN PLANT HIRE,4709504,Travel & Transportation,Fleet,252.14,44.12,296.26,19-Nov-10,COMMUNITIES,1784
Nottinghamshire County Council,TR533577,LAFFRAN PLANT HIRE,4709504,Travel & Transportation,Fleet,"1,512.86",264.75,"1,777.61",19-Nov-10,COMMUNITIES,1784
Nottinghamshire County Council,TR512085,J C BALLS & SONS,4709505,Estate Management & Development,Major Projects,0,0.01,0.01,11-Nov-10,COMMUNITIES,93747
Nottinghamshire County Council,TR512085,J C BALLS & SONS,4709505,Estate Management & Development,Major Projects,"1,713.50",299.86,"2,013.36",11-Nov-10,COMMUNITIES,93747
Nottinghamshire County Council,TR512085,J C BALLS & SONS,4709506,Estate Management & Development,Major Projects,"2,040.00",357,"2,397.00",23-Nov-10,COMMUNITIES,93757
Nottinghamshire County Council,TR306678,PERMABOND LAMINATES LTD,4709517,Estate Management & Development,Mechanical & Electrical,"4,266.00",746.55,"5,012.55",26-Nov-10,RESOURCES,IN0031256       
Nottinghamshire County Council,TR516527,SYNARBOR SOCIAL CARE,4709518,Front Line Services,Total Care,608.39,106.47,714.86,05-Nov-10,ASCH,346375
Nottinghamshire County Council,TR516527,SYNARBOR SOCIAL CARE,4709519,Front Line Services,Total Care,"1,240.88",217.15,"1,458.03",05-Nov-10,ASCH,346414
Nottinghamshire County Council,TR004835,XMA LTD,4709524,ICT,Hardware,0,0.01,0.01,23-Nov-10,RESOURCES,K1/I232662      
Nottinghamshire County Council,TR004835,XMA LTD,4709524,ICT,Hardware,"1,006.00",176.05,"1,182.05",23-Nov-10,RESOURCES,K1/I232662      
Nottinghamshire County Council,TR004835,XMA LTD,4709525,ICT,Hardware,497,86.98,583.98,23-Nov-10,RESOURCES,K1/I232663      
Nottinghamshire County Council,TR004147,VIGLEN LTD,4709526,ICT,Hardware,433.86,75.93,509.79,19-Nov-10,RESOURCES,2270887
Nottinghamshire County Council,TR319652,AUTOBAR UK LTD,4709529,Facilities Management,Food & Catering,138.84,24.3,163.14,03-Nov-10,COMMUNITIES,AB1090679       
Nottinghamshire County Council,TR319652,AUTOBAR UK LTD,4709529,Facilities Management,Food & Catering,459.78,0,459.78,03-Nov-10,COMMUNITIES,AB1090679       
Nottinghamshire County Council,TR514756,EXPRESS ASPHALT LTD,4709538,Estate Management & Development,Highways & Works,693.38,121.34,814.72,04-Nov-10,TBC,12863194
Nottinghamshire County Council,TR514756,EXPRESS ASPHALT LTD,4709545,Estate Management & Development,Highways & Works,697.54,122.07,819.61,04-Nov-10,COMMUNITIES,12871071
Nottinghamshire County Council,TR514756,EXPRESS ASPHALT LTD,4709546,Estate Management & Development,Highways & Works,694.77,121.58,816.35,04-Nov-10,TBC,12871072
Nottinghamshire County Council,TR327174,NEWARK CONCRETE,4709549,Estate Management & Development,Mechanical & Electrical,432,75.6,507.6,03-Nov-10,TBC,97877
Nottinghamshire County Council,TR327174,NEWARK CONCRETE,4709550,Estate Management & Development,Mechanical & Electrical,0,0.01,0.01,04-Nov-10,COMMUNITIES,97876
Nottinghamshire County Council,TR327174,NEWARK CONCRETE,4709550,Estate Management & Development,Mechanical & Electrical,429,75.08,504.08,04-Nov-10,COMMUNITIES,97876
Nottinghamshire County Council,TR327174,NEWARK CONCRETE,4709550,Estate Management & Development,Mechanical & Electrical,839.5,146.91,986.41,04-Nov-10,COMMUNITIES,97876
Nottinghamshire County Council,TR327174,NEWARK CONCRETE,4709550,Estate Management & Development,Mechanical & Electrical,365,63.88,428.88,04-Nov-10,COMMUNITIES,97876
Nottinghamshire County Council,TR327174,NEWARK CONCRETE,4709552,Estate Management & Development,Mechanical & Electrical,0,0.01,0.01,15-Nov-10,COMMUNITIES,97945
Nottinghamshire County Council,TR327174,NEWARK CONCRETE,4709552,Estate Management & Development,Mechanical & Electrical,"1,387.00",242.73,"1,629.73",15-Nov-10,COMMUNITIES,97945
Nottinghamshire County Council,TR327174,NEWARK CONCRETE,4709552,Estate Management & Development,Mechanical & Electrical,156,27.3,183.3,15-Nov-10,COMMUNITIES,97945
Nottinghamshire County Council,TR327174,NEWARK CONCRETE,4709552,Estate Management & Development,Mechanical & Electrical,412.5,72.19,484.69,15-Nov-10,COMMUNITIES,97945
Nottinghamshire County Council,TR327174,NEWARK CONCRETE,4709552,Estate Management & Development,Mechanical & Electrical,328.5,57.49,385.99,15-Nov-10,COMMUNITIES,97945
Nottinghamshire County Council,TR327174,NEWARK CONCRETE,4709552,Estate Management & Development,Mechanical & Electrical,39,6.83,45.83,15-Nov-10,COMMUNITIES,97945
Nottinghamshire County Council,TR327174,NEWARK CONCRETE,4709552,Estate Management & Development,Mechanical & Electrical,37.5,6.56,44.06,15-Nov-10,COMMUNITIES,97945
Nottinghamshire County Council,TR326485,SOUTH FOREST,4709553,Travel & Transportation,Travel & Accommodation,736,128.8,864.8,01-Nov-10,CHILDREN & YOUNG PEOPLE,182/10          
Nottinghamshire County Council,TR002982,SANDICLIFFE OF STAPLEFORD,4709554,Travel & Transportation,Fleet,0,-44.62,-44.62,02-Nov-10,COMMUNITIES,1069899
Nottinghamshire County Council,TR002982,SANDICLIFFE OF STAPLEFORD,4709554,Travel & Transportation,Fleet,"13,532.00","2,368.10","15,900.10",02-Nov-10,COMMUNITIES,1069899
Nottinghamshire County Council,TR015677,TUBES FITTINGS VALVES LTD,4709643,Estate Management & Development,Mechanical & Electrical,0,0.01,0.01,17-Nov-10,RESOURCES,374403
Nottinghamshire County Council,TR015677,TUBES FITTINGS VALVES LTD,4709643,Estate Management & Development,Mechanical & Electrical,"1,267.10",221.74,"1,488.84",17-Nov-10,RESOURCES,374403
Nottinghamshire County Council,TR516152,LLOYDS TSB AUTOLEASE LTD,4709654,Travel & Transportation,Fleet,0,0.01,0.01,01-Nov-10,COMMUNITIES,MRI1066228      
Nottinghamshire County Council,TR516152,LLOYDS TSB AUTOLEASE LTD,4709654,Travel & Transportation,Fleet,"1,670.66",292.37,"1,963.03",01-Nov-10,COMMUNITIES,MRI1066228      
Nottinghamshire County Council,TR516152,LLOYDS TSB AUTOLEASE LTD,4709654,Travel & Transportation,Fleet,565.81,0,565.81,01-Nov-10,COMMUNITIES,MRI1066228      
Nottinghamshire County Council,TR516152,LLOYDS TSB AUTOLEASE LTD,4709654,Travel & Transportation,Fleet,"2,312.71",404.72,"2,717.43",01-Nov-10,COMMUNITIES,MRI1066228      
Nottinghamshire County Council,TR516152,LLOYDS TSB AUTOLEASE LTD,4709654,Travel & Transportation,Fleet,696.32,0,696.32,01-Nov-10,COMMUNITIES,MRI1066228      
Nottinghamshire County Council,TR516152,LLOYDS TSB AUTOLEASE LTD,4709654,Travel & Transportation,Fleet,"3,302.88",578,"3,880.88",01-Nov-10,COMMUNITIES,MRI1066228      
Nottinghamshire County Council,TR516152,LLOYDS TSB AUTOLEASE LTD,4709654,Travel & Transportation,Fleet,"1,202.86",0,"1,202.86",01-Nov-10,COMMUNITIES,MRI1066228      
Nottinghamshire County Council,TR015677,TUBES FITTINGS VALVES LTD,4709659,Estate Management & Development,Mechanical & Electrical,0,0.05,0.05,16-Nov-10,RESOURCES,374406
Nottinghamshire County Council,TR015677,TUBES FITTINGS VALVES LTD,4709659,Estate Management & Development,Mechanical & Electrical,506.19,88.58,594.77,16-Nov-10,RESOURCES,374406
Nottinghamshire County Council,TR015677,TUBES FITTINGS VALVES LTD,4709660,Estate Management & Development,Mechanical & Electrical,449.72,78.7,528.42,17-Nov-10,RESOURCES,374708
Nottinghamshire County Council,TR015677,TUBES FITTINGS VALVES LTD,4709661,Estate Management & Development,Mechanical & Electrical,0,0.02,0.02,17-Nov-10,RESOURCES,374405
Nottinghamshire County Council,TR015677,TUBES FITTINGS VALVES LTD,4709661,Estate Management & Development,Mechanical & Electrical,"1,101.73",192.8,"1,294.53",17-Nov-10,RESOURCES,374405
Nottinghamshire County Council,TR015677,TUBES FITTINGS VALVES LTD,4709666,Estate Management & Development,Mechanical & Electrical,0,0.01,0.01,16-Nov-10,RESOURCES,374404
Nottinghamshire County Council,TR015677,TUBES FITTINGS VALVES LTD,4709666,Estate Management & Development,Mechanical & Electrical,904.33,158.26,"1,062.59",16-Nov-10,RESOURCES,374404
Nottinghamshire County Council,TR015677,TUBES FITTINGS VALVES LTD,4709724,Estate Management & Development,Mechanical & Electrical,0,0.03,0.03,17-Nov-10,RESOURCES,374415
Nottinghamshire County Council,TR015677,TUBES FITTINGS VALVES LTD,4709724,Estate Management & Development,Mechanical & Electrical,571.59,100.03,671.62,17-Nov-10,RESOURCES,374415
Nottinghamshire County Council,TR015677,TUBES FITTINGS VALVES LTD,4709725,Estate Management & Development,Mechanical & Electrical,822.05,143.86,965.91,17-Nov-10,RESOURCES,374414
Nottinghamshire County Council,TR002827,REDFERN COACHES MANSFIELD LTD,4709809,Travel & Transportation,Passenger Transport,520,0,520,24-Nov-10,CHILDREN & YOUNG PEOPLE,47639
Nottinghamshire County Council,TR097034,EDEN SUPPORTED HOUSING LTD,4709889,Front Line Services,Total Care,"14,744.44",0,"14,744.44",05-Nov-10,ASCH,183HARGB34      
Nottinghamshire County Council,TR097034,EDEN SUPPORTED HOUSING LTD,4709890,Front Line Services,Total Care,500,0,500,05-Nov-10,ASCH,179BARN94       
Nottinghamshire County Council,TR519038,CAPITA RESOURCING LTD,4709894,Professional Services,Recruitment,430.94,75.41,506.35,05-Nov-10,ASCH,1290296
Nottinghamshire County Council,TR339795,PERSONNEL & CARE BANK,4709897,Professional Services,Recruitment,438.57,76.75,515.32,05-Nov-10,ASCH,INVTS/0144147   
Nottinghamshire County Council,TR334205,PHS ALL CLEAR LTD,4709899,Facilities Management,Cleaning Services,440.92,77.16,518.08,05-Nov-10,ASCH,560583
Nottinghamshire County Council,TR531595,SERENDIPITYS DAY NURSERY,4710044,Front Line Services,Education & Training,"1,750.00",0,"1,750.00",12-Nov-10,CHILDREN & YOUNG PEOPLE,GLF QP PUGH1    
Nottinghamshire County Council,TR530017,PUMP FARM DAY NURSERY,4710045,Front Line Services,Education & Training,"1,250.00",0,"1,250.00",24-Nov-10,CHILDREN & YOUNG PEOPLE,GLF HGGI COOK   
Nottinghamshire County Council,TR503815,NURSERY CARE UK LTD,4710046,Front Line Services,Education & Training,"1,250.00",0,"1,250.00",24-Nov-10,CHILDREN & YOUNG PEOPLE,GLF HGGI HINCHCL
Nottinghamshire County Council,TR536475,NEW BUDAPEST CAFE ORCHESTRA,4710051,Arms Length,SportsLeisure,"1,600.00",0,"1,600.00",15-Nov-10,COMMUNITIES,1013
Nottinghamshire County Council,TR536475,NEW BUDAPEST CAFE ORCHESTRA,4710051,Arms Length,SportsLeisure,800,0,800,15-Nov-10,COMMUNITIES,1013
Nottinghamshire County Council,TR536475,NEW BUDAPEST CAFE ORCHESTRA,4710051,Arms Length,SportsLeisure,800,0,800,15-Nov-10,COMMUNITIES,1013
Nottinghamshire County Council,TR536475,NEW BUDAPEST CAFE ORCHESTRA,4710051,Arms Length,SportsLeisure,800,0,800,15-Nov-10,COMMUNITIES,1013
Nottinghamshire County Council,TR536475,NEW BUDAPEST CAFE ORCHESTRA,4710051,Arms Length,SportsLeisure,800,0,800,15-Nov-10,COMMUNITIES,1013
Nottinghamshire County Council,TR516912,FASTRAC RESOURCING SOLUTIONS LTD,4710079,Professional Services,Recruitment,862.5,150.94,"1,013.44",01-Nov-10,RESOURCES,13193
Nottinghamshire County Council,TR532040,BLUEBELL TELECOM LTD,4710127,ICT,Telecommunications Equipment & Services,"1,338.17",234.18,"1,572.35",02-Nov-10,COMMUNITIES,T106589/0       
Nottinghamshire County Council,TR204062,KONICA MINOLTA,4710129,Facilities Management,Reprographics,437.97,76.64,514.61,15-Nov-10,CHILDREN & YOUNG PEOPLE,1096812996
Nottinghamshire County Council,TR202619,BEAUFORT CONSTRUCTION (S-IN-A) LTD,4710150,Estate Management & Development,Major Projects,"5,748.00","1,005.90","6,753.90",22-Nov-10,RESOURCES,21317
Nottinghamshire County Council,TR056027,DAE MECHANICAL SERVICES LTD,4710162,Estate Management & Development,Mechanical & Electrical,473,82.78,555.78,17-Nov-10,RESOURCES,1010019
Nottinghamshire County Council,TR339795,PERSONNEL & CARE BANK,4710176,Professional Services,Recruitment,429.44,75.15,504.59,01-Nov-10,ASCH,INVTS/0143515   
Nottinghamshire County Council,TR310887,BARKER ROSS LTD,4710188,Professional Services,Recruitment,"1,320.62",231.11,"1,551.73",29-Nov-10,COMMUNITIES,12129694
Nottinghamshire County Council,TR521887,C U PHOSCO LIGHTING,4710203,Estate Management & Development,Mechanical & Electrical,40,7,47,25-Nov-10,COMMUNITIES,78831
Nottinghamshire County Council,TR521887,C U PHOSCO LIGHTING,4710203,Estate Management & Development,Mechanical & Electrical,"1,694.00",296.45,"1,990.45",25-Nov-10,COMMUNITIES,78831
Nottinghamshire County Council,TR512379,RAI TECHNICAL LTD,4710206,Estate Management & Development,Mechanical & Electrical,727.38,127.29,854.67,29-Nov-10,COMMUNITIES,75293
Nottinghamshire County Council,TR512379,RAI TECHNICAL LTD,4710207,Estate Management & Development,Mechanical & Electrical,536.63,93.91,630.54,29-Nov-10,COMMUNITIES,75294
Nottinghamshire County Council,TR536256,FUTURE HOME CARE,4710297,Arms Length,Total Care,"10,269.12",0,"10,269.12",01-Nov-10,TBC,FHC8139         
Nottinghamshire County Council,TR536256,FUTURE HOME CARE,4710298,Arms Length,Total Care,"18,928.10",0,"18,928.10",01-Nov-10,TBC,FHC8137         
Nottinghamshire County Council,TR536729,SHIREBROOK CARE LTD,4710299,Professional Services,Recruitment,"1,224.00",0,"1,224.00",01-Nov-10,ASCH,INV0002767      
Nottinghamshire County Council,TR536729,SHIREBROOK CARE LTD,4710300,Professional Services,Recruitment,"1,304.40",0,"1,304.40",01-Nov-10,ASCH,INV0002765      
Nottinghamshire County Council,TR536729,SHIREBROOK CARE LTD,4710301,Professional Services,Recruitment,"1,314.08",0,"1,314.08",01-Nov-10,ASCH,INV0002773      
Nottinghamshire County Council,TR529650,THE OAKLANDS,4710302,Travel & Transportation,Travel & Accommodation,600,0,600,01-Nov-10,ASCH,29/09/2010
Nottinghamshire County Council,RH500721,THE MARTINS,4710463,Total Care,-,61600,0,61600,11-Nov-10,ADULT SOCIAL CARE & HEALTH,130085-01023915 
Nottinghamshire County Council,RH500721,THE MARTINS,4710463,Total Care,-,2717.5,0,2717.5,11-Nov-10,ADULT SOCIAL CARE & HEALTH,130085-01023915 
Nottinghamshire County Council,TR323337,HUDSON & PIKE,4711242,FM Hard,Mechanical & Electrical,740,129.5,869.5,16-Nov-10,RESOURCES,1162
Nottinghamshire County Council,TR514522,BCB COATED STONE LTD,4711269,Arms Length,Highways & Works,481.6,84.28,565.88,03-Nov-10,COMMUNITIES,27718
Nottinghamshire County Council,TR514522,BCB COATED STONE LTD,4711269,Arms Length,Highways & Works,25.78,4.51,30.29,03-Nov-10,COMMUNITIES,27718
Nottinghamshire County Council,TR514522,BCB COATED STONE LTD,4711270,Arms Length,Highways & Works,189.14,33.1,222.24,03-Nov-10,COMMUNITIES,27717
Nottinghamshire County Council,TR514522,BCB COATED STONE LTD,4711270,Arms Length,Highways & Works,593.55,103.87,697.42,03-Nov-10,COMMUNITIES,27717
Nottinghamshire County Council,TR514522,BCB COATED STONE LTD,4711270,Arms Length,Highways & Works,395.7,69.25,464.95,03-Nov-10,COMMUNITIES,27717
Nottinghamshire County Council,TR514522,BCB COATED STONE LTD,4711270,Arms Length,Highways & Works,197.06,34.49,231.55,03-Nov-10,COMMUNITIES,27717
Nottinghamshire County Council,TR514522,BCB COATED STONE LTD,4711270,Arms Length,Highways & Works,6.64,1.16,7.8,03-Nov-10,COMMUNITIES,27717
Nottinghamshire County Council,TR514522,BCB COATED STONE LTD,4711271,Arms Length,Highways & Works,389.56,68.17,457.73,04-Nov-10,COMMUNITIES,27716
Nottinghamshire County Council,TR514522,BCB COATED STONE LTD,4711271,Arms Length,Highways & Works,38.41,6.72,45.13,04-Nov-10,COMMUNITIES,27716
Nottinghamshire County Council,TR058449,HAYS MONTROSE,4711334,Professional Services,Recruitment,660.64,115.61,776.25,19-Nov-10,RESOURCES,1000457137
Nottinghamshire County Council,TR501593,PHILLIPS JOINERY LTD,4711381,FM Hard,Mechanical & Electrical,"1,134.85",198.6,"1,333.45",24-Nov-10,RESOURCES,10/10/22B       
Nottinghamshire County Council,TR350439,T R FABRICATIONS (NOTTINGHAM) LTD,4711382,Estate Management & Development,Mechanical & Electrical,485,84.88,569.88,16-Nov-10,RESOURCES,924
Nottinghamshire County Council,TR503273,STAFFLINE RECRUITMENT LTD,4711397,Professional Services,Recruitment,0,-0.02,-0.02,01-Nov-10,COMMUNITIES,IN0221745       
Nottinghamshire County Council,TR503273,STAFFLINE RECRUITMENT LTD,4711397,Professional Services,Recruitment,363.2,63.56,426.76,01-Nov-10,COMMUNITIES,IN0221745       
Nottinghamshire County Council,TR503273,STAFFLINE RECRUITMENT LTD,4711397,Professional Services,Recruitment,84.9,14.86,99.76,01-Nov-10,COMMUNITIES,IN0221745       
Nottinghamshire County Council,TR503273,STAFFLINE RECRUITMENT LTD,4711397,Professional Services,Recruitment,169.8,29.72,199.52,01-Nov-10,COMMUNITIES,IN0221745       
Nottinghamshire County Council,TR503273,STAFFLINE RECRUITMENT LTD,4711397,Professional Services,Recruitment,84.9,14.86,99.76,01-Nov-10,COMMUNITIES,IN0221745       
Nottinghamshire County Council,TR503273,STAFFLINE RECRUITMENT LTD,4711397,Professional Services,Recruitment,84.9,14.86,99.76,01-Nov-10,COMMUNITIES,IN0221745       
Nottinghamshire County Council,TR503273,STAFFLINE RECRUITMENT LTD,4711397,Professional Services,Recruitment,84.9,14.86,99.76,01-Nov-10,COMMUNITIES,IN0221745       
Nottinghamshire County Council,TR503273,STAFFLINE RECRUITMENT LTD,4711397,Professional Services,Recruitment,84.9,14.86,99.76,01-Nov-10,COMMUNITIES,IN0221745       
Nottinghamshire County Council,TR533608,ONLINE ROCK SALT,4711421,Estate Management & Development,Highways & Works,"2,576.00",450.8,"3,026.80",05-Nov-10,COMMUNITIES,2530
Nottinghamshire County Council,TR054023,CANDOR SERVICES LTD,4711432,Facilities Management,Cleaning Services,0,0.04,0.04,01-Nov-10,COMMUNITIES,17961
Nottinghamshire County Council,TR054023,CANDOR SERVICES LTD,4711432,Facilities Management,Cleaning Services,466.91,81.71,548.62,01-Nov-10,COMMUNITIES,17961
Nottinghamshire County Council,TR515312,CITY ELECT FACTORS (TRENT DIVISON) LTD,4711433,Estate Management & Development,Mechanical & Electrical,"1,771.50",310.01,"2,081.51",29-Nov-10,RESOURCES,NOT/138738      
Nottinghamshire County Council,TR004835,XMA LTD,4711434,ICT,Hardware,0,0.01,0.01,23-Nov-10,RESOURCES,K1/I233395      
Nottinghamshire County Council,TR004835,XMA LTD,4711434,ICT,Hardware,"3,442.48",602.43,"4,044.91",23-Nov-10,RESOURCES,K1/I233395      
Nottinghamshire County Council,TR004835,XMA LTD,4711492,ICT,Hardware,994,173.95,"1,167.95",23-Nov-10,RESOURCES,K1/I233408      
Nottinghamshire County Council,TR536364,MAD BEAUTY LTD,4711509,Arms Length,EducationTraining,0,-0.01,-0.01,11-Nov-10,COMMUNITIES,72265
Nottinghamshire County Council,TR536364,MAD BEAUTY LTD,4711509,Arms Length,EducationTraining,629.5,110.16,739.66,11-Nov-10,COMMUNITIES,72265
Nottinghamshire County Council,TR536748,SELBORNE POTTERY,4711510,Arms Length,EducationTraining,435.1,76.14,511.24,11-Nov-10,COMMUNITIES,1043
Nottinghamshire County Council,TR002497,BRAKE BROS FOODSERVICES LTD,4711513,Facilities Management,Food & Catering,14.54,0,14.54,08-Nov-10,ASCH,4823535
Nottinghamshire County Council,TR002497,BRAKE BROS FOODSERVICES LTD,4711513,Facilities Management,Food & Catering,56.55,0,56.55,08-Nov-10,ASCH,4823535
Nottinghamshire County Council,TR002497,BRAKE BROS FOODSERVICES LTD,4711513,Facilities Management,Food & Catering,42.93,0,42.93,08-Nov-10,ASCH,4823535
Nottinghamshire County Council,TR002497,BRAKE BROS FOODSERVICES LTD,4711513,Facilities Management,Food & Catering,30.36,0,30.36,08-Nov-10,ASCH,4823535
Nottinghamshire County Council,TR002497,BRAKE BROS FOODSERVICES LTD,4711513,Facilities Management,Food & Catering,25.04,0,25.04,08-Nov-10,ASCH,4823535
Nottinghamshire County Council,TR002497,BRAKE BROS FOODSERVICES LTD,4711513,Facilities Management,Food & Catering,38.74,0,38.74,08-Nov-10,ASCH,4823535
Nottinghamshire County Council,TR002497,BRAKE BROS FOODSERVICES LTD,4711513,Facilities Management,Food & Catering,140.7,0,140.7,08-Nov-10,ASCH,4823535
Nottinghamshire County Council,TR002497,BRAKE BROS FOODSERVICES LTD,4711513,Facilities Management,Food & Catering,65.65,0,65.65,08-Nov-10,ASCH,4823535
Nottinghamshire County Council,TR002497,BRAKE BROS FOODSERVICES LTD,4711513,Facilities Management,Food & Catering,11.89,0,11.89,08-Nov-10,ASCH,4823535
Nottinghamshire County Council,TR002497,BRAKE BROS FOODSERVICES LTD,4711513,Facilities Management,Food & Catering,28.56,0,28.56,08-Nov-10,ASCH,4823535
Nottinghamshire County Council,TR002497,BRAKE BROS FOODSERVICES LTD,4711513,Facilities Management,Food & Catering,65.4,0,65.4,08-Nov-10,ASCH,4823535
Nottinghamshire County Council,TR002497,BRAKE BROS FOODSERVICES LTD,4711513,Facilities Management,Food & Catering,13.02,0,13.02,08-Nov-10,ASCH,4823535
Nottinghamshire County Council,TR002497,BRAKE BROS FOODSERVICES LTD,4711513,Facilities Management,Food & Catering,22.72,0,22.72,08-Nov-10,ASCH,4823535
Nottinghamshire County Council,TR002497,BRAKE BROS FOODSERVICES LTD,4711513,Facilities Management,Food & Catering,30.03,0,30.03,08-Nov-10,ASCH,4823535
Nottinghamshire County Council,TR002497,BRAKE BROS FOODSERVICES LTD,4711513,Facilities Management,Food & Catering,74.82,0,74.82,08-Nov-10,ASCH,4823535
Nottinghamshire County Council,TR002497,BRAKE BROS FOODSERVICES LTD,4711513,Facilities Management,Food & Catering,14.63,0,14.63,08-Nov-10,ASCH,4823535
Nottinghamshire County Council,TR002497,BRAKE BROS FOODSERVICES LTD,4711513,Facilities Management,Food & Catering,20.4,0,20.4,08-Nov-10,ASCH,4823535
Nottinghamshire County Council,TR004710,OWEN TAYLOR & SONS LTD FAMILYBUTCHER,4711514,Facilities Management,Food & Catering,149.5,0,149.5,08-Nov-10,ASCH,543517
Nottinghamshire County Council,TR004710,OWEN TAYLOR & SONS LTD FAMILYBUTCHER,4711514,Facilities Management,Food & Catering,335.92,0,335.92,08-Nov-10,ASCH,543517
Nottinghamshire County Council,TR004710,OWEN TAYLOR & SONS LTD FAMILYBUTCHER,4711514,Facilities Management,Food & Catering,216,0,216,08-Nov-10,ASCH,543517
Nottinghamshire County Council,TR004710,OWEN TAYLOR & SONS LTD FAMILYBUTCHER,4711515,Facilities Management,Food & Catering,"1,088.85",0,"1,088.85",08-Nov-10,ASCH,542568
Nottinghamshire County Council,TR004710,OWEN TAYLOR & SONS LTD FAMILYBUTCHER,4711515,Facilities Management,Food & Catering,42.4,0,42.4,08-Nov-10,ASCH,542568
Nottinghamshire County Council,TR004710,OWEN TAYLOR & SONS LTD FAMILYBUTCHER,4711515,Facilities Management,Food & Catering,68.77,0,68.77,08-Nov-10,ASCH,542568
Nottinghamshire County Council,TR049754,HALLAM COUNTRY FRESH FOODS LTD,4711516,Facilities Management,Food & Catering,24.8,0,24.8,08-Nov-10,ASCH,96652
Nottinghamshire County Council,TR049754,HALLAM COUNTRY FRESH FOODS LTD,4711516,Facilities Management,Food & Catering,12.6,0,12.6,08-Nov-10,ASCH,96652
Nottinghamshire County Council,TR049754,HALLAM COUNTRY FRESH FOODS LTD,4711516,Facilities Management,Food & Catering,230.1,0,230.1,08-Nov-10,ASCH,96652
Nottinghamshire County Council,TR049754,HALLAM COUNTRY FRESH FOODS LTD,4711516,Facilities Management,Food & Catering,369,0,369,08-Nov-10,ASCH,96652
Nottinghamshire County Council,TR344365,A E HOBSON & SON LTD,4711520,Facilities Management,Food & Catering,132.29,0,132.29,08-Nov-10,ASCH,194982
Nottinghamshire County Council,TR344365,A E HOBSON & SON LTD,4711520,Facilities Management,Food & Catering,852.29,0,852.29,08-Nov-10,ASCH,194982
Nottinghamshire County Council,TR344365,A E HOBSON & SON LTD,4711520,Facilities Management,Food & Catering,"1,445.60",0,"1,445.60",08-Nov-10,ASCH,194982
Nottinghamshire County Council,TR002497,BRAKE BROS FOODSERVICES LTD,4711521,Facilities Management,Food & Catering,45.2,0,45.2,09-Nov-10,ASCH,9059336967
Nottinghamshire County Council,TR002497,BRAKE BROS FOODSERVICES LTD,4711521,Facilities Management,Food & Catering,13.68,0,13.68,09-Nov-10,ASCH,9059336967
Nottinghamshire County Council,TR002497,BRAKE BROS FOODSERVICES LTD,4711521,Facilities Management,Food & Catering,273.6,0,273.6,09-Nov-10,ASCH,9059336967
Nottinghamshire County Council,TR002497,BRAKE BROS FOODSERVICES LTD,4711521,Facilities Management,Food & Catering,73.6,0,73.6,09-Nov-10,ASCH,9059336967
Nottinghamshire County Council,TR002497,BRAKE BROS FOODSERVICES LTD,4711521,Facilities Management,Food & Catering,136,0,136,09-Nov-10,ASCH,9059336967
Nottinghamshire County Council,TR002497,BRAKE BROS FOODSERVICES LTD,4711521,Facilities Management,Food & Catering,51.52,0,51.52,09-Nov-10,ASCH,9059336967
Nottinghamshire County Council,TR053346,F SMALES & SON (FISH MERCHANTS) LTD,4711522,Facilities Management,Food & Catering,"1,155.00",0,"1,155.00",08-Nov-10,ASCH,A476099         
Nottinghamshire County Council,TR512085,J C BALLS & SONS,4711541,Estate Management & Development,Major Projects,0,0.01,0.01,03-Nov-10,COMMUNITIES,93779
Nottinghamshire County Council,TR512085,J C BALLS & SONS,4711541,Estate Management & Development,Major Projects,"1,407.60",246.33,"1,653.93",03-Nov-10,COMMUNITIES,93779
Nottinghamshire County Council,TR515312,CITY ELECT FACTORS (TRENT DIVISON) LTD,4711545,Estate Management & Development,Mechanical & Electrical,575.25,100.67,675.92,29-Nov-10,RESOURCES,NOT/138499      
Nottinghamshire County Council,TR515312,CITY ELECT FACTORS (TRENT DIVISON) LTD,4711546,Estate Management & Development,Mechanical & Electrical,"2,263.57",396.12,"2,659.69",30-Nov-10,RESOURCES,NOT/138334      
Nottinghamshire County Council,TR515312,CITY ELECT FACTORS (TRENT DIVISON) LTD,4711546,Estate Management & Development,Mechanical & Electrical,101,17.68,118.68,30-Nov-10,RESOURCES,NOT/138334      
Nottinghamshire County Council,TR515312,CITY ELECT FACTORS (TRENT DIVISON) LTD,4711546,Estate Management & Development,Mechanical & Electrical,21.54,3.77,25.31,30-Nov-10,RESOURCES,NOT/138334      
Nottinghamshire County Council,TR515312,CITY ELECT FACTORS (TRENT DIVISON) LTD,4711546,Estate Management & Development,Mechanical & Electrical,273.77,47.91,321.68,30-Nov-10,RESOURCES,NOT/138334      
Nottinghamshire County Council,TR515312,CITY ELECT FACTORS (TRENT DIVISON) LTD,4711546,Estate Management & Development,Mechanical & Electrical,10.39,1.82,12.21,30-Nov-10,RESOURCES,NOT/138334      
Nottinghamshire County Council,TR515312,CITY ELECT FACTORS (TRENT DIVISON) LTD,4711546,Estate Management & Development,Mechanical & Electrical,10.39,1.82,12.21,30-Nov-10,RESOURCES,NOT/138334      
Nottinghamshire County Council,TR515312,CITY ELECT FACTORS (TRENT DIVISON) LTD,4711546,Estate Management & Development,Mechanical & Electrical,10.39,1.82,12.21,30-Nov-10,RESOURCES,NOT/138334      
Nottinghamshire County Council,TR515312,CITY ELECT FACTORS (TRENT DIVISON) LTD,4711546,Estate Management & Development,Mechanical & Electrical,7,1.23,8.23,30-Nov-10,RESOURCES,NOT/138334      
Nottinghamshire County Council,TR515312,CITY ELECT FACTORS (TRENT DIVISON) LTD,4711546,Estate Management & Development,Mechanical & Electrical,4.15,0.73,4.88,30-Nov-10,RESOURCES,NOT/138334      
Nottinghamshire County Council,TR347305,CLAREMONT HOUSE NURSERY SCHOOL,4711670,Front Line Services,Education & Training,"1,750.00",0,"1,750.00",12-Nov-10,CHILDREN & YOUNG PEOPLE,GLF QP WATKINSO 
Nottinghamshire County Council,TR347305,CLAREMONT HOUSE NURSERY SCHOOL,4711671,Front Line Services,Education & Training,"1,750.00",0,"1,750.00",12-Nov-10,CHILDREN & YOUNG PEOPLE,GLF QP HEGGIE R 
Nottinghamshire County Council,TR345702,NURSERY CARE UK LTD,4711696,Front Line Services,Education & Training,"1,250.00",0,"1,250.00",12-Nov-10,CHILDREN & YOUNG PEOPLE,GLF HGGI ETESON2
Nottinghamshire County Council,TR001109,IMPERIAL PORTLAND LAUNDRY CO LTD,4711713,Facilities Management,Cleaning Services,539.64,94.44,634.08,01-Nov-10,COMMUNITIES,91722
Nottinghamshire County Council,TR313867,NOTTINGHAM TRENT STUDENTS UNION,4711738,Front Line Services,Education & Training,"1,610.30",281.8,"1,892.10",01-Nov-10,CHILDREN & YOUNG PEOPLE,799244
Nottinghamshire County Council,TR005212,HOVAL LTD,4711748,Estate Management & Development,Mechanical & Electrical,"1,638.00",0,"1,638.00",01-Nov-10,ASCH,GC42            
Nottinghamshire County Council,TR503786,KB RECRUITMENT LTD,4711790,Professional Services,Recruitment,659.61,115.43,775.04,01-Nov-10,ASCH,2973
Nottinghamshire County Council,TR332197,TARMAC CENTRAL LTD,4711807,Estate Management & Development,Highways & Works,0,-0.01,-0.01,18-Nov-10,COMMUNITIES,9025914280
Nottinghamshire County Council,TR332197,TARMAC CENTRAL LTD,4711807,Estate Management & Development,Highways & Works,476.49,83.39,559.88,18-Nov-10,COMMUNITIES,9025914280
Nottinghamshire County Council,TR332197,TARMAC CENTRAL LTD,4711807,Estate Management & Development,Highways & Works,241.16,42.2,283.36,18-Nov-10,COMMUNITIES,9025914280
Nottinghamshire County Council,TR332197,TARMAC CENTRAL LTD,4711810,Estate Management & Development,Highways & Works,135.14,23.65,158.79,18-Nov-10,COMMUNITIES,9025914283
Nottinghamshire County Council,TR332197,TARMAC CENTRAL LTD,4711810,Estate Management & Development,Highways & Works,410.87,71.9,482.77,18-Nov-10,COMMUNITIES,9025914283
Nottinghamshire County Council,TR332197,TARMAC CENTRAL LTD,4711810,Estate Management & Development,Highways & Works,274.37,48.01,322.38,18-Nov-10,COMMUNITIES,9025914283
Nottinghamshire County Council,TR525698,SCOT GROUP LTD T/A THRIFTY,4711836,Travel & Transportation,Fleet,"1,293.32",226.33,"1,519.65",01-Nov-10,COMMUNITIES,CVT19655        
Nottinghamshire County Council,TR514756,EXPRESS ASPHALT LTD,4711842,Estate Management & Development,Highways & Works,696.15,121.83,817.98,04-Nov-10,COMMUNITIES,12810411
Nottinghamshire County Council,TR505671,MACILDOWIE ASSOCIATES,4711878,Professional Services,Recruitment,537,93.98,630.98,02-Nov-10,ASCH,52639
Nottinghamshire County Council,TR201298,NORSACA ,4711883,Front Line Services,Total Care,"1,795.00",0,"1,795.00",02-Nov-10,CHILDREN & YOUNG PEOPLE,4954
Nottinghamshire County Council,TR201298,NORSACA ,4711884,Front Line Services,Total Care,"1,296.25",0,"1,296.25",02-Nov-10,CHILDREN & YOUNG PEOPLE,4949
Nottinghamshire County Council,TR201298,NORSACA ,4711885,Front Line Services,Total Care,601.33,0,601.33,02-Nov-10,CHILDREN & YOUNG PEOPLE,4950
Nottinghamshire County Council,TR201298,NORSACA ,4711886,Front Line Services,Total Care,"1,525.00",0,"1,525.00",02-Nov-10,CHILDREN & YOUNG PEOPLE,4955
Nottinghamshire County Council,TR201298,NORSACA ,4711887,Front Line Services,Total Care,"1,067.50",0,"1,067.50",02-Nov-10,CHILDREN & YOUNG PEOPLE,4956
Nottinghamshire County Council,TR201298,NORSACA ,4711888,Front Line Services,Total Care,762.5,0,762.5,02-Nov-10,CHILDREN & YOUNG PEOPLE,4952
Nottinghamshire County Council,TR201298,NORSACA ,4711890,Front Line Services,Total Care,"1,525.00",0,"1,525.00",02-Nov-10,CHILDREN & YOUNG PEOPLE,4951
Nottinghamshire County Council,TR354867,UNIVERSAL LOCUMS,4711904,Professional Services,Recruitment,"1,190.00",208.25,"1,398.25",01-Nov-10,CHILDREN & YOUNG PEOPLE,130165
Nottinghamshire County Council,TR534763,STEPPING STONES,4711914,Front Line Services,Education & Training,"1,250.00",0,"1,250.00",02-Nov-10,CHILDREN & YOUNG PEOPLE,SSI00284        
Nottinghamshire County Council,TR534763,STEPPING STONES,4711915,Front Line Services,Education & Training,"3,600.00",0,"3,600.00",02-Nov-10,CHILDREN & YOUNG PEOPLE,SSI00276        
Nottinghamshire County Council,TR534763,STEPPING STONES,4711916,Front Line Services,Education & Training,"3,670.00",0,"3,670.00",02-Nov-10,CHILDREN & YOUNG PEOPLE,SSI00286        
Nottinghamshire County Council,TR534763,STEPPING STONES,4711917,Front Line Services,Education & Training,"3,670.00",0,"3,670.00",02-Nov-10,CHILDREN & YOUNG PEOPLE,SSI00285        
Nottinghamshire County Council,TR534763,STEPPING STONES,4711918,Front Line Services,Education & Training,"3,670.00",0,"3,670.00",02-Nov-10,CHILDREN & YOUNG PEOPLE,SSI00288        
Nottinghamshire County Council,TR015198,ROTHERA & BRERETON,4711919,Facilities Management,Office Supplies,"1,087.66",190.34,"1,278.00",01-Nov-10,RESOURCES,NTI461043       
Nottinghamshire County Council,TR355415,LEICESTER HOUSING ASSOCIATION LTD,4711921,Front Line Services,Total Care,"1,252.80",0,"1,252.80",01-Nov-10,ASCH,415167
Nottinghamshire County Council,TR355415,LEICESTER HOUSING ASSOCIATION LTD,4711922,Front Line Services,Total Care,"1,252.80",0,"1,252.80",01-Nov-10,ASCH,415166
Nottinghamshire County Council,TR355415,LEICESTER HOUSING ASSOCIATION LTD,4711923,Front Line Services,Total Care,144,0,144,01-Nov-10,ASCH,415172
Nottinghamshire County Council,TR355415,LEICESTER HOUSING ASSOCIATION LTD,4711923,Front Line Services,Total Care,876.96,0,876.96,01-Nov-10,ASCH,415172
Nottinghamshire County Council,TR355415,LEICESTER HOUSING ASSOCIATION LTD,4711924,Front Line Services,Total Care,"1,252.80",0,"1,252.80",01-Nov-10,ASCH,415162
Nottinghamshire County Council,TR355415,LEICESTER HOUSING ASSOCIATION LTD,4711925,Front Line Services,Total Care,192,0,192,01-Nov-10,ASCH,415176
Nottinghamshire County Council,TR355415,LEICESTER HOUSING ASSOCIATION LTD,4711925,Front Line Services,Total Care,"2,192.40",0,"2,192.40",01-Nov-10,ASCH,415176
Nottinghamshire County Council,TR355415,LEICESTER HOUSING ASSOCIATION LTD,4711926,Front Line Services,Total Care,144,0,144,01-Nov-10,ASCH,415171
Nottinghamshire County Council,TR355415,LEICESTER HOUSING ASSOCIATION LTD,4711926,Front Line Services,Total Care,876.96,0,876.96,01-Nov-10,ASCH,415171
Nottinghamshire County Council,TR355415,LEICESTER HOUSING ASSOCIATION LTD,4711927,Front Line Services,Total Care,56,0,56,01-Nov-10,ASCH,415177
Nottinghamshire County Council,TR355415,LEICESTER HOUSING ASSOCIATION LTD,4711927,Front Line Services,Total Care,689.04,0,689.04,01-Nov-10,ASCH,415177
Nottinghamshire County Council,TR355415,LEICESTER HOUSING ASSOCIATION LTD,4711928,Front Line Services,Total Care,501.12,0,501.12,01-Nov-10,ASCH,415179
Nottinghamshire County Council,TR355415,LEICESTER HOUSING ASSOCIATION LTD,4711929,Front Line Services,Total Care,"3,194.64",0,"3,194.64",01-Nov-10,ASCH,415180
Nottinghamshire County Council,TR355415,LEICESTER HOUSING ASSOCIATION LTD,4711930,Front Line Services,Total Care,288,0,288,01-Nov-10,ASCH,415178
Nottinghamshire County Council,TR355415,LEICESTER HOUSING ASSOCIATION LTD,4711930,Front Line Services,Total Care,"2,818.80",0,"2,818.80",01-Nov-10,ASCH,415178
Nottinghamshire County Council,TR511353,FIRST 4 CARE LTD,4711955,Travel & Transportation,Passenger Transport,"1,375.00",240.63,"1,615.63",01-Nov-10,ASCH,5132
Nottinghamshire County Council,TR511353,FIRST 4 CARE LTD,4711956,Travel & Transportation,Passenger Transport,"1,243.00",217.53,"1,460.53",01-Nov-10,ASCH,5137
Nottinghamshire County Council,TR511353,FIRST 4 CARE LTD,4711957,Travel & Transportation,Passenger Transport,"2,970.09",519.77,"3,489.86",01-Nov-10,ASCH,5171
Nottinghamshire County Council,TR511353,FIRST 4 CARE LTD,4711958,Travel & Transportation,Passenger Transport,"1,787.50",312.81,"2,100.31",01-Nov-10,ASCH,5139
Nottinghamshire County Council,TR511353,FIRST 4 CARE LTD,4711959,Travel & Transportation,Passenger Transport,"1,238.60",216.76,"1,455.36",01-Nov-10,ASCH,5158
Nottinghamshire County Council,TR536458,SEABRIGHT PRODUCTIONS LTD,4713237,Arms Length,SportsLeisure,750,131.25,881.25,03-Nov-10,COMMUNITIES,157
Nottinghamshire County Council,TR536458,SEABRIGHT PRODUCTIONS LTD,4713237,Arms Length,SportsLeisure,750,131.25,881.25,03-Nov-10,COMMUNITIES,157
Nottinghamshire County Council,TR536458,SEABRIGHT PRODUCTIONS LTD,4713237,Arms Length,SportsLeisure,750,131.25,881.25,03-Nov-10,COMMUNITIES,157
Nottinghamshire County Council,TR536458,SEABRIGHT PRODUCTIONS LTD,4713237,Arms Length,SportsLeisure,750,131.25,881.25,03-Nov-10,COMMUNITIES,157
Nottinghamshire County Council,TR525698,SCOT GROUP LTD T/A THRIFTY,4713280,Travel & Transportation,Fleet,"1,293.32",226.33,"1,519.65",01-Nov-10,COMMUNITIES,CVT19977        
Nottinghamshire County Council,TR525698,SCOT GROUP LTD T/A THRIFTY,4713286,Travel & Transportation,Fleet,"1,293.32",226.33,"1,519.65",01-Nov-10,COMMUNITIES,CVT19295        
Nottinghamshire County Council,TR063388,NOTTINGHAMSHIRE WOMEN'S AID LTD,4713300,Government / Charity / Trust / Society / Association,Clubs & Groups,"25,000.00",0,"25,000.00",01-Nov-10,COMMUNITIES,162
Nottinghamshire County Council,TR502245,COA SOLUTIONS LTD,4713301,ICT,Software,"3,000.00",525,"3,525.00",01-Nov-10,RESOURCES,ARCMIN/99016892 
Nottinghamshire County Council,TR340491,DUKERIES ASI GROUP RISK MANAGEMENT,4713310,Professional Services,Consultancy,"6,814.50","1,192.54","8,007.04",01-Nov-10,COMMUNITIES,6489
Nottinghamshire County Council,TR516917,NOTTINGHAM SECURITY LTD,4713311,Facilities Management,Security,"1,650.00",288.75,"1,938.75",01-Nov-10,COMMUNITIES,P2260           
Nottinghamshire County Council,TR507481,SPRING TECHNOLOGY STAFFING SERVICES,4713353,Professional Services,Recruitment,"1,044.00",182.7,"1,226.70",01-Nov-10,CHILDREN & YOUNG PEOPLE,D59349/00       
Nottinghamshire County Council,TR531372,RURAL COMMUNITY ACTION GROUP,4713356,Government / Charity / Trust / Society / Association,Clubs & Groups,"10,629.01","1,860.08","12,489.09",11-Nov-10,COMMUNITIES,7797
Nottinghamshire County Council,TR331456,ISC NETWORKS LTD,4713367,ICT,Services,656.5,114.89,771.39,02-Nov-10,RESOURCES,445999
Nottinghamshire County Council,TR331456,ISC NETWORKS LTD,4713368,ICT,Services,661.64,115.79,777.43,02-Nov-10,RESOURCES,446082
Nottinghamshire County Council,TR331456,ISC NETWORKS LTD,4713370,ICT,Services,0,-0.01,-0.01,02-Nov-10,RESOURCES,446138
Nottinghamshire County Council,TR331456,ISC NETWORKS LTD,4713370,ICT,Services,827.41,144.8,972.21,02-Nov-10,RESOURCES,446138
Nottinghamshire County Council,TR521205,ADDISON SUPPORTED LIVING & HOUSING,4713408,Front Line Services,Total Care,"1,038.11",0,"1,038.11",01-Nov-10,ASCH,GED/CMHT/SH/MH/0
Nottinghamshire County Council,TR521205,ADDISON SUPPORTED LIVING & HOUSING,4713409,Front Line Services,Total Care,695.16,0,695.16,01-Nov-10,ASCH,GEDCMHTCHMH013  
Nottinghamshire County Council,TR315294,MAKING IT! ENTERPRISES LTD,4713417,Front Line Services,Sports & Leisure,986.65,172.66,"1,159.31",01-Nov-10,ASCH,9577
Nottinghamshire County Council,TR315294,MAKING IT! ENTERPRISES LTD,4713417,Front Line Services,Sports & Leisure,80.48,0,80.48,01-Nov-10,ASCH,9577
Nottinghamshire County Council,TR315294,MAKING IT! ENTERPRISES LTD,4713417,Front Line Services,Sports & Leisure,13.5,2.36,15.86,01-Nov-10,ASCH,9577
Nottinghamshire County Council,TR315294,MAKING IT! ENTERPRISES LTD,4713417,Front Line Services,Sports & Leisure,120,21,141,01-Nov-10,ASCH,9577
Nottinghamshire County Council,TR315294,MAKING IT! ENTERPRISES LTD,4713417,Front Line Services,Sports & Leisure,10,1.75,11.75,01-Nov-10,ASCH,9577
Nottinghamshire County Council,TR315294,MAKING IT! ENTERPRISES LTD,4713417,Front Line Services,Sports & Leisure,0,0.01,0.01,01-Nov-10,RESOURCES,9577
Nottinghamshire County Council,TR030149,KEY PERSONNEL (MIDLANDS) LTD,4713439,Professional Services,Recruitment,681.54,119.27,800.81,08-Nov-10,ASCH,112806
Nottinghamshire County Council,TR030149,KEY PERSONNEL (MIDLANDS) LTD,4713443,Professional Services,Recruitment,727.42,127.3,854.72,08-Nov-10,CHILDREN & YOUNG PEOPLE,519621
Nottinghamshire County Council,TR030149,KEY PERSONNEL (MIDLANDS) LTD,4713444,Professional Services,Recruitment,678.27,118.7,796.97,01-Nov-10,CHILDREN & YOUNG PEOPLE,519581
Nottinghamshire County Council,TR208778,1ST CALL COMMUNICATIONS LTD,4713489,ICT,Telecommunications Equipment & Services,15.68,2.74,18.42,01-Nov-10,COMMUNITIES,96425
Nottinghamshire County Council,TR208778,1ST CALL COMMUNICATIONS LTD,4713489,ICT,Telecommunications Equipment & Services,15.2,2.66,17.86,01-Nov-10,COMMUNITIES,96425
Nottinghamshire County Council,TR208778,1ST CALL COMMUNICATIONS LTD,4713489,ICT,Telecommunications Equipment & Services,13.04,2.28,15.32,01-Nov-10,COMMUNITIES,96425
Nottinghamshire County Council,TR208778,1ST CALL COMMUNICATIONS LTD,4713489,ICT,Telecommunications Equipment & Services,13.84,2.42,16.26,01-Nov-10,COMMUNITIES,96425
Nottinghamshire County Council,TR208778,1ST CALL COMMUNICATIONS LTD,4713489,ICT,Telecommunications Equipment & Services,13.42,2.35,15.77,01-Nov-10,COMMUNITIES,96425
Nottinghamshire County Council,TR208778,1ST CALL COMMUNICATIONS LTD,4713489,ICT,Telecommunications Equipment & Services,28.17,4.93,33.1,01-Nov-10,COMMUNITIES,96425
Nottinghamshire County Council,TR208778,1ST CALL COMMUNICATIONS LTD,4713489,ICT,Telecommunications Equipment & Services,36.41,6.37,42.78,01-Nov-10,COMMUNITIES,96425
Nottinghamshire County Council,TR208778,1ST CALL COMMUNICATIONS LTD,4713489,ICT,Telecommunications Equipment & Services,25.72,4.5,30.22,01-Nov-10,COMMUNITIES,96425
Nottinghamshire County Council,TR208778,1ST CALL COMMUNICATIONS LTD,4713489,ICT,Telecommunications Equipment & Services,25.84,4.52,30.36,01-Nov-10,COMMUNITIES,96425
Nottinghamshire County Council,TR208778,1ST CALL COMMUNICATIONS LTD,4713489,ICT,Telecommunications Equipment & Services,18.3,3.2,21.5,01-Nov-10,COMMUNITIES,96425
Nottinghamshire County Council,TR208778,1ST CALL COMMUNICATIONS LTD,4713489,ICT,Telecommunications Equipment & Services,15.61,2.73,18.34,01-Nov-10,COMMUNITIES,96425
Nottinghamshire County Council,TR208778,1ST CALL COMMUNICATIONS LTD,4713489,ICT,Telecommunications Equipment & Services,48.9,8.56,57.46,01-Nov-10,COMMUNITIES,96425
Nottinghamshire County Council,TR208778,1ST CALL COMMUNICATIONS LTD,4713489,ICT,Telecommunications Equipment & Services,22.19,3.88,26.07,01-Nov-10,COMMUNITIES,96425
Nottinghamshire County Council,TR208778,1ST CALL COMMUNICATIONS LTD,4713489,ICT,Telecommunications Equipment & Services,19.77,3.46,23.23,01-Nov-10,COMMUNITIES,96425
Nottinghamshire County Council,TR208778,1ST CALL COMMUNICATIONS LTD,4713489,ICT,Telecommunications Equipment & Services,15.27,2.67,17.94,01-Nov-10,COMMUNITIES,96425
Nottinghamshire County Council,TR208778,1ST CALL COMMUNICATIONS LTD,4713489,ICT,Telecommunications Equipment & Services,17.74,3.1,20.84,01-Nov-10,COMMUNITIES,96425
Nottinghamshire County Council,TR208778,1ST CALL COMMUNICATIONS LTD,4713489,ICT,Telecommunications Equipment & Services,124.25,21.74,145.99,01-Nov-10,COMMUNITIES,96425
Nottinghamshire County Council,TR208778,1ST CALL COMMUNICATIONS LTD,4713489,ICT,Telecommunications Equipment & Services,16.11,2.82,18.93,01-Nov-10,COMMUNITIES,96425
Nottinghamshire County Council,TR208778,1ST CALL COMMUNICATIONS LTD,4713489,ICT,Telecommunications Equipment & Services,0.24,0.04,0.28,01-Nov-10,COMMUNITIES,96425
Nottinghamshire County Council,TR208778,1ST CALL COMMUNICATIONS LTD,4713489,ICT,Telecommunications Equipment & Services,48.16,8.43,56.59,01-Nov-10,COMMUNITIES,96425
Nottinghamshire County Council,TR208778,1ST CALL COMMUNICATIONS LTD,4713489,ICT,Telecommunications Equipment & Services,22.68,3.97,26.65,01-Nov-10,COMMUNITIES,96425
Nottinghamshire County Council,TR208778,1ST CALL COMMUNICATIONS LTD,4713489,ICT,Telecommunications Equipment & Services,30.97,5.42,36.39,01-Nov-10,COMMUNITIES,96425
Nottinghamshire County Council,TR208778,1ST CALL COMMUNICATIONS LTD,4713490,ICT,Telecommunications Equipment & Services,28.68,5.02,33.7,01-Nov-10,COMMUNITIES,96740
Nottinghamshire County Council,TR208778,1ST CALL COMMUNICATIONS LTD,4713490,ICT,Telecommunications Equipment & Services,15.27,2.67,17.94,01-Nov-10,COMMUNITIES,96740
Nottinghamshire County Council,TR208778,1ST CALL COMMUNICATIONS LTD,4713490,ICT,Telecommunications Equipment & Services,17.8,3.11,20.91,01-Nov-10,COMMUNITIES,96740
Nottinghamshire County Council,TR208778,1ST CALL COMMUNICATIONS LTD,4713490,ICT,Telecommunications Equipment & Services,2.18,0.38,2.56,01-Nov-10,COMMUNITIES,96740
Nottinghamshire County Council,TR208778,1ST CALL COMMUNICATIONS LTD,4713490,ICT,Telecommunications Equipment & Services,14.37,2.51,16.88,01-Nov-10,COMMUNITIES,96740
Nottinghamshire County Council,TR208778,1ST CALL COMMUNICATIONS LTD,4713490,ICT,Telecommunications Equipment & Services,33.27,5.82,39.09,01-Nov-10,COMMUNITIES,96740
Nottinghamshire County Council,TR208778,1ST CALL COMMUNICATIONS LTD,4713490,ICT,Telecommunications Equipment & Services,17.4,3.04,20.44,01-Nov-10,COMMUNITIES,96740
Nottinghamshire County Council,TR208778,1ST CALL COMMUNICATIONS LTD,4713490,ICT,Telecommunications Equipment & Services,24.85,4.35,29.2,01-Nov-10,COMMUNITIES,96740
Nottinghamshire County Council,TR208778,1ST CALL COMMUNICATIONS LTD,4713490,ICT,Telecommunications Equipment & Services,44.23,7.74,51.97,01-Nov-10,COMMUNITIES,96740
Nottinghamshire County Council,TR208778,1ST CALL COMMUNICATIONS LTD,4713490,ICT,Telecommunications Equipment & Services,15.87,2.78,18.65,01-Nov-10,COMMUNITIES,96740
Nottinghamshire County Council,TR208778,1ST CALL COMMUNICATIONS LTD,4713490,ICT,Telecommunications Equipment & Services,14.44,2.53,16.97,01-Nov-10,COMMUNITIES,96740
Nottinghamshire County Council,TR208778,1ST CALL COMMUNICATIONS LTD,4713490,ICT,Telecommunications Equipment & Services,18.36,3.21,21.57,01-Nov-10,COMMUNITIES,96740
Nottinghamshire County Council,TR208778,1ST CALL COMMUNICATIONS LTD,4713490,ICT,Telecommunications Equipment & Services,16.16,2.83,18.99,01-Nov-10,COMMUNITIES,96740
Nottinghamshire County Council,TR208778,1ST CALL COMMUNICATIONS LTD,4713490,ICT,Telecommunications Equipment & Services,199.7,34.95,234.65,01-Nov-10,COMMUNITIES,96740
Nottinghamshire County Council,TR208778,1ST CALL COMMUNICATIONS LTD,4713491,ICT,Telecommunications Equipment & Services,13.75,2.41,16.16,01-Nov-10,COMMUNITIES,96748
Nottinghamshire County Council,TR208778,1ST CALL COMMUNICATIONS LTD,4713491,ICT,Telecommunications Equipment & Services,28.28,4.95,33.23,01-Nov-10,COMMUNITIES,96748
Nottinghamshire County Council,TR208778,1ST CALL COMMUNICATIONS LTD,4713491,ICT,Telecommunications Equipment & Services,14.53,2.54,17.07,01-Nov-10,COMMUNITIES,96748
Nottinghamshire County Council,TR208778,1ST CALL COMMUNICATIONS LTD,4713491,ICT,Telecommunications Equipment & Services,16.45,2.88,19.33,01-Nov-10,COMMUNITIES,96748
Nottinghamshire County Council,TR208778,1ST CALL COMMUNICATIONS LTD,4713491,ICT,Telecommunications Equipment & Services,-6.65,-1.16,-7.81,01-Nov-10,COMMUNITIES,96748
Nottinghamshire County Council,TR208778,1ST CALL COMMUNICATIONS LTD,4713491,ICT,Telecommunications Equipment & Services,34.12,5.97,40.09,01-Nov-10,COMMUNITIES,96748
Nottinghamshire County Council,TR208778,1ST CALL COMMUNICATIONS LTD,4713491,ICT,Telecommunications Equipment & Services,319.2,55.86,375.06,01-Nov-10,COMMUNITIES,96748
Nottinghamshire County Council,TR208778,1ST CALL COMMUNICATIONS LTD,4713491,ICT,Telecommunications Equipment & Services,19.98,3.5,23.48,01-Nov-10,COMMUNITIES,96748
Nottinghamshire County Council,TR208778,1ST CALL COMMUNICATIONS LTD,4713491,ICT,Telecommunications Equipment & Services,23.54,4.12,27.66,01-Nov-10,COMMUNITIES,96748
Nottinghamshire County Council,TR208778,1ST CALL COMMUNICATIONS LTD,4713491,ICT,Telecommunications Equipment & Services,19.66,3.44,23.1,01-Nov-10,COMMUNITIES,96748
Nottinghamshire County Council,TR208778,1ST CALL COMMUNICATIONS LTD,4713491,ICT,Telecommunications Equipment & Services,17.15,3,20.15,01-Nov-10,COMMUNITIES,96748
Nottinghamshire County Council,TR208778,1ST CALL COMMUNICATIONS LTD,4713491,ICT,Telecommunications Equipment & Services,13.39,2.34,15.73,01-Nov-10,COMMUNITIES,96748
Nottinghamshire County Council,TR208778,1ST CALL COMMUNICATIONS LTD,4713491,ICT,Telecommunications Equipment & Services,15.54,2.72,18.26,01-Nov-10,COMMUNITIES,96748
Nottinghamshire County Council,TR208778,1ST CALL COMMUNICATIONS LTD,4713491,ICT,Telecommunications Equipment & Services,18.98,3.32,22.3,01-Nov-10,COMMUNITIES,96748
Nottinghamshire County Council,TR208778,1ST CALL COMMUNICATIONS LTD,4713491,ICT,Telecommunications Equipment & Services,60.67,10.62,71.29,01-Nov-10,COMMUNITIES,96748
Nottinghamshire County Council,TR208778,1ST CALL COMMUNICATIONS LTD,4713491,ICT,Telecommunications Equipment & Services,23.84,4.17,28.01,01-Nov-10,COMMUNITIES,96748
Nottinghamshire County Council,TR208778,1ST CALL COMMUNICATIONS LTD,4713491,ICT,Telecommunications Equipment & Services,17.98,3.15,21.13,01-Nov-10,COMMUNITIES,96748
Nottinghamshire County Council,TR208778,1ST CALL COMMUNICATIONS LTD,4713491,ICT,Telecommunications Equipment & Services,106.28,18.6,124.88,01-Nov-10,COMMUNITIES,96748
Nottinghamshire County Council,TR208778,1ST CALL COMMUNICATIONS LTD,4713491,ICT,Telecommunications Equipment & Services,850.96,148.92,999.88,01-Nov-10,COMMUNITIES,96748
Nottinghamshire County Council,TR208778,1ST CALL COMMUNICATIONS LTD,4713492,ICT,Telecommunications Equipment & Services,26.25,4.59,30.84,01-Nov-10,COMMUNITIES,96749
Nottinghamshire County Council,TR208778,1ST CALL COMMUNICATIONS LTD,4713492,ICT,Telecommunications Equipment & Services,25.26,4.42,29.68,01-Nov-10,COMMUNITIES,96749
Nottinghamshire County Council,TR208778,1ST CALL COMMUNICATIONS LTD,4713492,ICT,Telecommunications Equipment & Services,16.26,2.85,19.11,01-Nov-10,COMMUNITIES,96749
Nottinghamshire County Council,TR208778,1ST CALL COMMUNICATIONS LTD,4713492,ICT,Telecommunications Equipment & Services,15.7,2.75,18.45,01-Nov-10,COMMUNITIES,96749
Nottinghamshire County Council,TR208778,1ST CALL COMMUNICATIONS LTD,4713492,ICT,Telecommunications Equipment & Services,17.58,3.08,20.66,01-Nov-10,COMMUNITIES,96749
Nottinghamshire County Council,TR208778,1ST CALL COMMUNICATIONS LTD,4713492,ICT,Telecommunications Equipment & Services,69.88,12.23,82.11,01-Nov-10,COMMUNITIES,96749
Nottinghamshire County Council,TR208778,1ST CALL COMMUNICATIONS LTD,4713492,ICT,Telecommunications Equipment & Services,19.26,3.37,22.63,01-Nov-10,COMMUNITIES,96749
Nottinghamshire County Council,TR208778,1ST CALL COMMUNICATIONS LTD,4713492,ICT,Telecommunications Equipment & Services,21,3.67,24.67,01-Nov-10,COMMUNITIES,96749
Nottinghamshire County Council,TR208778,1ST CALL COMMUNICATIONS LTD,4713492,ICT,Telecommunications Equipment & Services,19.43,3.4,22.83,01-Nov-10,COMMUNITIES,96749
Nottinghamshire County Council,TR208778,1ST CALL COMMUNICATIONS LTD,4713492,ICT,Telecommunications Equipment & Services,27.31,4.78,32.09,01-Nov-10,COMMUNITIES,96749
Nottinghamshire County Council,TR208778,1ST CALL COMMUNICATIONS LTD,4713492,ICT,Telecommunications Equipment & Services,24.1,4.22,28.32,01-Nov-10,COMMUNITIES,96749
Nottinghamshire County Council,TR208778,1ST CALL COMMUNICATIONS LTD,4713492,ICT,Telecommunications Equipment & Services,20.61,3.61,24.22,01-Nov-10,COMMUNITIES,96749
Nottinghamshire County Council,TR208778,1ST CALL COMMUNICATIONS LTD,4713492,ICT,Telecommunications Equipment & Services,18.07,3.16,21.23,01-Nov-10,COMMUNITIES,96749
Nottinghamshire County Council,TR208778,1ST CALL COMMUNICATIONS LTD,4713492,ICT,Telecommunications Equipment & Services,16.81,2.94,19.75,01-Nov-10,COMMUNITIES,96749
Nottinghamshire County Council,TR208778,1ST CALL COMMUNICATIONS LTD,4713492,ICT,Telecommunications Equipment & Services,137.65,24.09,161.74,01-Nov-10,COMMUNITIES,96749
Nottinghamshire County Council,TR208778,1ST CALL COMMUNICATIONS LTD,4713492,ICT,Telecommunications Equipment & Services,17.94,3.14,21.08,01-Nov-10,COMMUNITIES,96749
Nottinghamshire County Council,TR208778,1ST CALL COMMUNICATIONS LTD,4713492,ICT,Telecommunications Equipment & Services,16.12,2.82,18.94,01-Nov-10,COMMUNITIES,96749
Nottinghamshire County Council,TR208778,1ST CALL COMMUNICATIONS LTD,4713492,ICT,Telecommunications Equipment & Services,34.1,5.97,40.07,01-Nov-10,COMMUNITIES,96749
Nottinghamshire County Council,TR514756,EXPRESS ASPHALT LTD,4713498,Estate Management & Development,Highways & Works,619.41,108.4,727.81,04-Nov-10,COMMUNITIES,12879339
Nottinghamshire County Council,TR514756,EXPRESS ASPHALT LTD,4713500,Estate Management & Development,Highways & Works,771.57,135.02,906.59,04-Nov-10,COMMUNITIES,12879337
Nottinghamshire County Council,TR514756,EXPRESS ASPHALT LTD,4713501,Estate Management & Development,Highways & Works,"1,390.92",243.41,"1,634.33",04-Nov-10,COMMUNITIES,12879336
Nottinghamshire County Council,TR514756,EXPRESS ASPHALT LTD,4713506,Estate Management & Development,Highways & Works,"1,075.36",188.19,"1,263.55",04-Nov-10,TBC,12889733
Nottinghamshire County Council,TR514756,EXPRESS ASPHALT LTD,4713508,Estate Management & Development,Highways & Works,"1,114.12",194.97,"1,309.09",24-Nov-10,COMMUNITIES,12889731
Nottinghamshire County Council,TR514756,EXPRESS ASPHALT LTD,4713510,Estate Management & Development,Highways & Works,95.42,16.7,112.12,30-Nov-10,COMMUNITIES,12889729
Nottinghamshire County Council,TR514756,EXPRESS ASPHALT LTD,4713510,Estate Management & Development,Highways & Works,430.93,75.41,506.34,30-Nov-10,COMMUNITIES,12889729
Nottinghamshire County Council,TR517588,AOT COACHES,4713522,Travel & Transportation,Passenger Transport,960,0,960,01-Nov-10,CHILDREN & YOUNG PEOPLE,152
Nottinghamshire County Council,TR517588,AOT COACHES,4713523,Travel & Transportation,Passenger Transport,840,0,840,01-Nov-10,CHILDREN & YOUNG PEOPLE,126
Nottinghamshire County Council,TR327174,NEWARK CONCRETE,4713528,Estate Management & Development,Mechanical & Electrical,0,0.01,0.01,24-Nov-10,COMMUNITIES,97990
Nottinghamshire County Council,TR327174,NEWARK CONCRETE,4713528,Estate Management & Development,Mechanical & Electrical,182.5,31.94,214.44,24-Nov-10,COMMUNITIES,97990
Nottinghamshire County Council,TR327174,NEWARK CONCRETE,4713528,Estate Management & Development,Mechanical & Electrical,73,12.78,85.78,24-Nov-10,COMMUNITIES,97990
Nottinghamshire County Council,TR327174,NEWARK CONCRETE,4713528,Estate Management & Development,Mechanical & Electrical,300,52.5,352.5,24-Nov-10,COMMUNITIES,97990
Nottinghamshire County Council,TR327174,NEWARK CONCRETE,4713528,Estate Management & Development,Mechanical & Electrical,273,47.78,320.78,24-Nov-10,COMMUNITIES,97990
Nottinghamshire County Council,TR512085,J C BALLS & SONS,4713529,Estate Management & Development,Major Projects,533.6,93.38,626.98,03-Nov-10,COMMUNITIES,93886
Nottinghamshire County Council,TR512085,J C BALLS & SONS,4713531,Estate Management & Development,Major Projects,0,0.02,0.02,04-Nov-10,COMMUNITIES,93870
Nottinghamshire County Council,TR512085,J C BALLS & SONS,4713531,Estate Management & Development,Major Projects,"1,296.30",226.85,"1,523.15",04-Nov-10,COMMUNITIES,93870
Nottinghamshire County Council,TR512085,J C BALLS & SONS,4713532,Estate Management & Development,Major Projects,0,0.02,0.02,03-Nov-10,COMMUNITIES,93863
Nottinghamshire County Council,TR512085,J C BALLS & SONS,4713532,Estate Management & Development,Major Projects,"1,898.22",332.19,"2,230.41",03-Nov-10,COMMUNITIES,93863
Nottinghamshire County Council,TR512085,J C BALLS & SONS,4713532,Estate Management & Development,Major Projects,"1,126.35",197.11,"1,323.46",03-Nov-10,COMMUNITIES,93863
Nottinghamshire County Council,TR009673,NESTLE UK LTD,4713580,FM Soft,Food ,985,0,985,18-Nov-10,ASCH,919008973
Nottinghamshire County Council,TR009673,NESTLE UK LTD,4713582,FM Soft,Food ,985,0,985,19-Nov-10,ASCH,919011496
Nottinghamshire County Council,TR339867,FOODBLENDERS LTD,4713584,Facilities Management,Food & Catering,887.5,0,887.5,01-Nov-10,ASCH,14383
Nottinghamshire County Council,TR339867,FOODBLENDERS LTD,4713584,Facilities Management,Food & Catering,78,0,78,01-Nov-10,ASCH,14383
Nottinghamshire County Council,TR339867,FOODBLENDERS LTD,4713584,Facilities Management,Food & Catering,"1,437.50",0,"1,437.50",01-Nov-10,ASCH,14383
Nottinghamshire County Council,TR339867,FOODBLENDERS LTD,4713584,Facilities Management,Food & Catering,395,0,395,01-Nov-10,ASCH,14383
Nottinghamshire County Council,TR353653,PROCHOICE RECRUITMENT SERVICES LTD,4713590,Professional Services,Recruitment,228,39.9,267.9,01-Nov-10,ASCH,25520
Nottinghamshire County Council,TR353653,PROCHOICE RECRUITMENT SERVICES LTD,4713590,Professional Services,Recruitment,570,99.75,669.75,01-Nov-10,ASCH,25520
Nottinghamshire County Council,TR099492,ORDNANCE SURVEY,4713609,Professional Services,"Design, Print & Communication","59,401.29","10,395.23","69,796.52",01-Nov-10,COMMUNITIES,91254604
Nottinghamshire County Council,TR348987,MARKEM IMAJE,4713617,Facilities Management,Reprographics,493.25,86.32,579.57,01-Nov-10,ASCH,3130004943
Nottinghamshire County Council,TR502308,DAWSON RENTALS PORTABLE COLD STORAGE LTD,4713642,Facilities Management,Food & Catering,0,-0.01,-0.01,01-Nov-10,ASCH,404766
Nottinghamshire County Council,TR502308,DAWSON RENTALS PORTABLE COLD STORAGE LTD,4713642,Facilities Management,Food & Catering,946.26,165.6,"1,111.86",01-Nov-10,ASCH,404766
Nottinghamshire County Council,TR502308,DAWSON RENTALS PORTABLE COLD STORAGE LTD,4713644,Facilities Management,Food & Catering,0,-0.01,-0.01,01-Nov-10,ASCH,404765
Nottinghamshire County Council,TR502308,DAWSON RENTALS PORTABLE COLD STORAGE LTD,4713644,Facilities Management,Food & Catering,"1,351.80",236.57,"1,588.37",01-Nov-10,ASCH,404765
Nottinghamshire County Council,TR203106,WORKWISE HEALTH CARE LTD,4713647,Front Line Services,Total Care,126.12,0,126.12,01-Nov-10,ASCH,Jan-65
Nottinghamshire County Council,TR203106,WORKWISE HEALTH CARE LTD,4713647,Front Line Services,Total Care,109.9,0,109.9,01-Nov-10,ASCH,Jan-65
Nottinghamshire County Council,TR203106,WORKWISE HEALTH CARE LTD,4713647,Front Line Services,Total Care,66.72,0,66.72,01-Nov-10,ASCH,Jan-65
Nottinghamshire County Council,TR203106,WORKWISE HEALTH CARE LTD,4713647,Front Line Services,Total Care,623.03,0,623.03,01-Nov-10,ASCH,Jan-65
Nottinghamshire County Council,TR203106,WORKWISE HEALTH CARE LTD,4713647,Front Line Services,Total Care,"9,563.40",0,"9,563.40",01-Nov-10,ASCH,Jan-65
Nottinghamshire County Council,TR203106,WORKWISE HEALTH CARE LTD,4713647,Front Line Services,Total Care,"1,656.36",0,"1,656.36",01-Nov-10,ASCH,Jan-65
Nottinghamshire County Council,TR203106,WORKWISE HEALTH CARE LTD,4713647,Front Line Services,Total Care,50.5,0,50.5,01-Nov-10,ASCH,Jan-65
Nottinghamshire County Council,TR317880,AT YOUR SERVICE (CARE) LTD,4713648,Front Line Services,Total Care,"2,031.50",0,"2,031.50",01-Nov-10,ASCH,1-266           
Nottinghamshire County Council,TR317880,AT YOUR SERVICE (CARE) LTD,4713648,Front Line Services,Total Care,93.78,0,93.78,01-Nov-10,ASCH,1-266           
Nottinghamshire County Council,TR317880,AT YOUR SERVICE (CARE) LTD,4713648,Front Line Services,Total Care,488.56,0,488.56,01-Nov-10,ASCH,1-266           
Nottinghamshire County Council,TR317880,AT YOUR SERVICE (CARE) LTD,4713648,Front Line Services,Total Care,"1,443.15",0,"1,443.15",01-Nov-10,ASCH,1-266           
Nottinghamshire County Council,TR317880,AT YOUR SERVICE (CARE) LTD,4713648,Front Line Services,Total Care,50.53,0,50.53,01-Nov-10,ASCH,1-266           
Nottinghamshire County Council,TR317880,AT YOUR SERVICE (CARE) LTD,4713648,Front Line Services,Total Care,"16,973.54",0,"16,973.54",01-Nov-10,ASCH,1-266           
Nottinghamshire County Council,TR204456,HATZFELD CARE LTD,4713649,Front Line Services,Total Care,84.37,0,84.37,01-Nov-10,ASCH,Jan-67
Nottinghamshire County Council,TR204456,HATZFELD CARE LTD,4713649,Front Line Services,Total Care,115.42,0,115.42,01-Nov-10,ASCH,Jan-67
Nottinghamshire County Council,TR204456,HATZFELD CARE LTD,4713649,Front Line Services,Total Care,710.63,0,710.63,01-Nov-10,ASCH,Jan-67
Nottinghamshire County Council,TR080446,NORTH NOTTINGHAMSHIRE CROSSROADS CARE,4713650,Front Line Services,Total Care,363.16,0,363.16,01-Nov-10,ASCH,Jan-68
Nottinghamshire County Council,TR080446,NORTH NOTTINGHAMSHIRE CROSSROADS CARE,4713650,Front Line Services,Total Care,651.36,0,651.36,01-Nov-10,ASCH,Jan-68
Nottinghamshire County Council,TR080446,NORTH NOTTINGHAMSHIRE CROSSROADS CARE,4713650,Front Line Services,Total Care,"3,602.53",0,"3,602.53",01-Nov-10,ASCH,Jan-68
Nottinghamshire County Council,TR080446,NORTH NOTTINGHAMSHIRE CROSSROADS CARE,4713650,Front Line Services,Total Care,19.78,0,19.78,01-Nov-10,ASCH,Jan-68
Nottinghamshire County Council,TR080446,NORTH NOTTINGHAMSHIRE CROSSROADS CARE,4713650,Front Line Services,Total Care,525.53,0,525.53,01-Nov-10,ASCH,Jan-68
Nottinghamshire County Council,TR080446,NORTH NOTTINGHAMSHIRE CROSSROADS CARE,4713650,Front Line Services,Total Care,"2,370.06",0,"2,370.06",01-Nov-10,ASCH,Jan-68
Nottinghamshire County Council,TR086077,STERLING HOME CARE,4713651,Front Line Services,Total Care,78.78,0,78.78,01-Nov-10,ASCH,Jan-69
Nottinghamshire County Council,TR086077,STERLING HOME CARE,4713651,Front Line Services,Total Care,"2,433.94",0,"2,433.94",01-Nov-10,ASCH,Jan-69
Nottinghamshire County Council,TR086077,STERLING HOME CARE,4713651,Front Line Services,Total Care,652.26,0,652.26,01-Nov-10,ASCH,Jan-69
Nottinghamshire County Council,TR510267,CARE UK HOMECARE LTD,4713652,Front Line Services,Total Care,50.54,0,50.54,01-Nov-10,ASCH,Jan-70
Nottinghamshire County Council,TR510267,CARE UK HOMECARE LTD,4713652,Front Line Services,Total Care,"1,712.24",0,"1,712.24",01-Nov-10,ASCH,Jan-70
Nottinghamshire County Council,TR510267,CARE UK HOMECARE LTD,4713652,Front Line Services,Total Care,"6,335.06",0,"6,335.06",01-Nov-10,ASCH,Jan-70
Nottinghamshire County Council,TR510267,CARE UK HOMECARE LTD,4713652,Front Line Services,Total Care,333.08,0,333.08,01-Nov-10,ASCH,Jan-70
Nottinghamshire County Council,TR510267,CARE UK HOMECARE LTD,4713652,Front Line Services,Total Care,134.35,0,134.35,01-Nov-10,ASCH,Jan-70
Nottinghamshire County Council,TR510267,CARE UK HOMECARE LTD,4713652,Front Line Services,Total Care,242.56,0,242.56,01-Nov-10,ASCH,Jan-70
Nottinghamshire County Council,TR355517,NESTOR PRIMECARE SER T/A NESTOR ACQUIS,4713653,Professional Services,Recruitment,120.49,0,120.49,01-Nov-10,ASCH,Jan-71
Nottinghamshire County Council,TR355517,NESTOR PRIMECARE SER T/A NESTOR ACQUIS,4713653,Professional Services,Recruitment,"1,550.21",0,"1,550.21",01-Nov-10,ASCH,Jan-71
Nottinghamshire County Council,TR355517,NESTOR PRIMECARE SER T/A NESTOR ACQUIS,4713653,Professional Services,Recruitment,34.59,0,34.59,01-Nov-10,ASCH,Jan-71
Nottinghamshire County Council,TR089880,ALLIED HEALTHCARE (UK) LTD,4713654,Professional Services,Recruitment,341.23,0,341.23,01-Nov-10,ASCH,Jan-72
Nottinghamshire County Council,TR089880,ALLIED HEALTHCARE (UK) LTD,4713654,Professional Services,Recruitment,915.12,0,915.12,01-Nov-10,ASCH,Jan-72
Nottinghamshire County Council,TR089880,ALLIED HEALTHCARE (UK) LTD,4713654,Professional Services,Recruitment,102.95,0,102.95,01-Nov-10,ASCH,Jan-72
Nottinghamshire County Council,TR504909,ACORN HOME CARE LTD,4713656,Front Line Services,Total Care,77.05,0,77.05,01-Nov-10,ASCH,Jan-74
Nottinghamshire County Council,TR504909,ACORN HOME CARE LTD,4713656,Front Line Services,Total Care,"3,567.25",0,"3,567.25",01-Nov-10,ASCH,Jan-74
Nottinghamshire County Council,TR504909,ACORN HOME CARE LTD,4713656,Front Line Services,Total Care,907.63,0,907.63,01-Nov-10,ASCH,Jan-74
Nottinghamshire County Council,TR504909,ACORN HOME CARE LTD,4713656,Front Line Services,Total Care,323.8,0,323.8,01-Nov-10,ASCH,Jan-74
Nottinghamshire County Council,TR531360,FREEDOM CARE SERVICES LTD,4713657,Front Line Services,Total Care,"1,199.24",0,"1,199.24",01-Nov-10,ASCH,Jan-75
Nottinghamshire County Council,TR531360,FREEDOM CARE SERVICES LTD,4713657,Front Line Services,Total Care,495.22,0,495.22,01-Nov-10,ASCH,Jan-75
Nottinghamshire County Council,TR531360,FREEDOM CARE SERVICES LTD,4713657,Front Line Services,Total Care,66.96,0,66.96,01-Nov-10,ASCH,Jan-75
Nottinghamshire County Council,TR529488,PREMIER CARE,4713659,Professional Services,Recruitment,"1,505.52",0,"1,505.52",01-Nov-10,ASCH,Jan-77
Nottinghamshire County Council,TR332197,TARMAC CENTRAL LTD,4713667,Estate Management & Development,Highways & Works,0,-0.01,-0.01,18-Nov-10,ASCH,9025920680
Nottinghamshire County Council,TR332197,TARMAC CENTRAL LTD,4713667,Estate Management & Development,Highways & Works,597.65,104.59,702.24,18-Nov-10,ASCH,9025920680
Nottinghamshire County Council,TR514941,HENDRICKS HEAVYSIDE,4713685,Estate Management & Development,Major Projects,0,0.01,0.01,16-Nov-10,COMMUNITIES,HUL/378714      
Nottinghamshire County Council,TR514941,HENDRICKS HEAVYSIDE,4713685,Estate Management & Development,Major Projects,13.03,2.28,15.31,16-Nov-10,COMMUNITIES,HUL/378714      
Nottinghamshire County Council,TR514941,HENDRICKS HEAVYSIDE,4713685,Estate Management & Development,Major Projects,84.04,14.71,98.75,16-Nov-10,COMMUNITIES,HUL/378714      
Nottinghamshire County Council,TR514941,HENDRICKS HEAVYSIDE,4713685,Estate Management & Development,Major Projects,57.27,10.02,67.29,16-Nov-10,COMMUNITIES,HUL/378714      
Nottinghamshire County Council,TR514941,HENDRICKS HEAVYSIDE,4713685,Estate Management & Development,Major Projects,93.96,16.44,110.4,16-Nov-10,COMMUNITIES,HUL/378714      
Nottinghamshire County Council,TR514941,HENDRICKS HEAVYSIDE,4713685,Estate Management & Development,Major Projects,19.39,3.39,22.78,16-Nov-10,COMMUNITIES,HUL/378714      
Nottinghamshire County Council,TR514941,HENDRICKS HEAVYSIDE,4713685,Estate Management & Development,Major Projects,67.73,11.85,79.58,16-Nov-10,COMMUNITIES,HUL/378714      
Nottinghamshire County Council,TR514941,HENDRICKS HEAVYSIDE,4713685,Estate Management & Development,Major Projects,9.39,1.64,11.03,16-Nov-10,COMMUNITIES,HUL/378714      
Nottinghamshire County Council,TR514941,HENDRICKS HEAVYSIDE,4713685,Estate Management & Development,Major Projects,13.2,2.31,15.51,16-Nov-10,COMMUNITIES,HUL/378714      
Nottinghamshire County Council,TR514941,HENDRICKS HEAVYSIDE,4713685,Estate Management & Development,Major Projects,42.6,7.46,50.06,16-Nov-10,COMMUNITIES,HUL/378714      
Nottinghamshire County Council,TR514941,HENDRICKS HEAVYSIDE,4713685,Estate Management & Development,Major Projects,196.64,34.41,231.05,16-Nov-10,COMMUNITIES,HUL/378714      
Nottinghamshire County Council,TR514941,HENDRICKS HEAVYSIDE,4713685,Estate Management & Development,Major Projects,71.25,12.47,83.72,16-Nov-10,COMMUNITIES,HUL/378714      
Nottinghamshire County Council,TR536564,7KS CORPORATE & FINANCE,4713708,Arms Length,EducationTraining,594.9,104.11,699.01,23-Nov-10,CHILDREN & YOUNG PEOPLE,NOTT/1099       
Nottinghamshire County Council,TR515511,AGGREGATE INDUSTRIES-CHARCON DIVISION,4713711,Estate Management & Development,Highways & Works,18,3.15,21.15,04-Nov-10,COMMUNITIES,12814711
Nottinghamshire County Council,TR515511,AGGREGATE INDUSTRIES-CHARCON DIVISION,4713711,Estate Management & Development,Highways & Works,247.32,43.28,290.6,04-Nov-10,COMMUNITIES,12814711
Nottinghamshire County Council,TR515511,AGGREGATE INDUSTRIES-CHARCON DIVISION,4713711,Estate Management & Development,Highways & Works,73.28,12.82,86.1,04-Nov-10,COMMUNITIES,12814711
Nottinghamshire County Council,TR515511,AGGREGATE INDUSTRIES-CHARCON DIVISION,4713711,Estate Management & Development,Highways & Works,126.24,22.09,148.33,04-Nov-10,COMMUNITIES,12814711
Nottinghamshire County Council,TR515511,AGGREGATE INDUSTRIES-CHARCON DIVISION,4713711,Estate Management & Development,Highways & Works,126.24,22.09,148.33,04-Nov-10,COMMUNITIES,12814711
Nottinghamshire County Council,TR515511,AGGREGATE INDUSTRIES-CHARCON DIVISION,4713711,Estate Management & Development,Highways & Works,126.24,22.09,148.33,04-Nov-10,COMMUNITIES,12814711
Nottinghamshire County Council,TR515511,AGGREGATE INDUSTRIES-CHARCON DIVISION,4713711,Estate Management & Development,Highways & Works,126.24,22.09,148.33,04-Nov-10,COMMUNITIES,12814711
Nottinghamshire County Council,TR515511,AGGREGATE INDUSTRIES-CHARCON DIVISION,4713711,Estate Management & Development,Highways & Works,27.76,4.86,32.62,04-Nov-10,COMMUNITIES,12814711
Nottinghamshire County Council,TR515511,AGGREGATE INDUSTRIES-CHARCON DIVISION,4713711,Estate Management & Development,Highways & Works,27.76,4.86,32.62,04-Nov-10,COMMUNITIES,12814711
Nottinghamshire County Council,TR515511,AGGREGATE INDUSTRIES-CHARCON DIVISION,4713711,Estate Management & Development,Highways & Works,83.28,14.57,97.85,04-Nov-10,COMMUNITIES,12814711
Nottinghamshire County Council,TR515511,AGGREGATE INDUSTRIES-CHARCON DIVISION,4713711,Estate Management & Development,Highways & Works,83.28,14.57,97.85,04-Nov-10,COMMUNITIES,12814711
Nottinghamshire County Council,TR515511,AGGREGATE INDUSTRIES-CHARCON DIVISION,4713711,Estate Management & Development,Highways & Works,872,152.6,"1,024.60",04-Nov-10,COMMUNITIES,12814711
Nottinghamshire County Council,TR515511,AGGREGATE INDUSTRIES-CHARCON DIVISION,4713712,Estate Management & Development,Highways & Works,18,3.15,21.15,04-Nov-10,COMMUNITIES,12814511
Nottinghamshire County Council,TR515511,AGGREGATE INDUSTRIES-CHARCON DIVISION,4713712,Estate Management & Development,Highways & Works,247.32,43.28,290.6,04-Nov-10,COMMUNITIES,12814511
Nottinghamshire County Council,TR515511,AGGREGATE INDUSTRIES-CHARCON DIVISION,4713712,Estate Management & Development,Highways & Works,538.56,94.25,632.81,04-Nov-10,COMMUNITIES,12814511
Nottinghamshire County Council,TR515511,AGGREGATE INDUSTRIES-CHARCON DIVISION,4713712,Estate Management & Development,Highways & Works,523.2,91.56,614.76,04-Nov-10,COMMUNITIES,12814511
Nottinghamshire County Council,TR515174,AYTON ASPHALT,4713713,Estate Management & Development,Highways & Works,774.4,135.52,909.92,03-Nov-10,COMMUNITIES,WY067221        
Nottinghamshire County Council,TR515174,AYTON ASPHALT,4713713,Estate Management & Development,Highways & Works,"1,971.20",344.96,"2,316.16",03-Nov-10,COMMUNITIES,WY067221        
Nottinghamshire County Council,TR513478,EXPRESS LOGISTICS (NOTTINGHAM) LTD,4713716,Facilities Management,Postal / Courier,"1,672.00",292.6,"1,964.60",24-Nov-10,COMMUNITIES,38460
Nottinghamshire County Council,TR514774,URBIS LIGHTING LTD,4713724,Estate Management & Development,Mechanical & Electrical,916.62,160.41,"1,077.03",04-Nov-10,COMMUNITIES,1180572
Nottinghamshire County Council,TR514774,URBIS LIGHTING LTD,4713724,Estate Management & Development,Mechanical & Electrical,12,2.1,14.1,04-Nov-10,COMMUNITIES,1180572
Nottinghamshire County Council,TR536458,SEABRIGHT PRODUCTIONS LTD,4714293,Arms Length,SportsLeisure,750,131.25,881.25,03-Nov-10,COMMUNITIES,156
Nottinghamshire County Council,TR536458,SEABRIGHT PRODUCTIONS LTD,4714293,Arms Length,SportsLeisure,750,131.25,881.25,03-Nov-10,COMMUNITIES,156
Nottinghamshire County Council,TR536458,SEABRIGHT PRODUCTIONS LTD,4714293,Arms Length,SportsLeisure,750,131.25,881.25,03-Nov-10,COMMUNITIES,156
Nottinghamshire County Council,TR536458,SEABRIGHT PRODUCTIONS LTD,4714293,Arms Length,SportsLeisure,750,131.25,881.25,03-Nov-10,COMMUNITIES,156
Nottinghamshire County Council,TR536458,SEABRIGHT PRODUCTIONS LTD,4714293,Arms Length,SportsLeisure,750,131.25,881.25,03-Nov-10,COMMUNITIES,156
Nottinghamshire County Council,TR536458,SEABRIGHT PRODUCTIONS LTD,4714293,Arms Length,SportsLeisure,750,131.25,881.25,03-Nov-10,COMMUNITIES,156
Nottinghamshire County Council,TR536329,POINT TOPIC LTD,4714295,ICT,TelecommunicationsEquipmentServices,"3,950.00",691.25,"4,641.25",04-Nov-10,COMMUNITIES,PT9869          
Nottinghamshire County Council,TR013085,BROWNE JACOBSON LLP,4714300,Professional Services,Legal,"1,228.00",214.9,"1,442.90",01-Nov-10,RESOURCES,186654
Nottinghamshire County Council,IN501560,GODLOVES,4714302,Professional Services,Legal,"2,500.00",0,"2,500.00",01-Nov-10,RESOURCES,JVN/SEVERN/58910
Nottinghamshire County Council,TR518760,BERRYMAN SOLICITORS,4714303,Professional Services,Legal,533.5,93.36,626.86,01-Nov-10,RESOURCES,004/574HOLMES   
Nottinghamshire County Council,TR058449,HAYS MONTROSE,4714310,Professional Services,Recruitment,722.14,126.37,848.51,16-Nov-10,RESOURCES,1000439468
Nottinghamshire County Council,TR336257,ARVAL PHH BUSINESS SOLUTIONS LTD,4714311,Travel & Transportation,Fleet,0,0.02,0.02,01-Nov-10,RESOURCES,1015067135
Nottinghamshire County Council,TR336257,ARVAL PHH BUSINESS SOLUTIONS LTD,4714311,Travel & Transportation,Fleet,"63,876.63","11,178.41","75,055.04",01-Nov-10,RESOURCES,1015067135
Nottinghamshire County Council,TR317880,AT YOUR SERVICE (CARE) LTD,4714316,Front Line Services,Total Care,"1,259.66",0,"1,259.66",01-Nov-10,ASCH,4-1059          
Nottinghamshire County Council,TR317880,AT YOUR SERVICE (CARE) LTD,4714316,Front Line Services,Total Care,118.72,0,118.72,01-Nov-10,ASCH,4-1059          
Nottinghamshire County Council,TR317880,AT YOUR SERVICE (CARE) LTD,4714316,Front Line Services,Total Care,"3,243.50",0,"3,243.50",01-Nov-10,ASCH,4-1059          
Nottinghamshire County Council,TR317880,AT YOUR SERVICE (CARE) LTD,4714316,Front Line Services,Total Care,187.13,0,187.13,01-Nov-10,ASCH,4-1059          
Nottinghamshire County Council,TR317880,AT YOUR SERVICE (CARE) LTD,4714316,Front Line Services,Total Care,69.96,0,69.96,01-Nov-10,ASCH,4-1059          
Nottinghamshire County Council,TR204456,HATZFELD CARE LTD,4714317,Front Line Services,Total Care,"5,032.83",0,"5,032.83",01-Nov-10,ASCH,4-1060          
Nottinghamshire County Council,TR204456,HATZFELD CARE LTD,4714317,Front Line Services,Total Care,21.88,0,21.88,01-Nov-10,ASCH,4-1060          
Nottinghamshire County Council,TR204456,HATZFELD CARE LTD,4714317,Front Line Services,Total Care,623.75,0,623.75,01-Nov-10,ASCH,4-1060          
Nottinghamshire County Council,TR204456,HATZFELD CARE LTD,4714317,Front Line Services,Total Care,619.61,0,619.61,01-Nov-10,ASCH,4-1060          
Nottinghamshire County Council,TR085469,EAST MIDLANDS CROSSROADS,4714318,Front Line Services,Total Care,116.09,0,116.09,01-Nov-10,ASCH,4-1061          
Nottinghamshire County Council,TR085469,EAST MIDLANDS CROSSROADS,4714318,Front Line Services,Total Care,498.58,0,498.58,01-Nov-10,ASCH,4-1061          
Nottinghamshire County Council,TR085469,EAST MIDLANDS CROSSROADS,4714318,Front Line Services,Total Care,"1,179.19",0,"1,179.19",01-Nov-10,ASCH,4-1061          
Nottinghamshire County Council,TR324207,CAREWATCH (NOTTINGHAM),4714319,Front Line Services,Total Care,"3,291.69",0,"3,291.69",01-Nov-10,ASCH,4-1062          
Nottinghamshire County Council,TR324207,CAREWATCH (NOTTINGHAM),4714319,Front Line Services,Total Care,525.04,0,525.04,01-Nov-10,ASCH,4-1062          
Nottinghamshire County Council,TR324207,CAREWATCH (NOTTINGHAM),4714319,Front Line Services,Total Care,313.12,0,313.12,01-Nov-10,ASCH,4-1062          
Nottinghamshire County Council,TR335074,CALVERTON SUPREME HOME CARE LTD,4714320,Front Line Services,Total Care,393.52,0,393.52,01-Nov-10,ASCH,4-1063          
Nottinghamshire County Council,TR335074,CALVERTON SUPREME HOME CARE LTD,4714320,Front Line Services,Total Care,"1,324.37",0,"1,324.37",01-Nov-10,ASCH,4-1063          
Nottinghamshire County Council,TR335074,CALVERTON SUPREME HOME CARE LTD,4714320,Front Line Services,Total Care,"9,559.57",0,"9,559.57",01-Nov-10,ASCH,4-1063          
Nottinghamshire County Council,TR086077,STERLING HOME CARE,4714321,Front Line Services,Total Care,51.58,0,51.58,01-Nov-10,ASCH,4-1064          
Nottinghamshire County Council,TR086077,STERLING HOME CARE,4714321,Front Line Services,Total Care,"1,284.30",0,"1,284.30",01-Nov-10,ASCH,4-1064          
Nottinghamshire County Council,TR531361,THE HUMAN SUPPORT GROUP,4714322,Government / Charity / Trust / Society / Association,Clubs & Groups,"2,538.04",0,"2,538.04",01-Nov-10,ASCH,4-1065          
Nottinghamshire County Council,TR510128,SENTINEL MEDISTAFF LTD,4714323,Front Line Services,Total Care,74.64,0,74.64,01-Nov-10,ASCH,4-1066          
Nottinghamshire County Council,TR510128,SENTINEL MEDISTAFF LTD,4714323,Front Line Services,Total Care,802.15,0,802.15,01-Nov-10,ASCH,4-1066          
Nottinghamshire County Council,TR510128,SENTINEL MEDISTAFF LTD,4714323,Front Line Services,Total Care,34.4,0,34.4,01-Nov-10,ASCH,4-1066          
Nottinghamshire County Council,TR510128,SENTINEL MEDISTAFF LTD,4714323,Front Line Services,Total Care,15.36,0,15.36,01-Nov-10,ASCH,4-1066          
Nottinghamshire County Council,TR510128,SENTINEL MEDISTAFF LTD,4714323,Front Line Services,Total Care,550.79,0,550.79,01-Nov-10,ASCH,4-1066          
Nottinghamshire County Council,TR510128,SENTINEL MEDISTAFF LTD,4714323,Front Line Services,Total Care,"7,780.91",0,"7,780.91",01-Nov-10,ASCH,4-1066          
Nottinghamshire County Council,TR504909,ACORN HOME CARE LTD,4714324,Front Line Services,Total Care,114.9,0,114.9,01-Nov-10,ASCH,4-1067          
Nottinghamshire County Council,TR504909,ACORN HOME CARE LTD,4714324,Front Line Services,Total Care,28.09,0,28.09,01-Nov-10,ASCH,4-1067          
Nottinghamshire County Council,TR504909,ACORN HOME CARE LTD,4714324,Front Line Services,Total Care,387.36,0,387.36,01-Nov-10,ASCH,4-1067          
Nottinghamshire County Council,TR504909,ACORN HOME CARE LTD,4714324,Front Line Services,Total Care,"1,492.51",0,"1,492.51",01-Nov-10,ASCH,4-1067          
Nottinghamshire County Council,TR529488,PREMIER CARE,4714325,Professional Services,Recruitment,"1,352.07",0,"1,352.07",01-Nov-10,ASCH,4-1068          
Nottinghamshire County Council,TR529488,PREMIER CARE,4714325,Professional Services,Recruitment,60.52,0,60.52,01-Nov-10,ASCH,4-1068          
Nottinghamshire County Council,TR509186,PRIORITY HOMECARE,4714326,Front Line Services,Total Care,21.15,0,21.15,18-Nov-10,ASCH,4-1069          
Nottinghamshire County Council,TR509186,PRIORITY HOMECARE,4714326,Front Line Services,Total Care,"2,589.55",0,"2,589.55",18-Nov-10,ASCH,4-1069          
Nottinghamshire County Council,TR509186,PRIORITY HOMECARE,4714326,Front Line Services,Total Care,276.75,0,276.75,18-Nov-10,ASCH,4-1069          
Nottinghamshire County Council,TR509186,PRIORITY HOMECARE,4714326,Front Line Services,Total Care,92.17,0,92.17,18-Nov-10,ASCH,4-1069          
Nottinghamshire County Council,TR509186,PRIORITY HOMECARE,4714326,Front Line Services,Total Care,42,0,42,18-Nov-10,ASCH,4-1069          
Nottinghamshire County Council,TR203528,BROXAP & CORBY LTD,4714346,Estate Management & Development,Mechanical & Electrical,"5,807.50","1,016.31","6,823.81",01-Nov-10,RESOURCES,PRI005090       
Nottinghamshire County Council,TR528851,BSI MANAGEMENT SYSTEMS,4714348,Government / Charity / Trust / Society / Association,Association,"1,478.00",258.65,"1,736.65",04-Nov-10,COMMUNITIES,93280616/1000   
Nottinghamshire County Council,TR093727,NOTTINGHAMSHIRE HOMECARE LTD,4714357,Front Line Services,Total Care,340.85,0,340.85,01-Nov-10,ASCH,Feb-03
Nottinghamshire County Council,TR093727,NOTTINGHAMSHIRE HOMECARE LTD,4714357,Front Line Services,Total Care,"2,159.80",0,"2,159.80",01-Nov-10,ASCH,Feb-03
Nottinghamshire County Council,TR093727,NOTTINGHAMSHIRE HOMECARE LTD,4714357,Front Line Services,Total Care,250.67,0,250.67,01-Nov-10,ASCH,Feb-03
Nottinghamshire County Council,TR080446,NORTH NOTTINGHAMSHIRE CROSSROADS CARE,4714359,Front Line Services,Total Care,79.14,0,79.14,01-Nov-10,ASCH,Feb-05
Nottinghamshire County Council,TR080446,NORTH NOTTINGHAMSHIRE CROSSROADS CARE,4714359,Front Line Services,Total Care,465.69,0,465.69,01-Nov-10,ASCH,Feb-05
Nottinghamshire County Council,TR080446,NORTH NOTTINGHAMSHIRE CROSSROADS CARE,4714359,Front Line Services,Total Care,"1,334.72",0,"1,334.72",01-Nov-10,ASCH,Feb-05
Nottinghamshire County Council,TR355517,NESTOR PRIMECARE SER T/A NESTOR ACQUIS,4714360,Professional Services,Recruitment,"5,314.47",0,"5,314.47",01-Nov-10,ASCH,Feb-06
Nottinghamshire County Council,TR355517,NESTOR PRIMECARE SER T/A NESTOR ACQUIS,4714360,Professional Services,Recruitment,86.1,0,86.1,01-Nov-10,ASCH,Feb-06
Nottinghamshire County Council,TR355517,NESTOR PRIMECARE SER T/A NESTOR ACQUIS,4714360,Professional Services,Recruitment,140.15,0,140.15,01-Nov-10,ASCH,Feb-06
Nottinghamshire County Council,TR355517,NESTOR PRIMECARE SER T/A NESTOR ACQUIS,4714360,Professional Services,Recruitment,373.54,0,373.54,01-Nov-10,ASCH,Feb-06
Nottinghamshire County Council,TR355517,NESTOR PRIMECARE SER T/A NESTOR ACQUIS,4714360,Professional Services,Recruitment,186.93,0,186.93,01-Nov-10,ASCH,Feb-06
Nottinghamshire County Council,TR086077,STERLING HOME CARE,4714361,Front Line Services,Total Care,232.02,0,232.02,01-Nov-10,ASCH,Feb-07
Nottinghamshire County Council,TR086077,STERLING HOME CARE,4714361,Front Line Services,Total Care,919.23,0,919.23,01-Nov-10,ASCH,Feb-07
Nottinghamshire County Council,TR086077,STERLING HOME CARE,4714361,Front Line Services,Total Care,13.17,0,13.17,01-Nov-10,ASCH,Feb-07
Nottinghamshire County Council,TR086077,STERLING HOME CARE,4714361,Front Line Services,Total Care,"10,792.26",0,"10,792.26",01-Nov-10,ASCH,Feb-07
Nottinghamshire County Council,TR086077,STERLING HOME CARE,4714361,Front Line Services,Total Care,466.42,0,466.42,01-Nov-10,ASCH,Feb-07
Nottinghamshire County Council,TR097034,EDEN SUPPORTED HOUSING LTD,4714362,Front Line Services,Total Care,225.38,0,225.38,01-Nov-10,ASCH,Feb-08
Nottinghamshire County Council,TR097034,EDEN SUPPORTED HOUSING LTD,4714362,Front Line Services,Total Care,57.67,0,57.67,01-Nov-10,ASCH,Feb-08
